Workbook

Sheet Import
A1: RTA Data import
A6: How does this worksheet work?
A7: This worksheet allows you to import RTA measurements stored on the Bedrock SMxx. Make sure that the RTA result files are copied onto your computer, or that the instrument is attached to USB and accessible as a mass storage device. Then press the button below ("Import RTA"). You can now select the measurement data files that you wish to import. NOTE: by using SHIFT and CTRL you can select multiple files for opening. The measurements are imported into the sheet named "Data." Use the sheet named "View" to browse through these measurements, or copy data directly from the "Data" sheet to your own Worksheet for further calculations. Note that importing data changes this worksheet, overwriting earlier data imports. We recommend that you keep the original version of this worksheet in a safe location, and that you use a new copy of this original file for each new project.
A9: For support or to download the latest version of this file, please refer to our website
A10: www.bedrock-audio.com
A12: Version 2.6.1
A15: COPYRIGHT (C) Bedrock Audio BV, 2022
A16: ALL RIGHTS RESERVED. This worksheet contains material protected under International and Federal Copyright Laws and Treaties. Any unauthorized use of this material is prohibited. No part of this worksheet may be reproduced or transmitted in any form or by any means, electronic or mechanical, including photocopying, recording, or by any information storage and retrieval system without express written permission from the author.
A18: DISCLAIMER
A19: THIS DOCUMENT IS PROVIDED "AS IS", WITHOUT WARRANTY OF ANY KIND, EXPRESS OR IMPLIED, INCLUDING BUT NOT LIMITED TO THE WARRANTIES OF MERCHANTABILITY, FITNESS FOR A PARTICULAR PURPOSE AND NONINFRINGEMENT. IN NO EVENT SHALL THE AUTHORS OR COPYRIGHT HOLDERS BE LIABLE FOR ANY CLAIM, DAMAGES OR OTHER LIABILITY, WHETHER IN AN ACTION OF CONTRACT, TORT OR OTHERWISE, ARISING FROM, OUT OF OR IN CONNECTION WITH THE SOFTWARE OR THE USE OR OTHER DEALINGS IN THE SOFTWARE

Sheet View
A1: Date | B1: =OFFSET(Data!B4,View!$B$25,0) -> 00:00:00
A2: Time | B2: =OFFSET(Data!C4,View!$B$25,0) -> 00:00:00
A3: Duration [s] | B3: =OFFSET(Data!D4,View!$B$25,0) -> 0
B5: overall | C5: =IF(OFFSET(C45,$E$41,0)="","",OFFSET(C45,$E$41,0)) -> 31.5 | D5: =IF(OFFSET(D45,$E$41,0)="","",OFFSET(D45,$E$41,0)) -> 63 | E5: 125 | F5: 250 | G5: 500 | H5: 1000 | I5: 2000 | J5: 4000 | K5: 8000 | L5: 16000 | AA5: =IF(OFFSET(AA45,$E$41,0)="","",OFFSET(AA45,$E$41,0)) ->  | BP5: =IF(OFFSET(BP45,$E$41,0)="","",OFFSET(BP45,$E$41,0)) -> 
A6: LZeq | B6: =IF(B$5<>"",OFFSET(Data!G$4,View!$B$25,$DS6),"") -> 0 | C6: =IF(C$5<>"",OFFSET(Data!H$4,View!$B$25,$DS6),"") -> 0 | D6: =IF(D$5<>"",OFFSET(Data!I$4,View!$B$25,$DS6),"") -> 0 | E6: =IF(E$5<>"",OFFSET(Data!J$4,View!$B$25,$DS6),"") -> 0 | F6: =IF(F$5<>"",OFFSET(Data!K$4,View!$B$25,$DS6),"") -> 0 | G6: =IF(G$5<>"",OFFSET(Data!L$4,View!$B$25,$DS6),"") -> 0 | H6: =IF(H$5<>"",OFFSET(Data!M$4,View!$B$25,$DS6),"") -> 0 | I6: =IF(I$5<>"",OFFSET(Data!N$4,View!$B$25,$DS6),"") -> 0 | J6: =IF(J$5<>"",OFFSET(Data!O$4,View!$B$25,$DS6),"") -> 0 | K6: =IF(K$5<>"",OFFSET(Data!P$4,View!$B$25,$DS6),"") -> 0 | L6: =IF(L$5<>"",OFFSET(Data!Q$4,View!$B$25,$DS6),"") -> 0 | M6: =IF(M$5<>"",OFFSET(Data!R$4,View!$B$25,$DS6),"") ->  | N6: =IF(N$5<>"",OFFSET(Data!S$4,View!$B$25,$DS6),"") ->  | O6: =IF(O$5<>"",OFFSET(Data!T$4,View!$B$25,$DS6),"") ->  | P6: =IF(P$5<>"",OFFSET(Data!U$4,View!$B$25,$DS6),"") ->  | Q6: =IF(Q$5<>"",OFFSET(Data!V$4,View!$B$25,$DS6),"") ->  | R6: =IF(R$5<>"",OFFSET(Data!W$4,View!$B$25,$DS6),"") ->  | S6: =IF(S$5<>"",OFFSET(Data!X$4,View!$B$25,$DS6),"") ->  | T6: =IF(T$5<>"",OFFSET(Data!Y$4,View!$B$25,$DS6),"") ->  | U6: =IF(U$5<>"",OFFSET(Data!Z$4,View!$B$25,$DS6),"") ->  | V6: =IF(V$5<>"",OFFSET(Data!AA$4,View!$B$25,$DS6),"") ->  | W6: =IF(W$5<>"",OFFSET(Data!AB$4,View!$B$25,$DS6),"") ->  | X6: =IF(X$5<>"",OFFSET(Data!AC$4,View!$B$25,$DS6),"") ->  | Y6: =IF(Y$5<>"",OFFSET(Data!AD$4,View!$B$25,$DS6),"") ->  | Z6: =IF(Z$5<>"",OFFSET(Data!AE$4,View!$B$25,$DS6),"") ->  | AA6: =IF(AA$5<>"",OFFSET(Data!AF$4,View!$B$25,$DS6),"") ->  | AB6: =IF(AB$5<>"",OFFSET(Data!AG$4,View!$B$25,$DS6),"") ->  | AC6: =IF(AC$5<>"",OFFSET(Data!AH$4,View!$B$25,$DS6),"") ->  | AD6: =IF(AD$5<>"",OFFSET(Data!AI$4,View!$B$25,$DS6),"") ->  | AE6: =IF(AE$5<>"",OFFSET(Data!AJ$4,View!$B$25,$DS6),"") ->  | AF6: =IF(AF$5<>"",OFFSET(Data!AK$4,View!$B$25,$DS6),"") ->  | AG6: =IF(AG$5<>"",OFFSET(Data!AL$4,View!$B$25,$DS6),"") ->  | AH6: =IF(AH$5<>"",OFFSET(Data!AM$4,View!$B$25,$DS6),"") ->  | AI6: =IF(AI$5<>"",OFFSET(Data!AN$4,View!$B$25,$DS6),"") ->  | AJ6: =IF(AJ$5<>"",OFFSET(Data!AO$4,View!$B$25,$DS6),"") ->  | AK6: =IF(AK$5<>"",OFFSET(Data!AP$4,View!$B$25,$DS6),"") ->  | AL6: =IF(AL$5<>"",OFFSET(Data!AQ$4,View!$B$25,$DS6),"") ->  | AM6: =IF(AM$5<>"",OFFSET(Data!AR$4,View!$B$25,$DS6),"") ->  | AN6: =IF(AN$5<>"",OFFSET(Data!AS$4,View!$B$25,$DS6),"") ->  | AO6: =IF(AO$5<>"",OFFSET(Data!AT$4,View!$B$25,$DS6),"") ->  | AP6: =IF(AP$5<>"",OFFSET(Data!AU$4,View!$B$25,$DS6),"") ->  | AQ6: =IF(AQ$5<>"",OFFSET(Data!AV$4,View!$B$25,$DS6),"") ->  | AR6: =IF(AR$5<>"",OFFSET(Data!AW$4,View!$B$25,$DS6),"") ->  | AS6: =IF(AS$5<>"",OFFSET(Data!AX$4,View!$B$25,$DS6),"") ->  | AT6: =IF(AT$5<>"",OFFSET(Data!AY$4,View!$B$25,$DS6),"") ->  | AU6: =IF(AU$5<>"",OFFSET(Data!AZ$4,View!$B$25,$DS6),"") ->  | AV6: =IF(AV$5<>"",OFFSET(Data!BA$4,View!$B$25,$DS6),"") ->  | AW6: =IF(AW$5<>"",OFFSET(Data!BB$4,View!$B$25,$DS6),"") ->  | AX6: =IF(AX$5<>"",OFFSET(Data!BC$4,View!$B$25,$DS6),"") ->  | AY6: =IF(AY$5<>"",OFFSET(Data!BD$4,View!$B$25,$DS6),"") ->  | AZ6: =IF(AZ$5<>"",OFFSET(Data!BE$4,View!$B$25,$DS6),"") ->  | BA6: =IF(BA$5<>"",OFFSET(Data!BF$4,View!$B$25,$DS6),"") ->  | BB6: =IF(BB$5<>"",OFFSET(Data!BG$4,View!$B$25,$DS6),"") ->  | BC6: =IF(BC$5<>"",OFFSET(Data!BH$4,View!$B$25,$DS6),"") ->  | BD6: =IF(BD$5<>"",OFFSET(Data!BI$4,View!$B$25,$DS6),"") ->  | BE6: =IF(BE$5<>"",OFFSET(Data!BJ$4,View!$B$25,$DS6),"") ->  | BF6: =IF(BF$5<>"",OFFSET(Data!BK$4,View!$B$25,$DS6),"") ->  | BG6: =IF(BG$5<>"",OFFSET(Data!BL$4,View!$B$25,$DS6),"") ->  | BH6: =IF(BH$5<>"",OFFSET(Data!BM$4,View!$B$25,$DS6),"") ->  | BI6: =IF(BI$5<>"",OFFSET(Data!BN$4,View!$B$25,$DS6),"") ->  | BJ6: =IF(BJ$5<>"",OFFSET(Data!BO$4,View!$B$25,$DS6),"") ->  | BK6: =IF(BK$5<>"",OFFSET(Data!BP$4,View!$B$25,$DS6),"") ->  | BL6: =IF(BL$5<>"",OFFSET(Data!BQ$4,View!$B$25,$DS6),"") ->  | BM6: =IF(BM$5<>"",OFFSET(Data!BR$4,View!$B$25,$DS6),"") ->  | BN6: =IF(BN$5<>"",OFFSET(Data!BS$4,View!$B$25,$DS6),"") ->  | BO6: =IF(BO$5<>"",OFFSET(Data!BT$4,View!$B$25,$DS6),"") ->  | BP6: =IF(BP$5<>"",OFFSET(Data!BU$4,View!$B$25,$DS6),"") ->  | BQ6: =IF(BQ$5<>"",OFFSET(Data!BV$4,View!$B$25,$DS6),"") ->  | BR6: =IF(BR$5<>"",OFFSET(Data!BW$4,View!$B$25,$DS6),"") ->  | BS6: =IF(BS$5<>"",OFFSET(Data!BX$4,View!$B$25,$DS6),"") ->  | BT6: =IF(BT$5<>"",OFFSET(Data!BY$4,View!$B$25,$DS6),"") ->  | BU6: =IF(BU$5<>"",OFFSET(Data!BZ$4,View!$B$25,$DS6),"") ->  | BV6: =IF(BV$5<>"",OFFSET(Data!CA$4,View!$B$25,$DS6),"") ->  | BW6: =IF(BW$5<>"",OFFSET(Data!CB$4,View!$B$25,$DS6),"") ->  | BX6: =IF(BX$5<>"",OFFSET(Data!CC$4,View!$B$25,$DS6),"") ->  | BY6: =IF(BY$5<>"",OFFSET(Data!CD$4,View!$B$25,$DS6),"") ->  | BZ6: =IF(BZ$5<>"",OFFSET(Data!CE$4,View!$B$25,$DS6),"") ->  | CA6: =IF(CA$5<>"",OFFSET(Data!CF$4,View!$B$25,$DS6),"") ->  | CB6: =IF(CB$5<>"",OFFSET(Data!CG$4,View!$B$25,$DS6),"") ->  | CC6: =IF(CC$5<>"",OFFSET(Data!CH$4,View!$B$25,$DS6),"") ->  | CD6: =IF(CD$5<>"",OFFSET(Data!CI$4,View!$B$25,$DS6),"") ->  | CE6: =IF(CE$5<>"",OFFSET(Data!CJ$4,View!$B$25,$DS6),"") ->  | CF6: =IF(CF$5<>"",OFFSET(Data!CK$4,View!$B$25,$DS6),"") ->  | CG6: =IF(CG$5<>"",OFFSET(Data!CL$4,View!$B$25,$DS6),"") ->  | CH6: =IF(CH$5<>"",OFFSET(Data!CM$4,View!$B$25,$DS6),"") ->  | CI6: =IF(CI$5<>"",OFFSET(Data!CN$4,View!$B$25,$DS6),"") ->  | CJ6: =IF(CJ$5<>"",OFFSET(Data!CO$4,View!$B$25,$DS6),"") ->  | CK6: =IF(CK$5<>"",OFFSET(Data!CP$4,View!$B$25,$DS6),"") ->  | CL6: =IF(CL$5<>"",OFFSET(Data!CQ$4,View!$B$25,$DS6),"") ->  | CM6: =IF(CM$5<>"",OFFSET(Data!CR$4,View!$B$25,$DS6),"") ->  | CN6: =IF(CN$5<>"",OFFSET(Data!CS$4,View!$B$25,$DS6),"") ->  | CO6: =IF(CO$5<>"",OFFSET(Data!CT$4,View!$B$25,$DS6),"") ->  | CP6: =IF(CP$5<>"",OFFSET(Data!CU$4,View!$B$25,$DS6),"") ->  | CQ6: =IF(CQ$5<>"",OFFSET(Data!CV$4,View!$B$25,$DS6),"") ->  | CR6: =IF(CR$5<>"",OFFSET(Data!CW$4,View!$B$25,$DS6),"") ->  | CS6: =IF(CS$5<>"",OFFSET(Data!CX$4,View!$B$25,$DS6),"") ->  | CT6: =IF(CT$5<>"",OFFSET(Data!CY$4,View!$B$25,$DS6),"") ->  | CU6: =IF(CU$5<>"",OFFSET(Data!CZ$4,View!$B$25,$DS6),"") ->  | CV6: =IF(CV$5<>"",OFFSET(Data!DA$4,View!$B$25,$DS6),"") ->  | CW6: =IF(CW$5<>"",OFFSET(Data!DB$4,View!$B$25,$DS6),"") ->  | CX6: =IF(CX$5<>"",OFFSET(Data!DC$4,View!$B$25,$DS6),"") ->  | CY6: =IF(CY$5<>"",OFFSET(Data!DD$4,View!$B$25,$DS6),"") ->  | CZ6: =IF(CZ$5<>"",OFFSET(Data!DE$4,View!$B$25,$DS6),"") ->  | DA6: =IF(DA$5<>"",OFFSET(Data!DF$4,View!$B$25,$DS6),"") ->  | DB6: =IF(DB$5<>"",OFFSET(Data!DG$4,View!$B$25,$DS6),"") ->  | DC6: =IF(DC$5<>"",OFFSET(Data!DH$4,View!$B$25,$DS6),"") ->  | DD6: =IF(DD$5<>"",OFFSET(Data!DI$4,View!$B$25,$DS6),"") ->  | DE6: =IF(DE$5<>"",OFFSET(Data!DJ$4,View!$B$25,$DS6),"") ->  | DF6: =IF(DF$5<>"",OFFSET(Data!DK$4,View!$B$25,$DS6),"") ->  | DG6: =IF(DG$5<>"",OFFSET(Data!DL$4,View!$B$25,$DS6),"") ->  | DH6: =IF(DH$5<>"",OFFSET(Data!DM$4,View!$B$25,$DS6),"") ->  | DI6: =IF(DI$5<>"",OFFSET(Data!DN$4,View!$B$25,$DS6),"") ->  | DJ6: =IF(DJ$5<>"",OFFSET(Data!DO$4,View!$B$25,$DS6),"") ->  | DK6: =IF(DK$5<>"",OFFSET(Data!DP$4,View!$B$25,$DS6),"") ->  | DL6: =IF(DL$5<>"",OFFSET(Data!DQ$4,View!$B$25,$DS6),"") ->  | DM6: =IF(DM$5<>"",OFFSET(Data!DR$4,View!$B$25,$DS6),"") ->  | DN6: =IF(DN$5<>"",OFFSET(Data!DS$4,View!$B$25,$DS6),"") ->  | DO6: =IF(DO$5<>"",OFFSET(Data!DT$4,View!$B$25,$DS6),"") ->  | DP6: =IF(DP$5<>"",OFFSET(Data!DU$4,View!$B$25,$DS6),"") ->  | DQ6: =IF(DQ$5<>"",OFFSET(Data!DV$4,View!$B$25,$DS6),"") ->  | DR6: =IF(DR$5<>"",OFFSET(Data!DW$4,View!$B$25,$DS6),"") ->  | DS6: =($C$41+1)*8 -> 8
A7: LAeq | B7: =IF(B$5<>"",OFFSET(Data!G$4,View!$B$25,$DS7),"") -> 0 | C7: =IF(C$5<>"",OFFSET(Data!H$4,View!$B$25,$DS7),"") -> 0 | D7: =IF(D$5<>"",OFFSET(Data!I$4,View!$B$25,$DS7),"") -> 0 | E7: =IF(E$5<>"",OFFSET(Data!J$4,View!$B$25,$DS7),"") -> 0 | F7: =IF(F$5<>"",OFFSET(Data!K$4,View!$B$25,$DS7),"") -> 0 | G7: =IF(G$5<>"",OFFSET(Data!L$4,View!$B$25,$DS7),"") -> 0 | H7: =IF(H$5<>"",OFFSET(Data!M$4,View!$B$25,$DS7),"") -> 0 | I7: =IF(I$5<>"",OFFSET(Data!N$4,View!$B$25,$DS7),"") -> 0 | J7: =IF(J$5<>"",OFFSET(Data!O$4,View!$B$25,$DS7),"") -> 0 | K7: =IF(K$5<>"",OFFSET(Data!P$4,View!$B$25,$DS7),"") -> 0 | L7: =IF(L$5<>"",OFFSET(Data!Q$4,View!$B$25,$DS7),"") -> 0 | M7: =IF(M$5<>"",OFFSET(Data!R$4,View!$B$25,$DS7),"") ->  | N7: =IF(N$5<>"",OFFSET(Data!S$4,View!$B$25,$DS7),"") ->  | O7: =IF(O$5<>"",OFFSET(Data!T$4,View!$B$25,$DS7),"") ->  | P7: =IF(P$5<>"",OFFSET(Data!U$4,View!$B$25,$DS7),"") ->  | Q7: =IF(Q$5<>"",OFFSET(Data!V$4,View!$B$25,$DS7),"") ->  | R7: =IF(R$5<>"",OFFSET(Data!W$4,View!$B$25,$DS7),"") ->  | S7: =IF(S$5<>"",OFFSET(Data!X$4,View!$B$25,$DS7),"") ->  | T7: =IF(T$5<>"",OFFSET(Data!Y$4,View!$B$25,$DS7),"") ->  | U7: =IF(U$5<>"",OFFSET(Data!Z$4,View!$B$25,$DS7),"") ->  | V7: =IF(V$5<>"",OFFSET(Data!AA$4,View!$B$25,$DS7),"") ->  | W7: =IF(W$5<>"",OFFSET(Data!AB$4,View!$B$25,$DS7),"") ->  | X7: =IF(X$5<>"",OFFSET(Data!AC$4,View!$B$25,$DS7),"") ->  | Y7: =IF(Y$5<>"",OFFSET(Data!AD$4,View!$B$25,$DS7),"") ->  | Z7: =IF(Z$5<>"",OFFSET(Data!AE$4,View!$B$25,$DS7),"") ->  | AA7: =IF(AA$5<>"",OFFSET(Data!AF$4,View!$B$25,$DS7),"") ->  | AB7: =IF(AB$5<>"",OFFSET(Data!AG$4,View!$B$25,$DS7),"") ->  | AC7: =IF(AC$5<>"",OFFSET(Data!AH$4,View!$B$25,$DS7),"") ->  | AD7: =IF(AD$5<>"",OFFSET(Data!AI$4,View!$B$25,$DS7),"") ->  | AE7: =IF(AE$5<>"",OFFSET(Data!AJ$4,View!$B$25,$DS7),"") ->  | AF7: =IF(AF$5<>"",OFFSET(Data!AK$4,View!$B$25,$DS7),"") ->  | AG7: =IF(AG$5<>"",OFFSET(Data!AL$4,View!$B$25,$DS7),"") ->  | AH7: =IF(AH$5<>"",OFFSET(Data!AM$4,View!$B$25,$DS7),"") ->  | AI7: =IF(AI$5<>"",OFFSET(Data!AN$4,View!$B$25,$DS7),"") ->  | AJ7: =IF(AJ$5<>"",OFFSET(Data!AO$4,View!$B$25,$DS7),"") ->  | AK7: =IF(AK$5<>"",OFFSET(Data!AP$4,View!$B$25,$DS7),"") ->  | AL7: =IF(AL$5<>"",OFFSET(Data!AQ$4,View!$B$25,$DS7),"") ->  | AM7: =IF(AM$5<>"",OFFSET(Data!AR$4,View!$B$25,$DS7),"") ->  | AN7: =IF(AN$5<>"",OFFSET(Data!AS$4,View!$B$25,$DS7),"") ->  | AO7: =IF(AO$5<>"",OFFSET(Data!AT$4,View!$B$25,$DS7),"") ->  | AP7: =IF(AP$5<>"",OFFSET(Data!AU$4,View!$B$25,$DS7),"") ->  | AQ7: =IF(AQ$5<>"",OFFSET(Data!AV$4,View!$B$25,$DS7),"") ->  | AR7: =IF(AR$5<>"",OFFSET(Data!AW$4,View!$B$25,$DS7),"") ->  | AS7: =IF(AS$5<>"",OFFSET(Data!AX$4,View!$B$25,$DS7),"") ->  | AT7: =IF(AT$5<>"",OFFSET(Data!AY$4,View!$B$25,$DS7),"") ->  | AU7: =IF(AU$5<>"",OFFSET(Data!AZ$4,View!$B$25,$DS7),"") ->  | AV7: =IF(AV$5<>"",OFFSET(Data!BA$4,View!$B$25,$DS7),"") ->  | AW7: =IF(AW$5<>"",OFFSET(Data!BB$4,View!$B$25,$DS7),"") ->  | AX7: =IF(AX$5<>"",OFFSET(Data!BC$4,View!$B$25,$DS7),"") ->  | AY7: =IF(AY$5<>"",OFFSET(Data!BD$4,View!$B$25,$DS7),"") ->  | AZ7: =IF(AZ$5<>"",OFFSET(Data!BE$4,View!$B$25,$DS7),"") ->  | BA7: =IF(BA$5<>"",OFFSET(Data!BF$4,View!$B$25,$DS7),"") ->  | BB7: =IF(BB$5<>"",OFFSET(Data!BG$4,View!$B$25,$DS7),"") ->  | BC7: =IF(BC$5<>"",OFFSET(Data!BH$4,View!$B$25,$DS7),"") ->  | BD7: =IF(BD$5<>"",OFFSET(Data!BI$4,View!$B$25,$DS7),"") ->  | BE7: =IF(BE$5<>"",OFFSET(Data!BJ$4,View!$B$25,$DS7),"") ->  | BF7: =IF(BF$5<>"",OFFSET(Data!BK$4,View!$B$25,$DS7),"") ->  | BG7: =IF(BG$5<>"",OFFSET(Data!BL$4,View!$B$25,$DS7),"") ->  | BH7: =IF(BH$5<>"",OFFSET(Data!BM$4,View!$B$25,$DS7),"") ->  | BI7: =IF(BI$5<>"",OFFSET(Data!BN$4,View!$B$25,$DS7),"") ->  | BJ7: =IF(BJ$5<>"",OFFSET(Data!BO$4,View!$B$25,$DS7),"") ->  | BK7: =IF(BK$5<>"",OFFSET(Data!BP$4,View!$B$25,$DS7),"") ->  | BL7: =IF(BL$5<>"",OFFSET(Data!BQ$4,View!$B$25,$DS7),"") ->  | BM7: =IF(BM$5<>"",OFFSET(Data!BR$4,View!$B$25,$DS7),"") ->  | BN7: =IF(BN$5<>"",OFFSET(Data!BS$4,View!$B$25,$DS7),"") ->  | BO7: =IF(BO$5<>"",OFFSET(Data!BT$4,View!$B$25,$DS7),"") ->  | BP7: =IF(BP$5<>"",OFFSET(Data!BU$4,View!$B$25,$DS7),"") ->  | BQ7: =IF(BQ$5<>"",OFFSET(Data!BV$4,View!$B$25,$DS7),"") ->  | BR7: =IF(BR$5<>"",OFFSET(Data!BW$4,View!$B$25,$DS7),"") ->  | BS7: =IF(BS$5<>"",OFFSET(Data!BX$4,View!$B$25,$DS7),"") ->  | BT7: =IF(BT$5<>"",OFFSET(Data!BY$4,View!$B$25,$DS7),"") ->  | BU7: =IF(BU$5<>"",OFFSET(Data!BZ$4,View!$B$25,$DS7),"") ->  | BV7: =IF(BV$5<>"",OFFSET(Data!CA$4,View!$B$25,$DS7),"") ->  | BW7: =IF(BW$5<>"",OFFSET(Data!CB$4,View!$B$25,$DS7),"") ->  | BX7: =IF(BX$5<>"",OFFSET(Data!CC$4,View!$B$25,$DS7),"") ->  | BY7: =IF(BY$5<>"",OFFSET(Data!CD$4,View!$B$25,$DS7),"") ->  | BZ7: =IF(BZ$5<>"",OFFSET(Data!CE$4,View!$B$25,$DS7),"") ->  | CA7: =IF(CA$5<>"",OFFSET(Data!CF$4,View!$B$25,$DS7),"") ->  | CB7: =IF(CB$5<>"",OFFSET(Data!CG$4,View!$B$25,$DS7),"") ->  | CC7: =IF(CC$5<>"",OFFSET(Data!CH$4,View!$B$25,$DS7),"") ->  | CD7: =IF(CD$5<>"",OFFSET(Data!CI$4,View!$B$25,$DS7),"") ->  | CE7: =IF(CE$5<>"",OFFSET(Data!CJ$4,View!$B$25,$DS7),"") ->  | CF7: =IF(CF$5<>"",OFFSET(Data!CK$4,View!$B$25,$DS7),"") ->  | CG7: =IF(CG$5<>"",OFFSET(Data!CL$4,View!$B$25,$DS7),"") ->  | CH7: =IF(CH$5<>"",OFFSET(Data!CM$4,View!$B$25,$DS7),"") ->  | CI7: =IF(CI$5<>"",OFFSET(Data!CN$4,View!$B$25,$DS7),"") ->  | CJ7: =IF(CJ$5<>"",OFFSET(Data!CO$4,View!$B$25,$DS7),"") ->  | CK7: =IF(CK$5<>"",OFFSET(Data!CP$4,View!$B$25,$DS7),"") ->  | CL7: =IF(CL$5<>"",OFFSET(Data!CQ$4,View!$B$25,$DS7),"") ->  | CM7: =IF(CM$5<>"",OFFSET(Data!CR$4,View!$B$25,$DS7),"") ->  | CN7: =IF(CN$5<>"",OFFSET(Data!CS$4,View!$B$25,$DS7),"") ->  | CO7: =IF(CO$5<>"",OFFSET(Data!CT$4,View!$B$25,$DS7),"") ->  | CP7: =IF(CP$5<>"",OFFSET(Data!CU$4,View!$B$25,$DS7),"") ->  | CQ7: =IF(CQ$5<>"",OFFSET(Data!CV$4,View!$B$25,$DS7),"") ->  | CR7: =IF(CR$5<>"",OFFSET(Data!CW$4,View!$B$25,$DS7),"") ->  | CS7: =IF(CS$5<>"",OFFSET(Data!CX$4,View!$B$25,$DS7),"") ->  | CT7: =IF(CT$5<>"",OFFSET(Data!CY$4,View!$B$25,$DS7),"") ->  | CU7: =IF(CU$5<>"",OFFSET(Data!CZ$4,View!$B$25,$DS7),"") ->  | CV7: =IF(CV$5<>"",OFFSET(Data!DA$4,View!$B$25,$DS7),"") ->  | CW7: =IF(CW$5<>"",OFFSET(Data!DB$4,View!$B$25,$DS7),"") ->  | CX7: =IF(CX$5<>"",OFFSET(Data!DC$4,View!$B$25,$DS7),"") ->  | CY7: =IF(CY$5<>"",OFFSET(Data!DD$4,View!$B$25,$DS7),"") ->  | CZ7: =IF(CZ$5<>"",OFFSET(Data!DE$4,View!$B$25,$DS7),"") ->  | DA7: =IF(DA$5<>"",OFFSET(Data!DF$4,View!$B$25,$DS7),"") ->  | DB7: =IF(DB$5<>"",OFFSET(Data!DG$4,View!$B$25,$DS7),"") ->  | DC7: =IF(DC$5<>"",OFFSET(Data!DH$4,View!$B$25,$DS7),"") ->  | DD7: =IF(DD$5<>"",OFFSET(Data!DI$4,View!$B$25,$DS7),"") ->  | DE7: =IF(DE$5<>"",OFFSET(Data!DJ$4,View!$B$25,$DS7),"") ->  | DF7: =IF(DF$5<>"",OFFSET(Data!DK$4,View!$B$25,$DS7),"") ->  | DG7: =IF(DG$5<>"",OFFSET(Data!DL$4,View!$B$25,$DS7),"") ->  | DH7: =IF(DH$5<>"",OFFSET(Data!DM$4,View!$B$25,$DS7),"") ->  | DI7: =IF(DI$5<>"",OFFSET(Data!DN$4,View!$B$25,$DS7),"") ->  | DJ7: =IF(DJ$5<>"",OFFSET(Data!DO$4,View!$B$25,$DS7),"") ->  | DK7: =IF(DK$5<>"",OFFSET(Data!DP$4,View!$B$25,$DS7),"") ->  | DL7: =IF(DL$5<>"",OFFSET(Data!DQ$4,View!$B$25,$DS7),"") ->  | DM7: =IF(DM$5<>"",OFFSET(Data!DR$4,View!$B$25,$DS7),"") ->  | DN7: =IF(DN$5<>"",OFFSET(Data!DS$4,View!$B$25,$DS7),"") ->  | DO7: =IF(DO$5<>"",OFFSET(Data!DT$4,View!$B$25,$DS7),"") ->  | DP7: =IF(DP$5<>"",OFFSET(Data!DU$4,View!$B$25,$DS7),"") ->  | DQ7: =IF(DQ$5<>"",OFFSET(Data!DV$4,View!$B$25,$DS7),"") ->  | DR7: =IF(DR$5<>"",OFFSET(Data!DW$4,View!$B$25,$DS7),"") ->  | DS7: =($C$41+1)*0 -> 0
A8: LCeq | B8: =IF(B$5<>"",OFFSET(Data!G$4,View!$B$25,$DS8),"") -> 0 | C8: =IF(C$5<>"",OFFSET(Data!H$4,View!$B$25,$DS8),"") -> 0 | D8: =IF(D$5<>"",OFFSET(Data!I$4,View!$B$25,$DS8),"") -> 0 | E8: =IF(E$5<>"",OFFSET(Data!J$4,View!$B$25,$DS8),"") -> 0 | F8: =IF(F$5<>"",OFFSET(Data!K$4,View!$B$25,$DS8),"") -> 0 | G8: =IF(G$5<>"",OFFSET(Data!L$4,View!$B$25,$DS8),"") -> 0 | H8: =IF(H$5<>"",OFFSET(Data!M$4,View!$B$25,$DS8),"") -> 0 | I8: =IF(I$5<>"",OFFSET(Data!N$4,View!$B$25,$DS8),"") -> 0 | J8: =IF(J$5<>"",OFFSET(Data!O$4,View!$B$25,$DS8),"") -> 0 | K8: =IF(K$5<>"",OFFSET(Data!P$4,View!$B$25,$DS8),"") -> 0 | L8: =IF(L$5<>"",OFFSET(Data!Q$4,View!$B$25,$DS8),"") -> 0 | M8: =IF(M$5<>"",OFFSET(Data!R$4,View!$B$25,$DS8),"") ->  | N8: =IF(N$5<>"",OFFSET(Data!S$4,View!$B$25,$DS8),"") ->  | O8: =IF(O$5<>"",OFFSET(Data!T$4,View!$B$25,$DS8),"") ->  | P8: =IF(P$5<>"",OFFSET(Data!U$4,View!$B$25,$DS8),"") ->  | Q8: =IF(Q$5<>"",OFFSET(Data!V$4,View!$B$25,$DS8),"") ->  | R8: =IF(R$5<>"",OFFSET(Data!W$4,View!$B$25,$DS8),"") ->  | S8: =IF(S$5<>"",OFFSET(Data!X$4,View!$B$25,$DS8),"") ->  | T8: =IF(T$5<>"",OFFSET(Data!Y$4,View!$B$25,$DS8),"") ->  | U8: =IF(U$5<>"",OFFSET(Data!Z$4,View!$B$25,$DS8),"") ->  | V8: =IF(V$5<>"",OFFSET(Data!AA$4,View!$B$25,$DS8),"") ->  | W8: =IF(W$5<>"",OFFSET(Data!AB$4,View!$B$25,$DS8),"") ->  | X8: =IF(X$5<>"",OFFSET(Data!AC$4,View!$B$25,$DS8),"") ->  | Y8: =IF(Y$5<>"",OFFSET(Data!AD$4,View!$B$25,$DS8),"") ->  | Z8: =IF(Z$5<>"",OFFSET(Data!AE$4,View!$B$25,$DS8),"") ->  | AA8: =IF(AA$5<>"",OFFSET(Data!AF$4,View!$B$25,$DS8),"") ->  | AB8: =IF(AB$5<>"",OFFSET(Data!AG$4,View!$B$25,$DS8),"") ->  | AC8: =IF(AC$5<>"",OFFSET(Data!AH$4,View!$B$25,$DS8),"") ->  | AD8: =IF(AD$5<>"",OFFSET(Data!AI$4,View!$B$25,$DS8),"") ->  | AE8: =IF(AE$5<>"",OFFSET(Data!AJ$4,View!$B$25,$DS8),"") ->  | AF8: =IF(AF$5<>"",OFFSET(Data!AK$4,View!$B$25,$DS8),"") ->  | AG8: =IF(AG$5<>"",OFFSET(Data!AL$4,View!$B$25,$DS8),"") ->  | AH8: =IF(AH$5<>"",OFFSET(Data!AM$4,View!$B$25,$DS8),"") ->  | AI8: =IF(AI$5<>"",OFFSET(Data!AN$4,View!$B$25,$DS8),"") ->  | AJ8: =IF(AJ$5<>"",OFFSET(Data!AO$4,View!$B$25,$DS8),"") ->  | AK8: =IF(AK$5<>"",OFFSET(Data!AP$4,View!$B$25,$DS8),"") ->  | AL8: =IF(AL$5<>"",OFFSET(Data!AQ$4,View!$B$25,$DS8),"") ->  | AM8: =IF(AM$5<>"",OFFSET(Data!AR$4,View!$B$25,$DS8),"") ->  | AN8: =IF(AN$5<>"",OFFSET(Data!AS$4,View!$B$25,$DS8),"") ->  | AO8: =IF(AO$5<>"",OFFSET(Data!AT$4,View!$B$25,$DS8),"") ->  | AP8: =IF(AP$5<>"",OFFSET(Data!AU$4,View!$B$25,$DS8),"") ->  | AQ8: =IF(AQ$5<>"",OFFSET(Data!AV$4,View!$B$25,$DS8),"") ->  | AR8: =IF(AR$5<>"",OFFSET(Data!AW$4,View!$B$25,$DS8),"") ->  | AS8: =IF(AS$5<>"",OFFSET(Data!AX$4,View!$B$25,$DS8),"") ->  | AT8: =IF(AT$5<>"",OFFSET(Data!AY$4,View!$B$25,$DS8),"") ->  | AU8: =IF(AU$5<>"",OFFSET(Data!AZ$4,View!$B$25,$DS8),"") ->  | AV8: =IF(AV$5<>"",OFFSET(Data!BA$4,View!$B$25,$DS8),"") ->  | AW8: =IF(AW$5<>"",OFFSET(Data!BB$4,View!$B$25,$DS8),"") ->  | AX8: =IF(AX$5<>"",OFFSET(Data!BC$4,View!$B$25,$DS8),"") ->  | AY8: =IF(AY$5<>"",OFFSET(Data!BD$4,View!$B$25,$DS8),"") ->  | AZ8: =IF(AZ$5<>"",OFFSET(Data!BE$4,View!$B$25,$DS8),"") ->  | BA8: =IF(BA$5<>"",OFFSET(Data!BF$4,View!$B$25,$DS8),"") ->  | BB8: =IF(BB$5<>"",OFFSET(Data!BG$4,View!$B$25,$DS8),"") ->  | BC8: =IF(BC$5<>"",OFFSET(Data!BH$4,View!$B$25,$DS8),"") ->  | BD8: =IF(BD$5<>"",OFFSET(Data!BI$4,View!$B$25,$DS8),"") ->  | BE8: =IF(BE$5<>"",OFFSET(Data!BJ$4,View!$B$25,$DS8),"") ->  | BF8: =IF(BF$5<>"",OFFSET(Data!BK$4,View!$B$25,$DS8),"") ->  | BG8: =IF(BG$5<>"",OFFSET(Data!BL$4,View!$B$25,$DS8),"") ->  | BH8: =IF(BH$5<>"",OFFSET(Data!BM$4,View!$B$25,$DS8),"") ->  | BI8: =IF(BI$5<>"",OFFSET(Data!BN$4,View!$B$25,$DS8),"") ->  | BJ8: =IF(BJ$5<>"",OFFSET(Data!BO$4,View!$B$25,$DS8),"") ->  | BK8: =IF(BK$5<>"",OFFSET(Data!BP$4,View!$B$25,$DS8),"") ->  | BL8: =IF(BL$5<>"",OFFSET(Data!BQ$4,View!$B$25,$DS8),"") ->  | BM8: =IF(BM$5<>"",OFFSET(Data!BR$4,View!$B$25,$DS8),"") ->  | BN8: =IF(BN$5<>"",OFFSET(Data!BS$4,View!$B$25,$DS8),"") ->  | BO8: =IF(BO$5<>"",OFFSET(Data!BT$4,View!$B$25,$DS8),"") ->  | BP8: =IF(BP$5<>"",OFFSET(Data!BU$4,View!$B$25,$DS8),"") ->  | BQ8: =IF(BQ$5<>"",OFFSET(Data!BV$4,View!$B$25,$DS8),"") ->  | BR8: =IF(BR$5<>"",OFFSET(Data!BW$4,View!$B$25,$DS8),"") ->  | BS8: =IF(BS$5<>"",OFFSET(Data!BX$4,View!$B$25,$DS8),"") ->  | BT8: =IF(BT$5<>"",OFFSET(Data!BY$4,View!$B$25,$DS8),"") ->  | BU8: =IF(BU$5<>"",OFFSET(Data!BZ$4,View!$B$25,$DS8),"") ->  | BV8: =IF(BV$5<>"",OFFSET(Data!CA$4,View!$B$25,$DS8),"") ->  | BW8: =IF(BW$5<>"",OFFSET(Data!CB$4,View!$B$25,$DS8),"") ->  | BX8: =IF(BX$5<>"",OFFSET(Data!CC$4,View!$B$25,$DS8),"") ->  | BY8: =IF(BY$5<>"",OFFSET(Data!CD$4,View!$B$25,$DS8),"") ->  | BZ8: =IF(BZ$5<>"",OFFSET(Data!CE$4,View!$B$25,$DS8),"") ->  | CA8: =IF(CA$5<>"",OFFSET(Data!CF$4,View!$B$25,$DS8),"") ->  | CB8: =IF(CB$5<>"",OFFSET(Data!CG$4,View!$B$25,$DS8),"") ->  | CC8: =IF(CC$5<>"",OFFSET(Data!CH$4,View!$B$25,$DS8),"") ->  | CD8: =IF(CD$5<>"",OFFSET(Data!CI$4,View!$B$25,$DS8),"") ->  | CE8: =IF(CE$5<>"",OFFSET(Data!CJ$4,View!$B$25,$DS8),"") ->  | CF8: =IF(CF$5<>"",OFFSET(Data!CK$4,View!$B$25,$DS8),"") ->  | CG8: =IF(CG$5<>"",OFFSET(Data!CL$4,View!$B$25,$DS8),"") ->  | CH8: =IF(CH$5<>"",OFFSET(Data!CM$4,View!$B$25,$DS8),"") ->  | CI8: =IF(CI$5<>"",OFFSET(Data!CN$4,View!$B$25,$DS8),"") ->  | CJ8: =IF(CJ$5<>"",OFFSET(Data!CO$4,View!$B$25,$DS8),"") ->  | CK8: =IF(CK$5<>"",OFFSET(Data!CP$4,View!$B$25,$DS8),"") ->  | CL8: =IF(CL$5<>"",OFFSET(Data!CQ$4,View!$B$25,$DS8),"") ->  | CM8: =IF(CM$5<>"",OFFSET(Data!CR$4,View!$B$25,$DS8),"") ->  | CN8: =IF(CN$5<>"",OFFSET(Data!CS$4,View!$B$25,$DS8),"") ->  | CO8: =IF(CO$5<>"",OFFSET(Data!CT$4,View!$B$25,$DS8),"") ->  | CP8: =IF(CP$5<>"",OFFSET(Data!CU$4,View!$B$25,$DS8),"") ->  | CQ8: =IF(CQ$5<>"",OFFSET(Data!CV$4,View!$B$25,$DS8),"") ->  | CR8: =IF(CR$5<>"",OFFSET(Data!CW$4,View!$B$25,$DS8),"") ->  | CS8: =IF(CS$5<>"",OFFSET(Data!CX$4,View!$B$25,$DS8),"") ->  | CT8: =IF(CT$5<>"",OFFSET(Data!CY$4,View!$B$25,$DS8),"") ->  | CU8: =IF(CU$5<>"",OFFSET(Data!CZ$4,View!$B$25,$DS8),"") ->  | CV8: =IF(CV$5<>"",OFFSET(Data!DA$4,View!$B$25,$DS8),"") ->  | CW8: =IF(CW$5<>"",OFFSET(Data!DB$4,View!$B$25,$DS8),"") ->  | CX8: =IF(CX$5<>"",OFFSET(Data!DC$4,View!$B$25,$DS8),"") ->  | CY8: =IF(CY$5<>"",OFFSET(Data!DD$4,View!$B$25,$DS8),"") ->  | CZ8: =IF(CZ$5<>"",OFFSET(Data!DE$4,View!$B$25,$DS8),"") ->  | DA8: =IF(DA$5<>"",OFFSET(Data!DF$4,View!$B$25,$DS8),"") ->  | DB8: =IF(DB$5<>"",OFFSET(Data!DG$4,View!$B$25,$DS8),"") ->  | DC8: =IF(DC$5<>"",OFFSET(Data!DH$4,View!$B$25,$DS8),"") ->  | DD8: =IF(DD$5<>"",OFFSET(Data!DI$4,View!$B$25,$DS8),"") ->  | DE8: =IF(DE$5<>"",OFFSET(Data!DJ$4,View!$B$25,$DS8),"") ->  | DF8: =IF(DF$5<>"",OFFSET(Data!DK$4,View!$B$25,$DS8),"") ->  | DG8: =IF(DG$5<>"",OFFSET(Data!DL$4,View!$B$25,$DS8),"") ->  | DH8: =IF(DH$5<>"",OFFSET(Data!DM$4,View!$B$25,$DS8),"") ->  | DI8: =IF(DI$5<>"",OFFSET(Data!DN$4,View!$B$25,$DS8),"") ->  | DJ8: =IF(DJ$5<>"",OFFSET(Data!DO$4,View!$B$25,$DS8),"") ->  | DK8: =IF(DK$5<>"",OFFSET(Data!DP$4,View!$B$25,$DS8),"") ->  | DL8: =IF(DL$5<>"",OFFSET(Data!DQ$4,View!$B$25,$DS8),"") ->  | DM8: =IF(DM$5<>"",OFFSET(Data!DR$4,View!$B$25,$DS8),"") ->  | DN8: =IF(DN$5<>"",OFFSET(Data!DS$4,View!$B$25,$DS8),"") ->  | DO8: =IF(DO$5<>"",OFFSET(Data!DT$4,View!$B$25,$DS8),"") ->  | DP8: =IF(DP$5<>"",OFFSET(Data!DU$4,View!$B$25,$DS8),"") ->  | DQ8: =IF(DQ$5<>"",OFFSET(Data!DV$4,View!$B$25,$DS8),"") ->  | DR8: =IF(DR$5<>"",OFFSET(Data!DW$4,View!$B$25,$DS8),"") ->  | DS8: =($C$41+1)*4 -> 4
A10: LZfmax | B10: =IF(B$5<>"",OFFSET(Data!G$4,View!$B$25,$DS10),"") -> 0 | C10: =IF(C$5<>"",OFFSET(Data!H$4,View!$B$25,$DS10),"") -> 0 | D10: =IF(D$5<>"",OFFSET(Data!I$4,View!$B$25,$DS10),"") -> 0 | E10: =IF(E$5<>"",OFFSET(Data!J$4,View!$B$25,$DS10),"") -> 0 | F10: =IF(F$5<>"",OFFSET(Data!K$4,View!$B$25,$DS10),"") -> 0 | G10: =IF(G$5<>"",OFFSET(Data!L$4,View!$B$25,$DS10),"") -> 0 | H10: =IF(H$5<>"",OFFSET(Data!M$4,View!$B$25,$DS10),"") -> 0 | I10: =IF(I$5<>"",OFFSET(Data!N$4,View!$B$25,$DS10),"") -> 0 | J10: =IF(J$5<>"",OFFSET(Data!O$4,View!$B$25,$DS10),"") -> 0 | K10: =IF(K$5<>"",OFFSET(Data!P$4,View!$B$25,$DS10),"") -> 0 | L10: =IF(L$5<>"",OFFSET(Data!Q$4,View!$B$25,$DS10),"") -> 0 | M10: =IF(M$5<>"",OFFSET(Data!R$4,View!$B$25,$DS10),"") ->  | N10: =IF(N$5<>"",OFFSET(Data!S$4,View!$B$25,$DS10),"") ->  | O10: =IF(O$5<>"",OFFSET(Data!T$4,View!$B$25,$DS10),"") ->  | P10: =IF(P$5<>"",OFFSET(Data!U$4,View!$B$25,$DS10),"") ->  | Q10: =IF(Q$5<>"",OFFSET(Data!V$4,View!$B$25,$DS10),"") ->  | R10: =IF(R$5<>"",OFFSET(Data!W$4,View!$B$25,$DS10),"") ->  | S10: =IF(S$5<>"",OFFSET(Data!X$4,View!$B$25,$DS10),"") ->  | T10: =IF(T$5<>"",OFFSET(Data!Y$4,View!$B$25,$DS10),"") ->  | U10: =IF(U$5<>"",OFFSET(Data!Z$4,View!$B$25,$DS10),"") ->  | V10: =IF(V$5<>"",OFFSET(Data!AA$4,View!$B$25,$DS10),"") ->  | W10: =IF(W$5<>"",OFFSET(Data!AB$4,View!$B$25,$DS10),"") ->  | X10: =IF(X$5<>"",OFFSET(Data!AC$4,View!$B$25,$DS10),"") ->  | Y10: =IF(Y$5<>"",OFFSET(Data!AD$4,View!$B$25,$DS10),"") ->  | Z10: =IF(Z$5<>"",OFFSET(Data!AE$4,View!$B$25,$DS10),"") ->  | AA10: =IF(AA$5<>"",OFFSET(Data!AF$4,View!$B$25,$DS10),"") ->  | AB10: =IF(AB$5<>"",OFFSET(Data!AG$4,View!$B$25,$DS10),"") ->  | AC10: =IF(AC$5<>"",OFFSET(Data!AH$4,View!$B$25,$DS10),"") ->  | AD10: =IF(AD$5<>"",OFFSET(Data!AI$4,View!$B$25,$DS10),"") ->  | AE10: =IF(AE$5<>"",OFFSET(Data!AJ$4,View!$B$25,$DS10),"") ->  | AF10: =IF(AF$5<>"",OFFSET(Data!AK$4,View!$B$25,$DS10),"") ->  | AG10: =IF(AG$5<>"",OFFSET(Data!AL$4,View!$B$25,$DS10),"") ->  | AH10: =IF(AH$5<>"",OFFSET(Data!AM$4,View!$B$25,$DS10),"") ->  | AI10: =IF(AI$5<>"",OFFSET(Data!AN$4,View!$B$25,$DS10),"") ->  | AJ10: =IF(AJ$5<>"",OFFSET(Data!AO$4,View!$B$25,$DS10),"") ->  | AK10: =IF(AK$5<>"",OFFSET(Data!AP$4,View!$B$25,$DS10),"") ->  | AL10: =IF(AL$5<>"",OFFSET(Data!AQ$4,View!$B$25,$DS10),"") ->  | AM10: =IF(AM$5<>"",OFFSET(Data!AR$4,View!$B$25,$DS10),"") ->  | AN10: =IF(AN$5<>"",OFFSET(Data!AS$4,View!$B$25,$DS10),"") ->  | AO10: =IF(AO$5<>"",OFFSET(Data!AT$4,View!$B$25,$DS10),"") ->  | AP10: =IF(AP$5<>"",OFFSET(Data!AU$4,View!$B$25,$DS10),"") ->  | AQ10: =IF(AQ$5<>"",OFFSET(Data!AV$4,View!$B$25,$DS10),"") ->  | AR10: =IF(AR$5<>"",OFFSET(Data!AW$4,View!$B$25,$DS10),"") ->  | AS10: =IF(AS$5<>"",OFFSET(Data!AX$4,View!$B$25,$DS10),"") ->  | AT10: =IF(AT$5<>"",OFFSET(Data!AY$4,View!$B$25,$DS10),"") ->  | AU10: =IF(AU$5<>"",OFFSET(Data!AZ$4,View!$B$25,$DS10),"") ->  | AV10: =IF(AV$5<>"",OFFSET(Data!BA$4,View!$B$25,$DS10),"") ->  | AW10: =IF(AW$5<>"",OFFSET(Data!BB$4,View!$B$25,$DS10),"") ->  | AX10: =IF(AX$5<>"",OFFSET(Data!BC$4,View!$B$25,$DS10),"") ->  | AY10: =IF(AY$5<>"",OFFSET(Data!BD$4,View!$B$25,$DS10),"") ->  | AZ10: =IF(AZ$5<>"",OFFSET(Data!BE$4,View!$B$25,$DS10),"") ->  | BA10: =IF(BA$5<>"",OFFSET(Data!BF$4,View!$B$25,$DS10),"") ->  | BB10: =IF(BB$5<>"",OFFSET(Data!BG$4,View!$B$25,$DS10),"") ->  | BC10: =IF(BC$5<>"",OFFSET(Data!BH$4,View!$B$25,$DS10),"") ->  | BD10: =IF(BD$5<>"",OFFSET(Data!BI$4,View!$B$25,$DS10),"") ->  | BE10: =IF(BE$5<>"",OFFSET(Data!BJ$4,View!$B$25,$DS10),"") ->  | BF10: =IF(BF$5<>"",OFFSET(Data!BK$4,View!$B$25,$DS10),"") ->  | BG10: =IF(BG$5<>"",OFFSET(Data!BL$4,View!$B$25,$DS10),"") ->  | BH10: =IF(BH$5<>"",OFFSET(Data!BM$4,View!$B$25,$DS10),"") ->  | BI10: =IF(BI$5<>"",OFFSET(Data!BN$4,View!$B$25,$DS10),"") ->  | BJ10: =IF(BJ$5<>"",OFFSET(Data!BO$4,View!$B$25,$DS10),"") ->  | BK10: =IF(BK$5<>"",OFFSET(Data!BP$4,View!$B$25,$DS10),"") ->  | BL10: =IF(BL$5<>"",OFFSET(Data!BQ$4,View!$B$25,$DS10),"") ->  | BM10: =IF(BM$5<>"",OFFSET(Data!BR$4,View!$B$25,$DS10),"") ->  | BN10: =IF(BN$5<>"",OFFSET(Data!BS$4,View!$B$25,$DS10),"") ->  | BO10: =IF(BO$5<>"",OFFSET(Data!BT$4,View!$B$25,$DS10),"") ->  | BP10: =IF(BP$5<>"",OFFSET(Data!BU$4,View!$B$25,$DS10),"") ->  | BQ10: =IF(BQ$5<>"",OFFSET(Data!BV$4,View!$B$25,$DS10),"") ->  | BR10: =IF(BR$5<>"",OFFSET(Data!BW$4,View!$B$25,$DS10),"") ->  | BS10: =IF(BS$5<>"",OFFSET(Data!BX$4,View!$B$25,$DS10),"") ->  | BT10: =IF(BT$5<>"",OFFSET(Data!BY$4,View!$B$25,$DS10),"") ->  | BU10: =IF(BU$5<>"",OFFSET(Data!BZ$4,View!$B$25,$DS10),"") ->  | BV10: =IF(BV$5<>"",OFFSET(Data!CA$4,View!$B$25,$DS10),"") ->  | BW10: =IF(BW$5<>"",OFFSET(Data!CB$4,View!$B$25,$DS10),"") ->  | BX10: =IF(BX$5<>"",OFFSET(Data!CC$4,View!$B$25,$DS10),"") ->  | BY10: =IF(BY$5<>"",OFFSET(Data!CD$4,View!$B$25,$DS10),"") ->  | BZ10: =IF(BZ$5<>"",OFFSET(Data!CE$4,View!$B$25,$DS10),"") ->  | CA10: =IF(CA$5<>"",OFFSET(Data!CF$4,View!$B$25,$DS10),"") ->  | CB10: =IF(CB$5<>"",OFFSET(Data!CG$4,View!$B$25,$DS10),"") ->  | CC10: =IF(CC$5<>"",OFFSET(Data!CH$4,View!$B$25,$DS10),"") ->  | CD10: =IF(CD$5<>"",OFFSET(Data!CI$4,View!$B$25,$DS10),"") ->  | CE10: =IF(CE$5<>"",OFFSET(Data!CJ$4,View!$B$25,$DS10),"") ->  | CF10: =IF(CF$5<>"",OFFSET(Data!CK$4,View!$B$25,$DS10),"") ->  | CG10: =IF(CG$5<>"",OFFSET(Data!CL$4,View!$B$25,$DS10),"") ->  | CH10: =IF(CH$5<>"",OFFSET(Data!CM$4,View!$B$25,$DS10),"") ->  | CI10: =IF(CI$5<>"",OFFSET(Data!CN$4,View!$B$25,$DS10),"") ->  | CJ10: =IF(CJ$5<>"",OFFSET(Data!CO$4,View!$B$25,$DS10),"") ->  | CK10: =IF(CK$5<>"",OFFSET(Data!CP$4,View!$B$25,$DS10),"") ->  | CL10: =IF(CL$5<>"",OFFSET(Data!CQ$4,View!$B$25,$DS10),"") ->  | CM10: =IF(CM$5<>"",OFFSET(Data!CR$4,View!$B$25,$DS10),"") ->  | CN10: =IF(CN$5<>"",OFFSET(Data!CS$4,View!$B$25,$DS10),"") ->  | CO10: =IF(CO$5<>"",OFFSET(Data!CT$4,View!$B$25,$DS10),"") ->  | CP10: =IF(CP$5<>"",OFFSET(Data!CU$4,View!$B$25,$DS10),"") ->  | CQ10: =IF(CQ$5<>"",OFFSET(Data!CV$4,View!$B$25,$DS10),"") ->  | CR10: =IF(CR$5<>"",OFFSET(Data!CW$4,View!$B$25,$DS10),"") ->  | CS10: =IF(CS$5<>"",OFFSET(Data!CX$4,View!$B$25,$DS10),"") ->  | CT10: =IF(CT$5<>"",OFFSET(Data!CY$4,View!$B$25,$DS10),"") ->  | CU10: =IF(CU$5<>"",OFFSET(Data!CZ$4,View!$B$25,$DS10),"") ->  | CV10: =IF(CV$5<>"",OFFSET(Data!DA$4,View!$B$25,$DS10),"") ->  | CW10: =IF(CW$5<>"",OFFSET(Data!DB$4,View!$B$25,$DS10),"") ->  | CX10: =IF(CX$5<>"",OFFSET(Data!DC$4,View!$B$25,$DS10),"") ->  | CY10: =IF(CY$5<>"",OFFSET(Data!DD$4,View!$B$25,$DS10),"") ->  | CZ10: =IF(CZ$5<>"",OFFSET(Data!DE$4,View!$B$25,$DS10),"") ->  | DA10: =IF(DA$5<>"",OFFSET(Data!DF$4,View!$B$25,$DS10),"") ->  | DB10: =IF(DB$5<>"",OFFSET(Data!DG$4,View!$B$25,$DS10),"") ->  | DC10: =IF(DC$5<>"",OFFSET(Data!DH$4,View!$B$25,$DS10),"") ->  | DD10: =IF(DD$5<>"",OFFSET(Data!DI$4,View!$B$25,$DS10),"") ->  | DE10: =IF(DE$5<>"",OFFSET(Data!DJ$4,View!$B$25,$DS10),"") ->  | DF10: =IF(DF$5<>"",OFFSET(Data!DK$4,View!$B$25,$DS10),"") ->  | DG10: =IF(DG$5<>"",OFFSET(Data!DL$4,View!$B$25,$DS10),"") ->  | DH10: =IF(DH$5<>"",OFFSET(Data!DM$4,View!$B$25,$DS10),"") ->  | DI10: =IF(DI$5<>"",OFFSET(Data!DN$4,View!$B$25,$DS10),"") ->  | DJ10: =IF(DJ$5<>"",OFFSET(Data!DO$4,View!$B$25,$DS10),"") ->  | DK10: =IF(DK$5<>"",OFFSET(Data!DP$4,View!$B$25,$DS10),"") ->  | DL10: =IF(DL$5<>"",OFFSET(Data!DQ$4,View!$B$25,$DS10),"") ->  | DM10: =IF(DM$5<>"",OFFSET(Data!DR$4,View!$B$25,$DS10),"") ->  | DN10: =IF(DN$5<>"",OFFSET(Data!DS$4,View!$B$25,$DS10),"") ->  | DO10: =IF(DO$5<>"",OFFSET(Data!DT$4,View!$B$25,$DS10),"") ->  | DP10: =IF(DP$5<>"",OFFSET(Data!DU$4,View!$B$25,$DS10),"") ->  | DQ10: =IF(DQ$5<>"",OFFSET(Data!DV$4,View!$B$25,$DS10),"") ->  | DR10: =IF(DR$5<>"",OFFSET(Data!DW$4,View!$B$25,$DS10),"") ->  | DS10: =($C$41+1)*9 -> 9
A11: LAfmax | B11: =IF(B$5<>"",OFFSET(Data!G$4,View!$B$25,$DS11),"") -> 0 | C11: =IF(C$5<>"",OFFSET(Data!H$4,View!$B$25,$DS11),"") -> 0 | D11: =IF(D$5<>"",OFFSET(Data!I$4,View!$B$25,$DS11),"") -> 0 | E11: =IF(E$5<>"",OFFSET(Data!J$4,View!$B$25,$DS11),"") -> 0 | F11: =IF(F$5<>"",OFFSET(Data!K$4,View!$B$25,$DS11),"") -> 0 | G11: =IF(G$5<>"",OFFSET(Data!L$4,View!$B$25,$DS11),"") -> 0 | H11: =IF(H$5<>"",OFFSET(Data!M$4,View!$B$25,$DS11),"") -> 0 | I11: =IF(I$5<>"",OFFSET(Data!N$4,View!$B$25,$DS11),"") -> 0 | J11: =IF(J$5<>"",OFFSET(Data!O$4,View!$B$25,$DS11),"") -> 0 | K11: =IF(K$5<>"",OFFSET(Data!P$4,View!$B$25,$DS11),"") -> 0 | L11: =IF(L$5<>"",OFFSET(Data!Q$4,View!$B$25,$DS11),"") -> 0 | M11: =IF(M$5<>"",OFFSET(Data!R$4,View!$B$25,$DS11),"") ->  | N11: =IF(N$5<>"",OFFSET(Data!S$4,View!$B$25,$DS11),"") ->  | O11: =IF(O$5<>"",OFFSET(Data!T$4,View!$B$25,$DS11),"") ->  | P11: =IF(P$5<>"",OFFSET(Data!U$4,View!$B$25,$DS11),"") ->  | Q11: =IF(Q$5<>"",OFFSET(Data!V$4,View!$B$25,$DS11),"") ->  | R11: =IF(R$5<>"",OFFSET(Data!W$4,View!$B$25,$DS11),"") ->  | S11: =IF(S$5<>"",OFFSET(Data!X$4,View!$B$25,$DS11),"") ->  | T11: =IF(T$5<>"",OFFSET(Data!Y$4,View!$B$25,$DS11),"") ->  | U11: =IF(U$5<>"",OFFSET(Data!Z$4,View!$B$25,$DS11),"") ->  | V11: =IF(V$5<>"",OFFSET(Data!AA$4,View!$B$25,$DS11),"") ->  | W11: =IF(W$5<>"",OFFSET(Data!AB$4,View!$B$25,$DS11),"") ->  | X11: =IF(X$5<>"",OFFSET(Data!AC$4,View!$B$25,$DS11),"") ->  | Y11: =IF(Y$5<>"",OFFSET(Data!AD$4,View!$B$25,$DS11),"") ->  | Z11: =IF(Z$5<>"",OFFSET(Data!AE$4,View!$B$25,$DS11),"") ->  | AA11: =IF(AA$5<>"",OFFSET(Data!AF$4,View!$B$25,$DS11),"") ->  | AB11: =IF(AB$5<>"",OFFSET(Data!AG$4,View!$B$25,$DS11),"") ->  | AC11: =IF(AC$5<>"",OFFSET(Data!AH$4,View!$B$25,$DS11),"") ->  | AD11: =IF(AD$5<>"",OFFSET(Data!AI$4,View!$B$25,$DS11),"") ->  | AE11: =IF(AE$5<>"",OFFSET(Data!AJ$4,View!$B$25,$DS11),"") ->  | AF11: =IF(AF$5<>"",OFFSET(Data!AK$4,View!$B$25,$DS11),"") ->  | AG11: =IF(AG$5<>"",OFFSET(Data!AL$4,View!$B$25,$DS11),"") ->  | AH11: =IF(AH$5<>"",OFFSET(Data!AM$4,View!$B$25,$DS11),"") ->  | AI11: =IF(AI$5<>"",OFFSET(Data!AN$4,View!$B$25,$DS11),"") ->  | AJ11: =IF(AJ$5<>"",OFFSET(Data!AO$4,View!$B$25,$DS11),"") ->  | AK11: =IF(AK$5<>"",OFFSET(Data!AP$4,View!$B$25,$DS11),"") ->  | AL11: =IF(AL$5<>"",OFFSET(Data!AQ$4,View!$B$25,$DS11),"") ->  | AM11: =IF(AM$5<>"",OFFSET(Data!AR$4,View!$B$25,$DS11),"") ->  | AN11: =IF(AN$5<>"",OFFSET(Data!AS$4,View!$B$25,$DS11),"") ->  | AO11: =IF(AO$5<>"",OFFSET(Data!AT$4,View!$B$25,$DS11),"") ->  | AP11: =IF(AP$5<>"",OFFSET(Data!AU$4,View!$B$25,$DS11),"") ->  | AQ11: =IF(AQ$5<>"",OFFSET(Data!AV$4,View!$B$25,$DS11),"") ->  | AR11: =IF(AR$5<>"",OFFSET(Data!AW$4,View!$B$25,$DS11),"") ->  | AS11: =IF(AS$5<>"",OFFSET(Data!AX$4,View!$B$25,$DS11),"") ->  | AT11: =IF(AT$5<>"",OFFSET(Data!AY$4,View!$B$25,$DS11),"") ->  | AU11: =IF(AU$5<>"",OFFSET(Data!AZ$4,View!$B$25,$DS11),"") ->  | AV11: =IF(AV$5<>"",OFFSET(Data!BA$4,View!$B$25,$DS11),"") ->  | AW11: =IF(AW$5<>"",OFFSET(Data!BB$4,View!$B$25,$DS11),"") ->  | AX11: =IF(AX$5<>"",OFFSET(Data!BC$4,View!$B$25,$DS11),"") ->  | AY11: =IF(AY$5<>"",OFFSET(Data!BD$4,View!$B$25,$DS11),"") ->  | AZ11: =IF(AZ$5<>"",OFFSET(Data!BE$4,View!$B$25,$DS11),"") ->  | BA11: =IF(BA$5<>"",OFFSET(Data!BF$4,View!$B$25,$DS11),"") ->  | BB11: =IF(BB$5<>"",OFFSET(Data!BG$4,View!$B$25,$DS11),"") ->  | BC11: =IF(BC$5<>"",OFFSET(Data!BH$4,View!$B$25,$DS11),"") ->  | BD11: =IF(BD$5<>"",OFFSET(Data!BI$4,View!$B$25,$DS11),"") ->  | BE11: =IF(BE$5<>"",OFFSET(Data!BJ$4,View!$B$25,$DS11),"") ->  | BF11: =IF(BF$5<>"",OFFSET(Data!BK$4,View!$B$25,$DS11),"") ->  | BG11: =IF(BG$5<>"",OFFSET(Data!BL$4,View!$B$25,$DS11),"") ->  | BH11: =IF(BH$5<>"",OFFSET(Data!BM$4,View!$B$25,$DS11),"") ->  | BI11: =IF(BI$5<>"",OFFSET(Data!BN$4,View!$B$25,$DS11),"") ->  | BJ11: =IF(BJ$5<>"",OFFSET(Data!BO$4,View!$B$25,$DS11),"") ->  | BK11: =IF(BK$5<>"",OFFSET(Data!BP$4,View!$B$25,$DS11),"") ->  | BL11: =IF(BL$5<>"",OFFSET(Data!BQ$4,View!$B$25,$DS11),"") ->  | BM11: =IF(BM$5<>"",OFFSET(Data!BR$4,View!$B$25,$DS11),"") ->  | BN11: =IF(BN$5<>"",OFFSET(Data!BS$4,View!$B$25,$DS11),"") ->  | BO11: =IF(BO$5<>"",OFFSET(Data!BT$4,View!$B$25,$DS11),"") ->  | BP11: =IF(BP$5<>"",OFFSET(Data!BU$4,View!$B$25,$DS11),"") ->  | BQ11: =IF(BQ$5<>"",OFFSET(Data!BV$4,View!$B$25,$DS11),"") ->  | BR11: =IF(BR$5<>"",OFFSET(Data!BW$4,View!$B$25,$DS11),"") ->  | BS11: =IF(BS$5<>"",OFFSET(Data!BX$4,View!$B$25,$DS11),"") ->  | BT11: =IF(BT$5<>"",OFFSET(Data!BY$4,View!$B$25,$DS11),"") ->  | BU11: =IF(BU$5<>"",OFFSET(Data!BZ$4,View!$B$25,$DS11),"") ->  | BV11: =IF(BV$5<>"",OFFSET(Data!CA$4,View!$B$25,$DS11),"") ->  | BW11: =IF(BW$5<>"",OFFSET(Data!CB$4,View!$B$25,$DS11),"") ->  | BX11: =IF(BX$5<>"",OFFSET(Data!CC$4,View!$B$25,$DS11),"") ->  | BY11: =IF(BY$5<>"",OFFSET(Data!CD$4,View!$B$25,$DS11),"") ->  | BZ11: =IF(BZ$5<>"",OFFSET(Data!CE$4,View!$B$25,$DS11),"") ->  | CA11: =IF(CA$5<>"",OFFSET(Data!CF$4,View!$B$25,$DS11),"") ->  | CB11: =IF(CB$5<>"",OFFSET(Data!CG$4,View!$B$25,$DS11),"") ->  | CC11: =IF(CC$5<>"",OFFSET(Data!CH$4,View!$B$25,$DS11),"") ->  | CD11: =IF(CD$5<>"",OFFSET(Data!CI$4,View!$B$25,$DS11),"") ->  | CE11: =IF(CE$5<>"",OFFSET(Data!CJ$4,View!$B$25,$DS11),"") ->  | CF11: =IF(CF$5<>"",OFFSET(Data!CK$4,View!$B$25,$DS11),"") ->  | CG11: =IF(CG$5<>"",OFFSET(Data!CL$4,View!$B$25,$DS11),"") ->  | CH11: =IF(CH$5<>"",OFFSET(Data!CM$4,View!$B$25,$DS11),"") ->  | CI11: =IF(CI$5<>"",OFFSET(Data!CN$4,View!$B$25,$DS11),"") ->  | CJ11: =IF(CJ$5<>"",OFFSET(Data!CO$4,View!$B$25,$DS11),"") ->  | CK11: =IF(CK$5<>"",OFFSET(Data!CP$4,View!$B$25,$DS11),"") ->  | CL11: =IF(CL$5<>"",OFFSET(Data!CQ$4,View!$B$25,$DS11),"") ->  | CM11: =IF(CM$5<>"",OFFSET(Data!CR$4,View!$B$25,$DS11),"") ->  | CN11: =IF(CN$5<>"",OFFSET(Data!CS$4,View!$B$25,$DS11),"") ->  | CO11: =IF(CO$5<>"",OFFSET(Data!CT$4,View!$B$25,$DS11),"") ->  | CP11: =IF(CP$5<>"",OFFSET(Data!CU$4,View!$B$25,$DS11),"") ->  | CQ11: =IF(CQ$5<>"",OFFSET(Data!CV$4,View!$B$25,$DS11),"") ->  | CR11: =IF(CR$5<>"",OFFSET(Data!CW$4,View!$B$25,$DS11),"") ->  | CS11: =IF(CS$5<>"",OFFSET(Data!CX$4,View!$B$25,$DS11),"") ->  | CT11: =IF(CT$5<>"",OFFSET(Data!CY$4,View!$B$25,$DS11),"") ->  | CU11: =IF(CU$5<>"",OFFSET(Data!CZ$4,View!$B$25,$DS11),"") ->  | CV11: =IF(CV$5<>"",OFFSET(Data!DA$4,View!$B$25,$DS11),"") ->  | CW11: =IF(CW$5<>"",OFFSET(Data!DB$4,View!$B$25,$DS11),"") ->  | CX11: =IF(CX$5<>"",OFFSET(Data!DC$4,View!$B$25,$DS11),"") ->  | CY11: =IF(CY$5<>"",OFFSET(Data!DD$4,View!$B$25,$DS11),"") ->  | CZ11: =IF(CZ$5<>"",OFFSET(Data!DE$4,View!$B$25,$DS11),"") ->  | DA11: =IF(DA$5<>"",OFFSET(Data!DF$4,View!$B$25,$DS11),"") ->  | DB11: =IF(DB$5<>"",OFFSET(Data!DG$4,View!$B$25,$DS11),"") ->  | DC11: =IF(DC$5<>"",OFFSET(Data!DH$4,View!$B$25,$DS11),"") ->  | DD11: =IF(DD$5<>"",OFFSET(Data!DI$4,View!$B$25,$DS11),"") ->  | DE11: =IF(DE$5<>"",OFFSET(Data!DJ$4,View!$B$25,$DS11),"") ->  | DF11: =IF(DF$5<>"",OFFSET(Data!DK$4,View!$B$25,$DS11),"") ->  | DG11: =IF(DG$5<>"",OFFSET(Data!DL$4,View!$B$25,$DS11),"") ->  | DH11: =IF(DH$5<>"",OFFSET(Data!DM$4,View!$B$25,$DS11),"") ->  | DI11: =IF(DI$5<>"",OFFSET(Data!DN$4,View!$B$25,$DS11),"") ->  | DJ11: =IF(DJ$5<>"",OFFSET(Data!DO$4,View!$B$25,$DS11),"") ->  | DK11: =IF(DK$5<>"",OFFSET(Data!DP$4,View!$B$25,$DS11),"") ->  | DL11: =IF(DL$5<>"",OFFSET(Data!DQ$4,View!$B$25,$DS11),"") ->  | DM11: =IF(DM$5<>"",OFFSET(Data!DR$4,View!$B$25,$DS11),"") ->  | DN11: =IF(DN$5<>"",OFFSET(Data!DS$4,View!$B$25,$DS11),"") ->  | DO11: =IF(DO$5<>"",OFFSET(Data!DT$4,View!$B$25,$DS11),"") ->  | DP11: =IF(DP$5<>"",OFFSET(Data!DU$4,View!$B$25,$DS11),"") ->  | DQ11: =IF(DQ$5<>"",OFFSET(Data!DV$4,View!$B$25,$DS11),"") ->  | DR11: =IF(DR$5<>"",OFFSET(Data!DW$4,View!$B$25,$DS11),"") ->  | DS11: =($C$41+1)*1 -> 1
A12: LCfmax | B12: =IF(B$5<>"",OFFSET(Data!G$4,View!$B$25,$DS12),"") -> 0 | C12: =IF(C$5<>"",OFFSET(Data!H$4,View!$B$25,$DS12),"") -> 0 | D12: =IF(D$5<>"",OFFSET(Data!I$4,View!$B$25,$DS12),"") -> 0 | E12: =IF(E$5<>"",OFFSET(Data!J$4,View!$B$25,$DS12),"") -> 0 | F12: =IF(F$5<>"",OFFSET(Data!K$4,View!$B$25,$DS12),"") -> 0 | G12: =IF(G$5<>"",OFFSET(Data!L$4,View!$B$25,$DS12),"") -> 0 | H12: =IF(H$5<>"",OFFSET(Data!M$4,View!$B$25,$DS12),"") -> 0 | I12: =IF(I$5<>"",OFFSET(Data!N$4,View!$B$25,$DS12),"") -> 0 | J12: =IF(J$5<>"",OFFSET(Data!O$4,View!$B$25,$DS12),"") -> 0 | K12: =IF(K$5<>"",OFFSET(Data!P$4,View!$B$25,$DS12),"") -> 0 | L12: =IF(L$5<>"",OFFSET(Data!Q$4,View!$B$25,$DS12),"") -> 0 | M12: =IF(M$5<>"",OFFSET(Data!R$4,View!$B$25,$DS12),"") ->  | N12: =IF(N$5<>"",OFFSET(Data!S$4,View!$B$25,$DS12),"") ->  | O12: =IF(O$5<>"",OFFSET(Data!T$4,View!$B$25,$DS12),"") ->  | P12: =IF(P$5<>"",OFFSET(Data!U$4,View!$B$25,$DS12),"") ->  | Q12: =IF(Q$5<>"",OFFSET(Data!V$4,View!$B$25,$DS12),"") ->  | R12: =IF(R$5<>"",OFFSET(Data!W$4,View!$B$25,$DS12),"") ->  | S12: =IF(S$5<>"",OFFSET(Data!X$4,View!$B$25,$DS12),"") ->  | T12: =IF(T$5<>"",OFFSET(Data!Y$4,View!$B$25,$DS12),"") ->  | U12: =IF(U$5<>"",OFFSET(Data!Z$4,View!$B$25,$DS12),"") ->  | V12: =IF(V$5<>"",OFFSET(Data!AA$4,View!$B$25,$DS12),"") ->  | W12: =IF(W$5<>"",OFFSET(Data!AB$4,View!$B$25,$DS12),"") ->  | X12: =IF(X$5<>"",OFFSET(Data!AC$4,View!$B$25,$DS12),"") ->  | Y12: =IF(Y$5<>"",OFFSET(Data!AD$4,View!$B$25,$DS12),"") ->  | Z12: =IF(Z$5<>"",OFFSET(Data!AE$4,View!$B$25,$DS12),"") ->  | AA12: =IF(AA$5<>"",OFFSET(Data!AF$4,View!$B$25,$DS12),"") ->  | AB12: =IF(AB$5<>"",OFFSET(Data!AG$4,View!$B$25,$DS12),"") ->  | AC12: =IF(AC$5<>"",OFFSET(Data!AH$4,View!$B$25,$DS12),"") ->  | AD12: =IF(AD$5<>"",OFFSET(Data!AI$4,View!$B$25,$DS12),"") ->  | AE12: =IF(AE$5<>"",OFFSET(Data!AJ$4,View!$B$25,$DS12),"") ->  | AF12: =IF(AF$5<>"",OFFSET(Data!AK$4,View!$B$25,$DS12),"") ->  | AG12: =IF(AG$5<>"",OFFSET(Data!AL$4,View!$B$25,$DS12),"") ->  | AH12: =IF(AH$5<>"",OFFSET(Data!AM$4,View!$B$25,$DS12),"") ->  | AI12: =IF(AI$5<>"",OFFSET(Data!AN$4,View!$B$25,$DS12),"") ->  | AJ12: =IF(AJ$5<>"",OFFSET(Data!AO$4,View!$B$25,$DS12),"") ->  | AK12: =IF(AK$5<>"",OFFSET(Data!AP$4,View!$B$25,$DS12),"") ->  | AL12: =IF(AL$5<>"",OFFSET(Data!AQ$4,View!$B$25,$DS12),"") ->  | AM12: =IF(AM$5<>"",OFFSET(Data!AR$4,View!$B$25,$DS12),"") ->  | AN12: =IF(AN$5<>"",OFFSET(Data!AS$4,View!$B$25,$DS12),"") ->  | AO12: =IF(AO$5<>"",OFFSET(Data!AT$4,View!$B$25,$DS12),"") ->  | AP12: =IF(AP$5<>"",OFFSET(Data!AU$4,View!$B$25,$DS12),"") ->  | AQ12: =IF(AQ$5<>"",OFFSET(Data!AV$4,View!$B$25,$DS12),"") ->  | AR12: =IF(AR$5<>"",OFFSET(Data!AW$4,View!$B$25,$DS12),"") ->  | AS12: =IF(AS$5<>"",OFFSET(Data!AX$4,View!$B$25,$DS12),"") ->  | AT12: =IF(AT$5<>"",OFFSET(Data!AY$4,View!$B$25,$DS12),"") ->  | AU12: =IF(AU$5<>"",OFFSET(Data!AZ$4,View!$B$25,$DS12),"") ->  | AV12: =IF(AV$5<>"",OFFSET(Data!BA$4,View!$B$25,$DS12),"") ->  | AW12: =IF(AW$5<>"",OFFSET(Data!BB$4,View!$B$25,$DS12),"") ->  | AX12: =IF(AX$5<>"",OFFSET(Data!BC$4,View!$B$25,$DS12),"") ->  | AY12: =IF(AY$5<>"",OFFSET(Data!BD$4,View!$B$25,$DS12),"") ->  | AZ12: =IF(AZ$5<>"",OFFSET(Data!BE$4,View!$B$25,$DS12),"") ->  | BA12: =IF(BA$5<>"",OFFSET(Data!BF$4,View!$B$25,$DS12),"") ->  | BB12: =IF(BB$5<>"",OFFSET(Data!BG$4,View!$B$25,$DS12),"") ->  | BC12: =IF(BC$5<>"",OFFSET(Data!BH$4,View!$B$25,$DS12),"") ->  | BD12: =IF(BD$5<>"",OFFSET(Data!BI$4,View!$B$25,$DS12),"") ->  | BE12: =IF(BE$5<>"",OFFSET(Data!BJ$4,View!$B$25,$DS12),"") ->  | BF12: =IF(BF$5<>"",OFFSET(Data!BK$4,View!$B$25,$DS12),"") ->  | BG12: =IF(BG$5<>"",OFFSET(Data!BL$4,View!$B$25,$DS12),"") ->  | BH12: =IF(BH$5<>"",OFFSET(Data!BM$4,View!$B$25,$DS12),"") ->  | BI12: =IF(BI$5<>"",OFFSET(Data!BN$4,View!$B$25,$DS12),"") ->  | BJ12: =IF(BJ$5<>"",OFFSET(Data!BO$4,View!$B$25,$DS12),"") ->  | BK12: =IF(BK$5<>"",OFFSET(Data!BP$4,View!$B$25,$DS12),"") ->  | BL12: =IF(BL$5<>"",OFFSET(Data!BQ$4,View!$B$25,$DS12),"") ->  | BM12: =IF(BM$5<>"",OFFSET(Data!BR$4,View!$B$25,$DS12),"") ->  | BN12: =IF(BN$5<>"",OFFSET(Data!BS$4,View!$B$25,$DS12),"") ->  | BO12: =IF(BO$5<>"",OFFSET(Data!BT$4,View!$B$25,$DS12),"") ->  | BP12: =IF(BP$5<>"",OFFSET(Data!BU$4,View!$B$25,$DS12),"") ->  | BQ12: =IF(BQ$5<>"",OFFSET(Data!BV$4,View!$B$25,$DS12),"") ->  | BR12: =IF(BR$5<>"",OFFSET(Data!BW$4,View!$B$25,$DS12),"") ->  | BS12: =IF(BS$5<>"",OFFSET(Data!BX$4,View!$B$25,$DS12),"") ->  | BT12: =IF(BT$5<>"",OFFSET(Data!BY$4,View!$B$25,$DS12),"") ->  | BU12: =IF(BU$5<>"",OFFSET(Data!BZ$4,View!$B$25,$DS12),"") ->  | BV12: =IF(BV$5<>"",OFFSET(Data!CA$4,View!$B$25,$DS12),"") ->  | BW12: =IF(BW$5<>"",OFFSET(Data!CB$4,View!$B$25,$DS12),"") ->  | BX12: =IF(BX$5<>"",OFFSET(Data!CC$4,View!$B$25,$DS12),"") ->  | BY12: =IF(BY$5<>"",OFFSET(Data!CD$4,View!$B$25,$DS12),"") ->  | BZ12: =IF(BZ$5<>"",OFFSET(Data!CE$4,View!$B$25,$DS12),"") ->  | CA12: =IF(CA$5<>"",OFFSET(Data!CF$4,View!$B$25,$DS12),"") ->  | CB12: =IF(CB$5<>"",OFFSET(Data!CG$4,View!$B$25,$DS12),"") ->  | CC12: =IF(CC$5<>"",OFFSET(Data!CH$4,View!$B$25,$DS12),"") ->  | CD12: =IF(CD$5<>"",OFFSET(Data!CI$4,View!$B$25,$DS12),"") ->  | CE12: =IF(CE$5<>"",OFFSET(Data!CJ$4,View!$B$25,$DS12),"") ->  | CF12: =IF(CF$5<>"",OFFSET(Data!CK$4,View!$B$25,$DS12),"") ->  | CG12: =IF(CG$5<>"",OFFSET(Data!CL$4,View!$B$25,$DS12),"") ->  | CH12: =IF(CH$5<>"",OFFSET(Data!CM$4,View!$B$25,$DS12),"") ->  | CI12: =IF(CI$5<>"",OFFSET(Data!CN$4,View!$B$25,$DS12),"") ->  | CJ12: =IF(CJ$5<>"",OFFSET(Data!CO$4,View!$B$25,$DS12),"") ->  | CK12: =IF(CK$5<>"",OFFSET(Data!CP$4,View!$B$25,$DS12),"") ->  | CL12: =IF(CL$5<>"",OFFSET(Data!CQ$4,View!$B$25,$DS12),"") ->  | CM12: =IF(CM$5<>"",OFFSET(Data!CR$4,View!$B$25,$DS12),"") ->  | CN12: =IF(CN$5<>"",OFFSET(Data!CS$4,View!$B$25,$DS12),"") ->  | CO12: =IF(CO$5<>"",OFFSET(Data!CT$4,View!$B$25,$DS12),"") ->  | CP12: =IF(CP$5<>"",OFFSET(Data!CU$4,View!$B$25,$DS12),"") ->  | CQ12: =IF(CQ$5<>"",OFFSET(Data!CV$4,View!$B$25,$DS12),"") ->  | CR12: =IF(CR$5<>"",OFFSET(Data!CW$4,View!$B$25,$DS12),"") ->  | CS12: =IF(CS$5<>"",OFFSET(Data!CX$4,View!$B$25,$DS12),"") ->  | CT12: =IF(CT$5<>"",OFFSET(Data!CY$4,View!$B$25,$DS12),"") ->  | CU12: =IF(CU$5<>"",OFFSET(Data!CZ$4,View!$B$25,$DS12),"") ->  | CV12: =IF(CV$5<>"",OFFSET(Data!DA$4,View!$B$25,$DS12),"") ->  | CW12: =IF(CW$5<>"",OFFSET(Data!DB$4,View!$B$25,$DS12),"") ->  | CX12: =IF(CX$5<>"",OFFSET(Data!DC$4,View!$B$25,$DS12),"") ->  | CY12: =IF(CY$5<>"",OFFSET(Data!DD$4,View!$B$25,$DS12),"") ->  | CZ12: =IF(CZ$5<>"",OFFSET(Data!DE$4,View!$B$25,$DS12),"") ->  | DA12: =IF(DA$5<>"",OFFSET(Data!DF$4,View!$B$25,$DS12),"") ->  | DB12: =IF(DB$5<>"",OFFSET(Data!DG$4,View!$B$25,$DS12),"") ->  | DC12: =IF(DC$5<>"",OFFSET(Data!DH$4,View!$B$25,$DS12),"") ->  | DD12: =IF(DD$5<>"",OFFSET(Data!DI$4,View!$B$25,$DS12),"") ->  | DE12: =IF(DE$5<>"",OFFSET(Data!DJ$4,View!$B$25,$DS12),"") ->  | DF12: =IF(DF$5<>"",OFFSET(Data!DK$4,View!$B$25,$DS12),"") ->  | DG12: =IF(DG$5<>"",OFFSET(Data!DL$4,View!$B$25,$DS12),"") ->  | DH12: =IF(DH$5<>"",OFFSET(Data!DM$4,View!$B$25,$DS12),"") ->  | DI12: =IF(DI$5<>"",OFFSET(Data!DN$4,View!$B$25,$DS12),"") ->  | DJ12: =IF(DJ$5<>"",OFFSET(Data!DO$4,View!$B$25,$DS12),"") ->  | DK12: =IF(DK$5<>"",OFFSET(Data!DP$4,View!$B$25,$DS12),"") ->  | DL12: =IF(DL$5<>"",OFFSET(Data!DQ$4,View!$B$25,$DS12),"") ->  | DM12: =IF(DM$5<>"",OFFSET(Data!DR$4,View!$B$25,$DS12),"") ->  | DN12: =IF(DN$5<>"",OFFSET(Data!DS$4,View!$B$25,$DS12),"") ->  | DO12: =IF(DO$5<>"",OFFSET(Data!DT$4,View!$B$25,$DS12),"") ->  | DP12: =IF(DP$5<>"",OFFSET(Data!DU$4,View!$B$25,$DS12),"") ->  | DQ12: =IF(DQ$5<>"",OFFSET(Data!DV$4,View!$B$25,$DS12),"") ->  | DR12: =IF(DR$5<>"",OFFSET(Data!DW$4,View!$B$25,$DS12),"") ->  | DS12: =($C$41+1)*5 -> 5
A14: LZsmax | B14: =IF(B$5<>"",OFFSET(Data!G$4,View!$B$25,$DS14),"") -> 0 | C14: =IF(C$5<>"",OFFSET(Data!H$4,View!$B$25,$DS14),"") -> 0 | D14: =IF(D$5<>"",OFFSET(Data!I$4,View!$B$25,$DS14),"") -> 0 | E14: =IF(E$5<>"",OFFSET(Data!J$4,View!$B$25,$DS14),"") -> 0 | F14: =IF(F$5<>"",OFFSET(Data!K$4,View!$B$25,$DS14),"") -> 0 | G14: =IF(G$5<>"",OFFSET(Data!L$4,View!$B$25,$DS14),"") -> 0 | H14: =IF(H$5<>"",OFFSET(Data!M$4,View!$B$25,$DS14),"") -> 0 | I14: =IF(I$5<>"",OFFSET(Data!N$4,View!$B$25,$DS14),"") -> 0 | J14: =IF(J$5<>"",OFFSET(Data!O$4,View!$B$25,$DS14),"") -> 0 | K14: =IF(K$5<>"",OFFSET(Data!P$4,View!$B$25,$DS14),"") -> 0 | L14: =IF(L$5<>"",OFFSET(Data!Q$4,View!$B$25,$DS14),"") -> 0 | M14: =IF(M$5<>"",OFFSET(Data!R$4,View!$B$25,$DS14),"") ->  | N14: =IF(N$5<>"",OFFSET(Data!S$4,View!$B$25,$DS14),"") ->  | O14: =IF(O$5<>"",OFFSET(Data!T$4,View!$B$25,$DS14),"") ->  | P14: =IF(P$5<>"",OFFSET(Data!U$4,View!$B$25,$DS14),"") ->  | Q14: =IF(Q$5<>"",OFFSET(Data!V$4,View!$B$25,$DS14),"") ->  | R14: =IF(R$5<>"",OFFSET(Data!W$4,View!$B$25,$DS14),"") ->  | S14: =IF(S$5<>"",OFFSET(Data!X$4,View!$B$25,$DS14),"") ->  | T14: =IF(T$5<>"",OFFSET(Data!Y$4,View!$B$25,$DS14),"") ->  | U14: =IF(U$5<>"",OFFSET(Data!Z$4,View!$B$25,$DS14),"") ->  | V14: =IF(V$5<>"",OFFSET(Data!AA$4,View!$B$25,$DS14),"") ->  | W14: =IF(W$5<>"",OFFSET(Data!AB$4,View!$B$25,$DS14),"") ->  | X14: =IF(X$5<>"",OFFSET(Data!AC$4,View!$B$25,$DS14),"") ->  | Y14: =IF(Y$5<>"",OFFSET(Data!AD$4,View!$B$25,$DS14),"") ->  | Z14: =IF(Z$5<>"",OFFSET(Data!AE$4,View!$B$25,$DS14),"") ->  | AA14: =IF(AA$5<>"",OFFSET(Data!AF$4,View!$B$25,$DS14),"") ->  | AB14: =IF(AB$5<>"",OFFSET(Data!AG$4,View!$B$25,$DS14),"") ->  | AC14: =IF(AC$5<>"",OFFSET(Data!AH$4,View!$B$25,$DS14),"") ->  | AD14: =IF(AD$5<>"",OFFSET(Data!AI$4,View!$B$25,$DS14),"") ->  | AE14: =IF(AE$5<>"",OFFSET(Data!AJ$4,View!$B$25,$DS14),"") ->  | AF14: =IF(AF$5<>"",OFFSET(Data!AK$4,View!$B$25,$DS14),"") ->  | AG14: =IF(AG$5<>"",OFFSET(Data!AL$4,View!$B$25,$DS14),"") ->  | AH14: =IF(AH$5<>"",OFFSET(Data!AM$4,View!$B$25,$DS14),"") ->  | AI14: =IF(AI$5<>"",OFFSET(Data!AN$4,View!$B$25,$DS14),"") ->  | AJ14: =IF(AJ$5<>"",OFFSET(Data!AO$4,View!$B$25,$DS14),"") ->  | AK14: =IF(AK$5<>"",OFFSET(Data!AP$4,View!$B$25,$DS14),"") ->  | AL14: =IF(AL$5<>"",OFFSET(Data!AQ$4,View!$B$25,$DS14),"") ->  | AM14: =IF(AM$5<>"",OFFSET(Data!AR$4,View!$B$25,$DS14),"") ->  | AN14: =IF(AN$5<>"",OFFSET(Data!AS$4,View!$B$25,$DS14),"") ->  | AO14: =IF(AO$5<>"",OFFSET(Data!AT$4,View!$B$25,$DS14),"") ->  | AP14: =IF(AP$5<>"",OFFSET(Data!AU$4,View!$B$25,$DS14),"") ->  | AQ14: =IF(AQ$5<>"",OFFSET(Data!AV$4,View!$B$25,$DS14),"") ->  | AR14: =IF(AR$5<>"",OFFSET(Data!AW$4,View!$B$25,$DS14),"") ->  | AS14: =IF(AS$5<>"",OFFSET(Data!AX$4,View!$B$25,$DS14),"") ->  | AT14: =IF(AT$5<>"",OFFSET(Data!AY$4,View!$B$25,$DS14),"") ->  | AU14: =IF(AU$5<>"",OFFSET(Data!AZ$4,View!$B$25,$DS14),"") ->  | AV14: =IF(AV$5<>"",OFFSET(Data!BA$4,View!$B$25,$DS14),"") ->  | AW14: =IF(AW$5<>"",OFFSET(Data!BB$4,View!$B$25,$DS14),"") ->  | AX14: =IF(AX$5<>"",OFFSET(Data!BC$4,View!$B$25,$DS14),"") ->  | AY14: =IF(AY$5<>"",OFFSET(Data!BD$4,View!$B$25,$DS14),"") ->  | AZ14: =IF(AZ$5<>"",OFFSET(Data!BE$4,View!$B$25,$DS14),"") ->  | BA14: =IF(BA$5<>"",OFFSET(Data!BF$4,View!$B$25,$DS14),"") ->  | BB14: =IF(BB$5<>"",OFFSET(Data!BG$4,View!$B$25,$DS14),"") ->  | BC14: =IF(BC$5<>"",OFFSET(Data!BH$4,View!$B$25,$DS14),"") ->  | BD14: =IF(BD$5<>"",OFFSET(Data!BI$4,View!$B$25,$DS14),"") ->  | BE14: =IF(BE$5<>"",OFFSET(Data!BJ$4,View!$B$25,$DS14),"") ->  | BF14: =IF(BF$5<>"",OFFSET(Data!BK$4,View!$B$25,$DS14),"") ->  | BG14: =IF(BG$5<>"",OFFSET(Data!BL$4,View!$B$25,$DS14),"") ->  | BH14: =IF(BH$5<>"",OFFSET(Data!BM$4,View!$B$25,$DS14),"") ->  | BI14: =IF(BI$5<>"",OFFSET(Data!BN$4,View!$B$25,$DS14),"") ->  | BJ14: =IF(BJ$5<>"",OFFSET(Data!BO$4,View!$B$25,$DS14),"") ->  | BK14: =IF(BK$5<>"",OFFSET(Data!BP$4,View!$B$25,$DS14),"") ->  | BL14: =IF(BL$5<>"",OFFSET(Data!BQ$4,View!$B$25,$DS14),"") ->  | BM14: =IF(BM$5<>"",OFFSET(Data!BR$4,View!$B$25,$DS14),"") ->  | BN14: =IF(BN$5<>"",OFFSET(Data!BS$4,View!$B$25,$DS14),"") ->  | BO14: =IF(BO$5<>"",OFFSET(Data!BT$4,View!$B$25,$DS14),"") ->  | BP14: =IF(BP$5<>"",OFFSET(Data!BU$4,View!$B$25,$DS14),"") ->  | BQ14: =IF(BQ$5<>"",OFFSET(Data!BV$4,View!$B$25,$DS14),"") ->  | BR14: =IF(BR$5<>"",OFFSET(Data!BW$4,View!$B$25,$DS14),"") ->  | BS14: =IF(BS$5<>"",OFFSET(Data!BX$4,View!$B$25,$DS14),"") ->  | BT14: =IF(BT$5<>"",OFFSET(Data!BY$4,View!$B$25,$DS14),"") ->  | BU14: =IF(BU$5<>"",OFFSET(Data!BZ$4,View!$B$25,$DS14),"") ->  | BV14: =IF(BV$5<>"",OFFSET(Data!CA$4,View!$B$25,$DS14),"") ->  | BW14: =IF(BW$5<>"",OFFSET(Data!CB$4,View!$B$25,$DS14),"") ->  | BX14: =IF(BX$5<>"",OFFSET(Data!CC$4,View!$B$25,$DS14),"") ->  | BY14: =IF(BY$5<>"",OFFSET(Data!CD$4,View!$B$25,$DS14),"") ->  | BZ14: =IF(BZ$5<>"",OFFSET(Data!CE$4,View!$B$25,$DS14),"") ->  | CA14: =IF(CA$5<>"",OFFSET(Data!CF$4,View!$B$25,$DS14),"") ->  | CB14: =IF(CB$5<>"",OFFSET(Data!CG$4,View!$B$25,$DS14),"") ->  | CC14: =IF(CC$5<>"",OFFSET(Data!CH$4,View!$B$25,$DS14),"") ->  | CD14: =IF(CD$5<>"",OFFSET(Data!CI$4,View!$B$25,$DS14),"") ->  | CE14: =IF(CE$5<>"",OFFSET(Data!CJ$4,View!$B$25,$DS14),"") ->  | CF14: =IF(CF$5<>"",OFFSET(Data!CK$4,View!$B$25,$DS14),"") ->  | CG14: =IF(CG$5<>"",OFFSET(Data!CL$4,View!$B$25,$DS14),"") ->  | CH14: =IF(CH$5<>"",OFFSET(Data!CM$4,View!$B$25,$DS14),"") ->  | CI14: =IF(CI$5<>"",OFFSET(Data!CN$4,View!$B$25,$DS14),"") ->  | CJ14: =IF(CJ$5<>"",OFFSET(Data!CO$4,View!$B$25,$DS14),"") ->  | CK14: =IF(CK$5<>"",OFFSET(Data!CP$4,View!$B$25,$DS14),"") ->  | CL14: =IF(CL$5<>"",OFFSET(Data!CQ$4,View!$B$25,$DS14),"") ->  | CM14: =IF(CM$5<>"",OFFSET(Data!CR$4,View!$B$25,$DS14),"") ->  | CN14: =IF(CN$5<>"",OFFSET(Data!CS$4,View!$B$25,$DS14),"") ->  | CO14: =IF(CO$5<>"",OFFSET(Data!CT$4,View!$B$25,$DS14),"") ->  | CP14: =IF(CP$5<>"",OFFSET(Data!CU$4,View!$B$25,$DS14),"") ->  | CQ14: =IF(CQ$5<>"",OFFSET(Data!CV$4,View!$B$25,$DS14),"") ->  | CR14: =IF(CR$5<>"",OFFSET(Data!CW$4,View!$B$25,$DS14),"") ->  | CS14: =IF(CS$5<>"",OFFSET(Data!CX$4,View!$B$25,$DS14),"") ->  | CT14: =IF(CT$5<>"",OFFSET(Data!CY$4,View!$B$25,$DS14),"") ->  | CU14: =IF(CU$5<>"",OFFSET(Data!CZ$4,View!$B$25,$DS14),"") ->  | CV14: =IF(CV$5<>"",OFFSET(Data!DA$4,View!$B$25,$DS14),"") ->  | CW14: =IF(CW$5<>"",OFFSET(Data!DB$4,View!$B$25,$DS14),"") ->  | CX14: =IF(CX$5<>"",OFFSET(Data!DC$4,View!$B$25,$DS14),"") ->  | CY14: =IF(CY$5<>"",OFFSET(Data!DD$4,View!$B$25,$DS14),"") ->  | CZ14: =IF(CZ$5<>"",OFFSET(Data!DE$4,View!$B$25,$DS14),"") ->  | DA14: =IF(DA$5<>"",OFFSET(Data!DF$4,View!$B$25,$DS14),"") ->  | DB14: =IF(DB$5<>"",OFFSET(Data!DG$4,View!$B$25,$DS14),"") ->  | DC14: =IF(DC$5<>"",OFFSET(Data!DH$4,View!$B$25,$DS14),"") ->  | DD14: =IF(DD$5<>"",OFFSET(Data!DI$4,View!$B$25,$DS14),"") ->  | DE14: =IF(DE$5<>"",OFFSET(Data!DJ$4,View!$B$25,$DS14),"") ->  | DF14: =IF(DF$5<>"",OFFSET(Data!DK$4,View!$B$25,$DS14),"") ->  | DG14: =IF(DG$5<>"",OFFSET(Data!DL$4,View!$B$25,$DS14),"") ->  | DH14: =IF(DH$5<>"",OFFSET(Data!DM$4,View!$B$25,$DS14),"") ->  | DI14: =IF(DI$5<>"",OFFSET(Data!DN$4,View!$B$25,$DS14),"") ->  | DJ14: =IF(DJ$5<>"",OFFSET(Data!DO$4,View!$B$25,$DS14),"") ->  | DK14: =IF(DK$5<>"",OFFSET(Data!DP$4,View!$B$25,$DS14),"") ->  | DL14: =IF(DL$5<>"",OFFSET(Data!DQ$4,View!$B$25,$DS14),"") ->  | DM14: =IF(DM$5<>"",OFFSET(Data!DR$4,View!$B$25,$DS14),"") ->  | DN14: =IF(DN$5<>"",OFFSET(Data!DS$4,View!$B$25,$DS14),"") ->  | DO14: =IF(DO$5<>"",OFFSET(Data!DT$4,View!$B$25,$DS14),"") ->  | DP14: =IF(DP$5<>"",OFFSET(Data!DU$4,View!$B$25,$DS14),"") ->  | DQ14: =IF(DQ$5<>"",OFFSET(Data!DV$4,View!$B$25,$DS14),"") ->  | DR14: =IF(DR$5<>"",OFFSET(Data!DW$4,View!$B$25,$DS14),"") ->  | DS14: =($C$41+1)*10 -> 10
A15: LAsmax | B15: =IF(B$5<>"",OFFSET(Data!G$4,View!$B$25,$DS15),"") -> 0 | C15: =IF(C$5<>"",OFFSET(Data!H$4,View!$B$25,$DS15),"") -> 0 | D15: =IF(D$5<>"",OFFSET(Data!I$4,View!$B$25,$DS15),"") -> 0 | E15: =IF(E$5<>"",OFFSET(Data!J$4,View!$B$25,$DS15),"") -> 0 | F15: =IF(F$5<>"",OFFSET(Data!K$4,View!$B$25,$DS15),"") -> 0 | G15: =IF(G$5<>"",OFFSET(Data!L$4,View!$B$25,$DS15),"") -> 0 | H15: =IF(H$5<>"",OFFSET(Data!M$4,View!$B$25,$DS15),"") -> 0 | I15: =IF(I$5<>"",OFFSET(Data!N$4,View!$B$25,$DS15),"") -> 0 | J15: =IF(J$5<>"",OFFSET(Data!O$4,View!$B$25,$DS15),"") -> 0 | K15: =IF(K$5<>"",OFFSET(Data!P$4,View!$B$25,$DS15),"") -> 0 | L15: =IF(L$5<>"",OFFSET(Data!Q$4,View!$B$25,$DS15),"") -> 0 | M15: =IF(M$5<>"",OFFSET(Data!R$4,View!$B$25,$DS15),"") ->  | N15: =IF(N$5<>"",OFFSET(Data!S$4,View!$B$25,$DS15),"") ->  | O15: =IF(O$5<>"",OFFSET(Data!T$4,View!$B$25,$DS15),"") ->  | P15: =IF(P$5<>"",OFFSET(Data!U$4,View!$B$25,$DS15),"") ->  | Q15: =IF(Q$5<>"",OFFSET(Data!V$4,View!$B$25,$DS15),"") ->  | R15: =IF(R$5<>"",OFFSET(Data!W$4,View!$B$25,$DS15),"") ->  | S15: =IF(S$5<>"",OFFSET(Data!X$4,View!$B$25,$DS15),"") ->  | T15: =IF(T$5<>"",OFFSET(Data!Y$4,View!$B$25,$DS15),"") ->  | U15: =IF(U$5<>"",OFFSET(Data!Z$4,View!$B$25,$DS15),"") ->  | V15: =IF(V$5<>"",OFFSET(Data!AA$4,View!$B$25,$DS15),"") ->  | W15: =IF(W$5<>"",OFFSET(Data!AB$4,View!$B$25,$DS15),"") ->  | X15: =IF(X$5<>"",OFFSET(Data!AC$4,View!$B$25,$DS15),"") ->  | Y15: =IF(Y$5<>"",OFFSET(Data!AD$4,View!$B$25,$DS15),"") ->  | Z15: =IF(Z$5<>"",OFFSET(Data!AE$4,View!$B$25,$DS15),"") ->  | AA15: =IF(AA$5<>"",OFFSET(Data!AF$4,View!$B$25,$DS15),"") ->  | AB15: =IF(AB$5<>"",OFFSET(Data!AG$4,View!$B$25,$DS15),"") ->  | AC15: =IF(AC$5<>"",OFFSET(Data!AH$4,View!$B$25,$DS15),"") ->  | AD15: =IF(AD$5<>"",OFFSET(Data!AI$4,View!$B$25,$DS15),"") ->  | AE15: =IF(AE$5<>"",OFFSET(Data!AJ$4,View!$B$25,$DS15),"") ->  | AF15: =IF(AF$5<>"",OFFSET(Data!AK$4,View!$B$25,$DS15),"") ->  | AG15: =IF(AG$5<>"",OFFSET(Data!AL$4,View!$B$25,$DS15),"") ->  | AH15: =IF(AH$5<>"",OFFSET(Data!AM$4,View!$B$25,$DS15),"") ->  | AI15: =IF(AI$5<>"",OFFSET(Data!AN$4,View!$B$25,$DS15),"") ->  | AJ15: =IF(AJ$5<>"",OFFSET(Data!AO$4,View!$B$25,$DS15),"") ->  | AK15: =IF(AK$5<>"",OFFSET(Data!AP$4,View!$B$25,$DS15),"") ->  | AL15: =IF(AL$5<>"",OFFSET(Data!AQ$4,View!$B$25,$DS15),"") ->  | AM15: =IF(AM$5<>"",OFFSET(Data!AR$4,View!$B$25,$DS15),"") ->  | AN15: =IF(AN$5<>"",OFFSET(Data!AS$4,View!$B$25,$DS15),"") ->  | AO15: =IF(AO$5<>"",OFFSET(Data!AT$4,View!$B$25,$DS15),"") ->  | AP15: =IF(AP$5<>"",OFFSET(Data!AU$4,View!$B$25,$DS15),"") ->  | AQ15: =IF(AQ$5<>"",OFFSET(Data!AV$4,View!$B$25,$DS15),"") ->  | AR15: =IF(AR$5<>"",OFFSET(Data!AW$4,View!$B$25,$DS15),"") ->  | AS15: =IF(AS$5<>"",OFFSET(Data!AX$4,View!$B$25,$DS15),"") ->  | AT15: =IF(AT$5<>"",OFFSET(Data!AY$4,View!$B$25,$DS15),"") ->  | AU15: =IF(AU$5<>"",OFFSET(Data!AZ$4,View!$B$25,$DS15),"") ->  | AV15: =IF(AV$5<>"",OFFSET(Data!BA$4,View!$B$25,$DS15),"") ->  | AW15: =IF(AW$5<>"",OFFSET(Data!BB$4,View!$B$25,$DS15),"") ->  | AX15: =IF(AX$5<>"",OFFSET(Data!BC$4,View!$B$25,$DS15),"") ->  | AY15: =IF(AY$5<>"",OFFSET(Data!BD$4,View!$B$25,$DS15),"") ->  | AZ15: =IF(AZ$5<>"",OFFSET(Data!BE$4,View!$B$25,$DS15),"") ->  | BA15: =IF(BA$5<>"",OFFSET(Data!BF$4,View!$B$25,$DS15),"") ->  | BB15: =IF(BB$5<>"",OFFSET(Data!BG$4,View!$B$25,$DS15),"") ->  | BC15: =IF(BC$5<>"",OFFSET(Data!BH$4,View!$B$25,$DS15),"") ->  | BD15: =IF(BD$5<>"",OFFSET(Data!BI$4,View!$B$25,$DS15),"") ->  | BE15: =IF(BE$5<>"",OFFSET(Data!BJ$4,View!$B$25,$DS15),"") ->  | BF15: =IF(BF$5<>"",OFFSET(Data!BK$4,View!$B$25,$DS15),"") ->  | BG15: =IF(BG$5<>"",OFFSET(Data!BL$4,View!$B$25,$DS15),"") ->  | BH15: =IF(BH$5<>"",OFFSET(Data!BM$4,View!$B$25,$DS15),"") ->  | BI15: =IF(BI$5<>"",OFFSET(Data!BN$4,View!$B$25,$DS15),"") ->  | BJ15: =IF(BJ$5<>"",OFFSET(Data!BO$4,View!$B$25,$DS15),"") ->  | BK15: =IF(BK$5<>"",OFFSET(Data!BP$4,View!$B$25,$DS15),"") ->  | BL15: =IF(BL$5<>"",OFFSET(Data!BQ$4,View!$B$25,$DS15),"") ->  | BM15: =IF(BM$5<>"",OFFSET(Data!BR$4,View!$B$25,$DS15),"") ->  | BN15: =IF(BN$5<>"",OFFSET(Data!BS$4,View!$B$25,$DS15),"") ->  | BO15: =IF(BO$5<>"",OFFSET(Data!BT$4,View!$B$25,$DS15),"") ->  | BP15: =IF(BP$5<>"",OFFSET(Data!BU$4,View!$B$25,$DS15),"") ->  | BQ15: =IF(BQ$5<>"",OFFSET(Data!BV$4,View!$B$25,$DS15),"") ->  | BR15: =IF(BR$5<>"",OFFSET(Data!BW$4,View!$B$25,$DS15),"") ->  | BS15: =IF(BS$5<>"",OFFSET(Data!BX$4,View!$B$25,$DS15),"") ->  | BT15: =IF(BT$5<>"",OFFSET(Data!BY$4,View!$B$25,$DS15),"") ->  | BU15: =IF(BU$5<>"",OFFSET(Data!BZ$4,View!$B$25,$DS15),"") ->  | BV15: =IF(BV$5<>"",OFFSET(Data!CA$4,View!$B$25,$DS15),"") ->  | BW15: =IF(BW$5<>"",OFFSET(Data!CB$4,View!$B$25,$DS15),"") ->  | BX15: =IF(BX$5<>"",OFFSET(Data!CC$4,View!$B$25,$DS15),"") ->  | BY15: =IF(BY$5<>"",OFFSET(Data!CD$4,View!$B$25,$DS15),"") ->  | BZ15: =IF(BZ$5<>"",OFFSET(Data!CE$4,View!$B$25,$DS15),"") ->  | CA15: =IF(CA$5<>"",OFFSET(Data!CF$4,View!$B$25,$DS15),"") ->  | CB15: =IF(CB$5<>"",OFFSET(Data!CG$4,View!$B$25,$DS15),"") ->  | CC15: =IF(CC$5<>"",OFFSET(Data!CH$4,View!$B$25,$DS15),"") ->  | CD15: =IF(CD$5<>"",OFFSET(Data!CI$4,View!$B$25,$DS15),"") ->  | CE15: =IF(CE$5<>"",OFFSET(Data!CJ$4,View!$B$25,$DS15),"") ->  | CF15: =IF(CF$5<>"",OFFSET(Data!CK$4,View!$B$25,$DS15),"") ->  | CG15: =IF(CG$5<>"",OFFSET(Data!CL$4,View!$B$25,$DS15),"") ->  | CH15: =IF(CH$5<>"",OFFSET(Data!CM$4,View!$B$25,$DS15),"") ->  | CI15: =IF(CI$5<>"",OFFSET(Data!CN$4,View!$B$25,$DS15),"") ->  | CJ15: =IF(CJ$5<>"",OFFSET(Data!CO$4,View!$B$25,$DS15),"") ->  | CK15: =IF(CK$5<>"",OFFSET(Data!CP$4,View!$B$25,$DS15),"") ->  | CL15: =IF(CL$5<>"",OFFSET(Data!CQ$4,View!$B$25,$DS15),"") ->  | CM15: =IF(CM$5<>"",OFFSET(Data!CR$4,View!$B$25,$DS15),"") ->  | CN15: =IF(CN$5<>"",OFFSET(Data!CS$4,View!$B$25,$DS15),"") ->  | CO15: =IF(CO$5<>"",OFFSET(Data!CT$4,View!$B$25,$DS15),"") ->  | CP15: =IF(CP$5<>"",OFFSET(Data!CU$4,View!$B$25,$DS15),"") ->  | CQ15: =IF(CQ$5<>"",OFFSET(Data!CV$4,View!$B$25,$DS15),"") ->  | CR15: =IF(CR$5<>"",OFFSET(Data!CW$4,View!$B$25,$DS15),"") ->  | CS15: =IF(CS$5<>"",OFFSET(Data!CX$4,View!$B$25,$DS15),"") ->  | CT15: =IF(CT$5<>"",OFFSET(Data!CY$4,View!$B$25,$DS15),"") ->  | CU15: =IF(CU$5<>"",OFFSET(Data!CZ$4,View!$B$25,$DS15),"") ->  | CV15: =IF(CV$5<>"",OFFSET(Data!DA$4,View!$B$25,$DS15),"") ->  | CW15: =IF(CW$5<>"",OFFSET(Data!DB$4,View!$B$25,$DS15),"") ->  | CX15: =IF(CX$5<>"",OFFSET(Data!DC$4,View!$B$25,$DS15),"") ->  | CY15: =IF(CY$5<>"",OFFSET(Data!DD$4,View!$B$25,$DS15),"") ->  | CZ15: =IF(CZ$5<>"",OFFSET(Data!DE$4,View!$B$25,$DS15),"") ->  | DA15: =IF(DA$5<>"",OFFSET(Data!DF$4,View!$B$25,$DS15),"") ->  | DB15: =IF(DB$5<>"",OFFSET(Data!DG$4,View!$B$25,$DS15),"") ->  | DC15: =IF(DC$5<>"",OFFSET(Data!DH$4,View!$B$25,$DS15),"") ->  | DD15: =IF(DD$5<>"",OFFSET(Data!DI$4,View!$B$25,$DS15),"") ->  | DE15: =IF(DE$5<>"",OFFSET(Data!DJ$4,View!$B$25,$DS15),"") ->  | DF15: =IF(DF$5<>"",OFFSET(Data!DK$4,View!$B$25,$DS15),"") ->  | DG15: =IF(DG$5<>"",OFFSET(Data!DL$4,View!$B$25,$DS15),"") ->  | DH15: =IF(DH$5<>"",OFFSET(Data!DM$4,View!$B$25,$DS15),"") ->  | DI15: =IF(DI$5<>"",OFFSET(Data!DN$4,View!$B$25,$DS15),"") ->  | DJ15: =IF(DJ$5<>"",OFFSET(Data!DO$4,View!$B$25,$DS15),"") ->  | DK15: =IF(DK$5<>"",OFFSET(Data!DP$4,View!$B$25,$DS15),"") ->  | DL15: =IF(DL$5<>"",OFFSET(Data!DQ$4,View!$B$25,$DS15),"") ->  | DM15: =IF(DM$5<>"",OFFSET(Data!DR$4,View!$B$25,$DS15),"") ->  | DN15: =IF(DN$5<>"",OFFSET(Data!DS$4,View!$B$25,$DS15),"") ->  | DO15: =IF(DO$5<>"",OFFSET(Data!DT$4,View!$B$25,$DS15),"") ->  | DP15: =IF(DP$5<>"",OFFSET(Data!DU$4,View!$B$25,$DS15),"") ->  | DQ15: =IF(DQ$5<>"",OFFSET(Data!DV$4,View!$B$25,$DS15),"") ->  | DR15: =IF(DR$5<>"",OFFSET(Data!DW$4,View!$B$25,$DS15),"") ->  | DS15: =($C$41+1)*2 -> 2
A16: LCsmax | B16: =IF(B$5<>"",OFFSET(Data!G$4,View!$B$25,$DS16),"") -> 0 | C16: =IF(C$5<>"",OFFSET(Data!H$4,View!$B$25,$DS16),"") -> 0 | D16: =IF(D$5<>"",OFFSET(Data!I$4,View!$B$25,$DS16),"") -> 0 | E16: =IF(E$5<>"",OFFSET(Data!J$4,View!$B$25,$DS16),"") -> 0 | F16: =IF(F$5<>"",OFFSET(Data!K$4,View!$B$25,$DS16),"") -> 0 | G16: =IF(G$5<>"",OFFSET(Data!L$4,View!$B$25,$DS16),"") -> 0 | H16: =IF(H$5<>"",OFFSET(Data!M$4,View!$B$25,$DS16),"") -> 0 | I16: =IF(I$5<>"",OFFSET(Data!N$4,View!$B$25,$DS16),"") -> 0 | J16: =IF(J$5<>"",OFFSET(Data!O$4,View!$B$25,$DS16),"") -> 0 | K16: =IF(K$5<>"",OFFSET(Data!P$4,View!$B$25,$DS16),"") -> 0 | L16: =IF(L$5<>"",OFFSET(Data!Q$4,View!$B$25,$DS16),"") -> 0 | M16: =IF(M$5<>"",OFFSET(Data!R$4,View!$B$25,$DS16),"") ->  | N16: =IF(N$5<>"",OFFSET(Data!S$4,View!$B$25,$DS16),"") ->  | O16: =IF(O$5<>"",OFFSET(Data!T$4,View!$B$25,$DS16),"") ->  | P16: =IF(P$5<>"",OFFSET(Data!U$4,View!$B$25,$DS16),"") ->  | Q16: =IF(Q$5<>"",OFFSET(Data!V$4,View!$B$25,$DS16),"") ->  | R16: =IF(R$5<>"",OFFSET(Data!W$4,View!$B$25,$DS16),"") ->  | S16: =IF(S$5<>"",OFFSET(Data!X$4,View!$B$25,$DS16),"") ->  | T16: =IF(T$5<>"",OFFSET(Data!Y$4,View!$B$25,$DS16),"") ->  | U16: =IF(U$5<>"",OFFSET(Data!Z$4,View!$B$25,$DS16),"") ->  | V16: =IF(V$5<>"",OFFSET(Data!AA$4,View!$B$25,$DS16),"") ->  | W16: =IF(W$5<>"",OFFSET(Data!AB$4,View!$B$25,$DS16),"") ->  | X16: =IF(X$5<>"",OFFSET(Data!AC$4,View!$B$25,$DS16),"") ->  | Y16: =IF(Y$5<>"",OFFSET(Data!AD$4,View!$B$25,$DS16),"") ->  | Z16: =IF(Z$5<>"",OFFSET(Data!AE$4,View!$B$25,$DS16),"") ->  | AA16: =IF(AA$5<>"",OFFSET(Data!AF$4,View!$B$25,$DS16),"") ->  | AB16: =IF(AB$5<>"",OFFSET(Data!AG$4,View!$B$25,$DS16),"") ->  | AC16: =IF(AC$5<>"",OFFSET(Data!AH$4,View!$B$25,$DS16),"") ->  | AD16: =IF(AD$5<>"",OFFSET(Data!AI$4,View!$B$25,$DS16),"") ->  | AE16: =IF(AE$5<>"",OFFSET(Data!AJ$4,View!$B$25,$DS16),"") ->  | AF16: =IF(AF$5<>"",OFFSET(Data!AK$4,View!$B$25,$DS16),"") ->  | AG16: =IF(AG$5<>"",OFFSET(Data!AL$4,View!$B$25,$DS16),"") ->  | AH16: =IF(AH$5<>"",OFFSET(Data!AM$4,View!$B$25,$DS16),"") ->  | AI16: =IF(AI$5<>"",OFFSET(Data!AN$4,View!$B$25,$DS16),"") ->  | AJ16: =IF(AJ$5<>"",OFFSET(Data!AO$4,View!$B$25,$DS16),"") ->  | AK16: =IF(AK$5<>"",OFFSET(Data!AP$4,View!$B$25,$DS16),"") ->  | AL16: =IF(AL$5<>"",OFFSET(Data!AQ$4,View!$B$25,$DS16),"") ->  | AM16: =IF(AM$5<>"",OFFSET(Data!AR$4,View!$B$25,$DS16),"") ->  | AN16: =IF(AN$5<>"",OFFSET(Data!AS$4,View!$B$25,$DS16),"") ->  | AO16: =IF(AO$5<>"",OFFSET(Data!AT$4,View!$B$25,$DS16),"") ->  | AP16: =IF(AP$5<>"",OFFSET(Data!AU$4,View!$B$25,$DS16),"") ->  | AQ16: =IF(AQ$5<>"",OFFSET(Data!AV$4,View!$B$25,$DS16),"") ->  | AR16: =IF(AR$5<>"",OFFSET(Data!AW$4,View!$B$25,$DS16),"") ->  | AS16: =IF(AS$5<>"",OFFSET(Data!AX$4,View!$B$25,$DS16),"") ->  | AT16: =IF(AT$5<>"",OFFSET(Data!AY$4,View!$B$25,$DS16),"") ->  | AU16: =IF(AU$5<>"",OFFSET(Data!AZ$4,View!$B$25,$DS16),"") ->  | AV16: =IF(AV$5<>"",OFFSET(Data!BA$4,View!$B$25,$DS16),"") ->  | AW16: =IF(AW$5<>"",OFFSET(Data!BB$4,View!$B$25,$DS16),"") ->  | AX16: =IF(AX$5<>"",OFFSET(Data!BC$4,View!$B$25,$DS16),"") ->  | AY16: =IF(AY$5<>"",OFFSET(Data!BD$4,View!$B$25,$DS16),"") ->  | AZ16: =IF(AZ$5<>"",OFFSET(Data!BE$4,View!$B$25,$DS16),"") ->  | BA16: =IF(BA$5<>"",OFFSET(Data!BF$4,View!$B$25,$DS16),"") ->  | BB16: =IF(BB$5<>"",OFFSET(Data!BG$4,View!$B$25,$DS16),"") ->  | BC16: =IF(BC$5<>"",OFFSET(Data!BH$4,View!$B$25,$DS16),"") ->  | BD16: =IF(BD$5<>"",OFFSET(Data!BI$4,View!$B$25,$DS16),"") ->  | BE16: =IF(BE$5<>"",OFFSET(Data!BJ$4,View!$B$25,$DS16),"") ->  | BF16: =IF(BF$5<>"",OFFSET(Data!BK$4,View!$B$25,$DS16),"") ->  | BG16: =IF(BG$5<>"",OFFSET(Data!BL$4,View!$B$25,$DS16),"") ->  | BH16: =IF(BH$5<>"",OFFSET(Data!BM$4,View!$B$25,$DS16),"") ->  | BI16: =IF(BI$5<>"",OFFSET(Data!BN$4,View!$B$25,$DS16),"") ->  | BJ16: =IF(BJ$5<>"",OFFSET(Data!BO$4,View!$B$25,$DS16),"") ->  | BK16: =IF(BK$5<>"",OFFSET(Data!BP$4,View!$B$25,$DS16),"") ->  | BL16: =IF(BL$5<>"",OFFSET(Data!BQ$4,View!$B$25,$DS16),"") ->  | BM16: =IF(BM$5<>"",OFFSET(Data!BR$4,View!$B$25,$DS16),"") ->  | BN16: =IF(BN$5<>"",OFFSET(Data!BS$4,View!$B$25,$DS16),"") ->  | BO16: =IF(BO$5<>"",OFFSET(Data!BT$4,View!$B$25,$DS16),"") ->  | BP16: =IF(BP$5<>"",OFFSET(Data!BU$4,View!$B$25,$DS16),"") ->  | BQ16: =IF(BQ$5<>"",OFFSET(Data!BV$4,View!$B$25,$DS16),"") ->  | BR16: =IF(BR$5<>"",OFFSET(Data!BW$4,View!$B$25,$DS16),"") ->  | BS16: =IF(BS$5<>"",OFFSET(Data!BX$4,View!$B$25,$DS16),"") ->  | BT16: =IF(BT$5<>"",OFFSET(Data!BY$4,View!$B$25,$DS16),"") ->  | BU16: =IF(BU$5<>"",OFFSET(Data!BZ$4,View!$B$25,$DS16),"") ->  | BV16: =IF(BV$5<>"",OFFSET(Data!CA$4,View!$B$25,$DS16),"") ->  | BW16: =IF(BW$5<>"",OFFSET(Data!CB$4,View!$B$25,$DS16),"") ->  | BX16: =IF(BX$5<>"",OFFSET(Data!CC$4,View!$B$25,$DS16),"") ->  | BY16: =IF(BY$5<>"",OFFSET(Data!CD$4,View!$B$25,$DS16),"") ->  | BZ16: =IF(BZ$5<>"",OFFSET(Data!CE$4,View!$B$25,$DS16),"") ->  | CA16: =IF(CA$5<>"",OFFSET(Data!CF$4,View!$B$25,$DS16),"") ->  | CB16: =IF(CB$5<>"",OFFSET(Data!CG$4,View!$B$25,$DS16),"") ->  | CC16: =IF(CC$5<>"",OFFSET(Data!CH$4,View!$B$25,$DS16),"") ->  | CD16: =IF(CD$5<>"",OFFSET(Data!CI$4,View!$B$25,$DS16),"") ->  | CE16: =IF(CE$5<>"",OFFSET(Data!CJ$4,View!$B$25,$DS16),"") ->  | CF16: =IF(CF$5<>"",OFFSET(Data!CK$4,View!$B$25,$DS16),"") ->  | CG16: =IF(CG$5<>"",OFFSET(Data!CL$4,View!$B$25,$DS16),"") ->  | CH16: =IF(CH$5<>"",OFFSET(Data!CM$4,View!$B$25,$DS16),"") ->  | CI16: =IF(CI$5<>"",OFFSET(Data!CN$4,View!$B$25,$DS16),"") ->  | CJ16: =IF(CJ$5<>"",OFFSET(Data!CO$4,View!$B$25,$DS16),"") ->  | CK16: =IF(CK$5<>"",OFFSET(Data!CP$4,View!$B$25,$DS16),"") ->  | CL16: =IF(CL$5<>"",OFFSET(Data!CQ$4,View!$B$25,$DS16),"") ->  | CM16: =IF(CM$5<>"",OFFSET(Data!CR$4,View!$B$25,$DS16),"") ->  | CN16: =IF(CN$5<>"",OFFSET(Data!CS$4,View!$B$25,$DS16),"") ->  | CO16: =IF(CO$5<>"",OFFSET(Data!CT$4,View!$B$25,$DS16),"") ->  | CP16: =IF(CP$5<>"",OFFSET(Data!CU$4,View!$B$25,$DS16),"") ->  | CQ16: =IF(CQ$5<>"",OFFSET(Data!CV$4,View!$B$25,$DS16),"") ->  | CR16: =IF(CR$5<>"",OFFSET(Data!CW$4,View!$B$25,$DS16),"") ->  | CS16: =IF(CS$5<>"",OFFSET(Data!CX$4,View!$B$25,$DS16),"") ->  | CT16: =IF(CT$5<>"",OFFSET(Data!CY$4,View!$B$25,$DS16),"") ->  | CU16: =IF(CU$5<>"",OFFSET(Data!CZ$4,View!$B$25,$DS16),"") ->  | CV16: =IF(CV$5<>"",OFFSET(Data!DA$4,View!$B$25,$DS16),"") ->  | CW16: =IF(CW$5<>"",OFFSET(Data!DB$4,View!$B$25,$DS16),"") ->  | CX16: =IF(CX$5<>"",OFFSET(Data!DC$4,View!$B$25,$DS16),"") ->  | CY16: =IF(CY$5<>"",OFFSET(Data!DD$4,View!$B$25,$DS16),"") ->  | CZ16: =IF(CZ$5<>"",OFFSET(Data!DE$4,View!$B$25,$DS16),"") ->  | DA16: =IF(DA$5<>"",OFFSET(Data!DF$4,View!$B$25,$DS16),"") ->  | DB16: =IF(DB$5<>"",OFFSET(Data!DG$4,View!$B$25,$DS16),"") ->  | DC16: =IF(DC$5<>"",OFFSET(Data!DH$4,View!$B$25,$DS16),"") ->  | DD16: =IF(DD$5<>"",OFFSET(Data!DI$4,View!$B$25,$DS16),"") ->  | DE16: =IF(DE$5<>"",OFFSET(Data!DJ$4,View!$B$25,$DS16),"") ->  | DF16: =IF(DF$5<>"",OFFSET(Data!DK$4,View!$B$25,$DS16),"") ->  | DG16: =IF(DG$5<>"",OFFSET(Data!DL$4,View!$B$25,$DS16),"") ->  | DH16: =IF(DH$5<>"",OFFSET(Data!DM$4,View!$B$25,$DS16),"") ->  | DI16: =IF(DI$5<>"",OFFSET(Data!DN$4,View!$B$25,$DS16),"") ->  | DJ16: =IF(DJ$5<>"",OFFSET(Data!DO$4,View!$B$25,$DS16),"") ->  | DK16: =IF(DK$5<>"",OFFSET(Data!DP$4,View!$B$25,$DS16),"") ->  | DL16: =IF(DL$5<>"",OFFSET(Data!DQ$4,View!$B$25,$DS16),"") ->  | DM16: =IF(DM$5<>"",OFFSET(Data!DR$4,View!$B$25,$DS16),"") ->  | DN16: =IF(DN$5<>"",OFFSET(Data!DS$4,View!$B$25,$DS16),"") ->  | DO16: =IF(DO$5<>"",OFFSET(Data!DT$4,View!$B$25,$DS16),"") ->  | DP16: =IF(DP$5<>"",OFFSET(Data!DU$4,View!$B$25,$DS16),"") ->  | DQ16: =IF(DQ$5<>"",OFFSET(Data!DV$4,View!$B$25,$DS16),"") ->  | DR16: =IF(DR$5<>"",OFFSET(Data!DW$4,View!$B$25,$DS16),"") ->  | DS16: =($C$41+1)*6 -> 6
A18: LZimax | B18: =IF(B$5<>"",OFFSET(Data!G$4,View!$B$25,$DS18),"") -> 0 | C18: =IF(C$5<>"",OFFSET(Data!H$4,View!$B$25,$DS18),"") -> 0 | D18: =IF(D$5<>"",OFFSET(Data!I$4,View!$B$25,$DS18),"") -> 0 | E18: =IF(E$5<>"",OFFSET(Data!J$4,View!$B$25,$DS18),"") -> 0 | F18: =IF(F$5<>"",OFFSET(Data!K$4,View!$B$25,$DS18),"") -> 0 | G18: =IF(G$5<>"",OFFSET(Data!L$4,View!$B$25,$DS18),"") -> 0 | H18: =IF(H$5<>"",OFFSET(Data!M$4,View!$B$25,$DS18),"") -> 0 | I18: =IF(I$5<>"",OFFSET(Data!N$4,View!$B$25,$DS18),"") -> 0 | J18: =IF(J$5<>"",OFFSET(Data!O$4,View!$B$25,$DS18),"") -> 0 | K18: =IF(K$5<>"",OFFSET(Data!P$4,View!$B$25,$DS18),"") -> 0 | L18: =IF(L$5<>"",OFFSET(Data!Q$4,View!$B$25,$DS18),"") -> 0 | M18: =IF(M$5<>"",OFFSET(Data!R$4,View!$B$25,$DS18),"") ->  | N18: =IF(N$5<>"",OFFSET(Data!S$4,View!$B$25,$DS18),"") ->  | O18: =IF(O$5<>"",OFFSET(Data!T$4,View!$B$25,$DS18),"") ->  | P18: =IF(P$5<>"",OFFSET(Data!U$4,View!$B$25,$DS18),"") ->  | Q18: =IF(Q$5<>"",OFFSET(Data!V$4,View!$B$25,$DS18),"") ->  | R18: =IF(R$5<>"",OFFSET(Data!W$4,View!$B$25,$DS18),"") ->  | S18: =IF(S$5<>"",OFFSET(Data!X$4,View!$B$25,$DS18),"") ->  | T18: =IF(T$5<>"",OFFSET(Data!Y$4,View!$B$25,$DS18),"") ->  | U18: =IF(U$5<>"",OFFSET(Data!Z$4,View!$B$25,$DS18),"") ->  | V18: =IF(V$5<>"",OFFSET(Data!AA$4,View!$B$25,$DS18),"") ->  | W18: =IF(W$5<>"",OFFSET(Data!AB$4,View!$B$25,$DS18),"") ->  | X18: =IF(X$5<>"",OFFSET(Data!AC$4,View!$B$25,$DS18),"") ->  | Y18: =IF(Y$5<>"",OFFSET(Data!AD$4,View!$B$25,$DS18),"") ->  | Z18: =IF(Z$5<>"",OFFSET(Data!AE$4,View!$B$25,$DS18),"") ->  | AA18: =IF(AA$5<>"",OFFSET(Data!AF$4,View!$B$25,$DS18),"") ->  | AB18: =IF(AB$5<>"",OFFSET(Data!AG$4,View!$B$25,$DS18),"") ->  | AC18: =IF(AC$5<>"",OFFSET(Data!AH$4,View!$B$25,$DS18),"") ->  | AD18: =IF(AD$5<>"",OFFSET(Data!AI$4,View!$B$25,$DS18),"") ->  | AE18: =IF(AE$5<>"",OFFSET(Data!AJ$4,View!$B$25,$DS18),"") ->  | AF18: =IF(AF$5<>"",OFFSET(Data!AK$4,View!$B$25,$DS18),"") ->  | AG18: =IF(AG$5<>"",OFFSET(Data!AL$4,View!$B$25,$DS18),"") ->  | AH18: =IF(AH$5<>"",OFFSET(Data!AM$4,View!$B$25,$DS18),"") ->  | AI18: =IF(AI$5<>"",OFFSET(Data!AN$4,View!$B$25,$DS18),"") ->  | AJ18: =IF(AJ$5<>"",OFFSET(Data!AO$4,View!$B$25,$DS18),"") ->  | AK18: =IF(AK$5<>"",OFFSET(Data!AP$4,View!$B$25,$DS18),"") ->  | AL18: =IF(AL$5<>"",OFFSET(Data!AQ$4,View!$B$25,$DS18),"") ->  | AM18: =IF(AM$5<>"",OFFSET(Data!AR$4,View!$B$25,$DS18),"") ->  | AN18: =IF(AN$5<>"",OFFSET(Data!AS$4,View!$B$25,$DS18),"") ->  | AO18: =IF(AO$5<>"",OFFSET(Data!AT$4,View!$B$25,$DS18),"") ->  | AP18: =IF(AP$5<>"",OFFSET(Data!AU$4,View!$B$25,$DS18),"") ->  | AQ18: =IF(AQ$5<>"",OFFSET(Data!AV$4,View!$B$25,$DS18),"") ->  | AR18: =IF(AR$5<>"",OFFSET(Data!AW$4,View!$B$25,$DS18),"") ->  | AS18: =IF(AS$5<>"",OFFSET(Data!AX$4,View!$B$25,$DS18),"") ->  | AT18: =IF(AT$5<>"",OFFSET(Data!AY$4,View!$B$25,$DS18),"") ->  | AU18: =IF(AU$5<>"",OFFSET(Data!AZ$4,View!$B$25,$DS18),"") ->  | AV18: =IF(AV$5<>"",OFFSET(Data!BA$4,View!$B$25,$DS18),"") ->  | AW18: =IF(AW$5<>"",OFFSET(Data!BB$4,View!$B$25,$DS18),"") ->  | AX18: =IF(AX$5<>"",OFFSET(Data!BC$4,View!$B$25,$DS18),"") ->  | AY18: =IF(AY$5<>"",OFFSET(Data!BD$4,View!$B$25,$DS18),"") ->  | AZ18: =IF(AZ$5<>"",OFFSET(Data!BE$4,View!$B$25,$DS18),"") ->  | BA18: =IF(BA$5<>"",OFFSET(Data!BF$4,View!$B$25,$DS18),"") ->  | BB18: =IF(BB$5<>"",OFFSET(Data!BG$4,View!$B$25,$DS18),"") ->  | BC18: =IF(BC$5<>"",OFFSET(Data!BH$4,View!$B$25,$DS18),"") ->  | BD18: =IF(BD$5<>"",OFFSET(Data!BI$4,View!$B$25,$DS18),"") ->  | BE18: =IF(BE$5<>"",OFFSET(Data!BJ$4,View!$B$25,$DS18),"") ->  | BF18: =IF(BF$5<>"",OFFSET(Data!BK$4,View!$B$25,$DS18),"") ->  | BG18: =IF(BG$5<>"",OFFSET(Data!BL$4,View!$B$25,$DS18),"") ->  | BH18: =IF(BH$5<>"",OFFSET(Data!BM$4,View!$B$25,$DS18),"") ->  | BI18: =IF(BI$5<>"",OFFSET(Data!BN$4,View!$B$25,$DS18),"") ->  | BJ18: =IF(BJ$5<>"",OFFSET(Data!BO$4,View!$B$25,$DS18),"") ->  | BK18: =IF(BK$5<>"",OFFSET(Data!BP$4,View!$B$25,$DS18),"") ->  | BL18: =IF(BL$5<>"",OFFSET(Data!BQ$4,View!$B$25,$DS18),"") ->  | BM18: =IF(BM$5<>"",OFFSET(Data!BR$4,View!$B$25,$DS18),"") ->  | BN18: =IF(BN$5<>"",OFFSET(Data!BS$4,View!$B$25,$DS18),"") ->  | BO18: =IF(BO$5<>"",OFFSET(Data!BT$4,View!$B$25,$DS18),"") ->  | BP18: =IF(BP$5<>"",OFFSET(Data!BU$4,View!$B$25,$DS18),"") ->  | BQ18: =IF(BQ$5<>"",OFFSET(Data!BV$4,View!$B$25,$DS18),"") ->  | BR18: =IF(BR$5<>"",OFFSET(Data!BW$4,View!$B$25,$DS18),"") ->  | BS18: =IF(BS$5<>"",OFFSET(Data!BX$4,View!$B$25,$DS18),"") ->  | BT18: =IF(BT$5<>"",OFFSET(Data!BY$4,View!$B$25,$DS18),"") ->  | BU18: =IF(BU$5<>"",OFFSET(Data!BZ$4,View!$B$25,$DS18),"") ->  | BV18: =IF(BV$5<>"",OFFSET(Data!CA$4,View!$B$25,$DS18),"") ->  | BW18: =IF(BW$5<>"",OFFSET(Data!CB$4,View!$B$25,$DS18),"") ->  | BX18: =IF(BX$5<>"",OFFSET(Data!CC$4,View!$B$25,$DS18),"") ->  | BY18: =IF(BY$5<>"",OFFSET(Data!CD$4,View!$B$25,$DS18),"") ->  | BZ18: =IF(BZ$5<>"",OFFSET(Data!CE$4,View!$B$25,$DS18),"") ->  | CA18: =IF(CA$5<>"",OFFSET(Data!CF$4,View!$B$25,$DS18),"") ->  | CB18: =IF(CB$5<>"",OFFSET(Data!CG$4,View!$B$25,$DS18),"") ->  | CC18: =IF(CC$5<>"",OFFSET(Data!CH$4,View!$B$25,$DS18),"") ->  | CD18: =IF(CD$5<>"",OFFSET(Data!CI$4,View!$B$25,$DS18),"") ->  | CE18: =IF(CE$5<>"",OFFSET(Data!CJ$4,View!$B$25,$DS18),"") ->  | CF18: =IF(CF$5<>"",OFFSET(Data!CK$4,View!$B$25,$DS18),"") ->  | CG18: =IF(CG$5<>"",OFFSET(Data!CL$4,View!$B$25,$DS18),"") ->  | CH18: =IF(CH$5<>"",OFFSET(Data!CM$4,View!$B$25,$DS18),"") ->  | CI18: =IF(CI$5<>"",OFFSET(Data!CN$4,View!$B$25,$DS18),"") ->  | CJ18: =IF(CJ$5<>"",OFFSET(Data!CO$4,View!$B$25,$DS18),"") ->  | CK18: =IF(CK$5<>"",OFFSET(Data!CP$4,View!$B$25,$DS18),"") ->  | CL18: =IF(CL$5<>"",OFFSET(Data!CQ$4,View!$B$25,$DS18),"") ->  | CM18: =IF(CM$5<>"",OFFSET(Data!CR$4,View!$B$25,$DS18),"") ->  | CN18: =IF(CN$5<>"",OFFSET(Data!CS$4,View!$B$25,$DS18),"") ->  | CO18: =IF(CO$5<>"",OFFSET(Data!CT$4,View!$B$25,$DS18),"") ->  | CP18: =IF(CP$5<>"",OFFSET(Data!CU$4,View!$B$25,$DS18),"") ->  | CQ18: =IF(CQ$5<>"",OFFSET(Data!CV$4,View!$B$25,$DS18),"") ->  | CR18: =IF(CR$5<>"",OFFSET(Data!CW$4,View!$B$25,$DS18),"") ->  | CS18: =IF(CS$5<>"",OFFSET(Data!CX$4,View!$B$25,$DS18),"") ->  | CT18: =IF(CT$5<>"",OFFSET(Data!CY$4,View!$B$25,$DS18),"") ->  | CU18: =IF(CU$5<>"",OFFSET(Data!CZ$4,View!$B$25,$DS18),"") ->  | CV18: =IF(CV$5<>"",OFFSET(Data!DA$4,View!$B$25,$DS18),"") ->  | CW18: =IF(CW$5<>"",OFFSET(Data!DB$4,View!$B$25,$DS18),"") ->  | CX18: =IF(CX$5<>"",OFFSET(Data!DC$4,View!$B$25,$DS18),"") ->  | CY18: =IF(CY$5<>"",OFFSET(Data!DD$4,View!$B$25,$DS18),"") ->  | CZ18: =IF(CZ$5<>"",OFFSET(Data!DE$4,View!$B$25,$DS18),"") ->  | DA18: =IF(DA$5<>"",OFFSET(Data!DF$4,View!$B$25,$DS18),"") ->  | DB18: =IF(DB$5<>"",OFFSET(Data!DG$4,View!$B$25,$DS18),"") ->  | DC18: =IF(DC$5<>"",OFFSET(Data!DH$4,View!$B$25,$DS18),"") ->  | DD18: =IF(DD$5<>"",OFFSET(Data!DI$4,View!$B$25,$DS18),"") ->  | DE18: =IF(DE$5<>"",OFFSET(Data!DJ$4,View!$B$25,$DS18),"") ->  | DF18: =IF(DF$5<>"",OFFSET(Data!DK$4,View!$B$25,$DS18),"") ->  | DG18: =IF(DG$5<>"",OFFSET(Data!DL$4,View!$B$25,$DS18),"") ->  | DH18: =IF(DH$5<>"",OFFSET(Data!DM$4,View!$B$25,$DS18),"") ->  | DI18: =IF(DI$5<>"",OFFSET(Data!DN$4,View!$B$25,$DS18),"") ->  | DJ18: =IF(DJ$5<>"",OFFSET(Data!DO$4,View!$B$25,$DS18),"") ->  | DK18: =IF(DK$5<>"",OFFSET(Data!DP$4,View!$B$25,$DS18),"") ->  | DL18: =IF(DL$5<>"",OFFSET(Data!DQ$4,View!$B$25,$DS18),"") ->  | DM18: =IF(DM$5<>"",OFFSET(Data!DR$4,View!$B$25,$DS18),"") ->  | DN18: =IF(DN$5<>"",OFFSET(Data!DS$4,View!$B$25,$DS18),"") ->  | DO18: =IF(DO$5<>"",OFFSET(Data!DT$4,View!$B$25,$DS18),"") ->  | DP18: =IF(DP$5<>"",OFFSET(Data!DU$4,View!$B$25,$DS18),"") ->  | DQ18: =IF(DQ$5<>"",OFFSET(Data!DV$4,View!$B$25,$DS18),"") ->  | DR18: =IF(DR$5<>"",OFFSET(Data!DW$4,View!$B$25,$DS18),"") ->  | DS18: =($C$41+1)*11 -> 11
A19: LAimax | B19: =IF(B$5<>"",OFFSET(Data!G$4,View!$B$25,$DS19),"") -> 0 | C19: =IF(C$5<>"",OFFSET(Data!H$4,View!$B$25,$DS19),"") -> 0 | D19: =IF(D$5<>"",OFFSET(Data!I$4,View!$B$25,$DS19),"") -> 0 | E19: =IF(E$5<>"",OFFSET(Data!J$4,View!$B$25,$DS19),"") -> 0 | F19: =IF(F$5<>"",OFFSET(Data!K$4,View!$B$25,$DS19),"") -> 0 | G19: =IF(G$5<>"",OFFSET(Data!L$4,View!$B$25,$DS19),"") -> 0 | H19: =IF(H$5<>"",OFFSET(Data!M$4,View!$B$25,$DS19),"") -> 0 | I19: =IF(I$5<>"",OFFSET(Data!N$4,View!$B$25,$DS19),"") -> 0 | J19: =IF(J$5<>"",OFFSET(Data!O$4,View!$B$25,$DS19),"") -> 0 | K19: =IF(K$5<>"",OFFSET(Data!P$4,View!$B$25,$DS19),"") -> 0 | L19: =IF(L$5<>"",OFFSET(Data!Q$4,View!$B$25,$DS19),"") -> 0 | M19: =IF(M$5<>"",OFFSET(Data!R$4,View!$B$25,$DS19),"") ->  | N19: =IF(N$5<>"",OFFSET(Data!S$4,View!$B$25,$DS19),"") ->  | O19: =IF(O$5<>"",OFFSET(Data!T$4,View!$B$25,$DS19),"") ->  | P19: =IF(P$5<>"",OFFSET(Data!U$4,View!$B$25,$DS19),"") ->  | Q19: =IF(Q$5<>"",OFFSET(Data!V$4,View!$B$25,$DS19),"") ->  | R19: =IF(R$5<>"",OFFSET(Data!W$4,View!$B$25,$DS19),"") ->  | S19: =IF(S$5<>"",OFFSET(Data!X$4,View!$B$25,$DS19),"") ->  | T19: =IF(T$5<>"",OFFSET(Data!Y$4,View!$B$25,$DS19),"") ->  | U19: =IF(U$5<>"",OFFSET(Data!Z$4,View!$B$25,$DS19),"") ->  | V19: =IF(V$5<>"",OFFSET(Data!AA$4,View!$B$25,$DS19),"") ->  | W19: =IF(W$5<>"",OFFSET(Data!AB$4,View!$B$25,$DS19),"") ->  | X19: =IF(X$5<>"",OFFSET(Data!AC$4,View!$B$25,$DS19),"") ->  | Y19: =IF(Y$5<>"",OFFSET(Data!AD$4,View!$B$25,$DS19),"") ->  | Z19: =IF(Z$5<>"",OFFSET(Data!AE$4,View!$B$25,$DS19),"") ->  | AA19: =IF(AA$5<>"",OFFSET(Data!AF$4,View!$B$25,$DS19),"") ->  | AB19: =IF(AB$5<>"",OFFSET(Data!AG$4,View!$B$25,$DS19),"") ->  | AC19: =IF(AC$5<>"",OFFSET(Data!AH$4,View!$B$25,$DS19),"") ->  | AD19: =IF(AD$5<>"",OFFSET(Data!AI$4,View!$B$25,$DS19),"") ->  | AE19: =IF(AE$5<>"",OFFSET(Data!AJ$4,View!$B$25,$DS19),"") ->  | AF19: =IF(AF$5<>"",OFFSET(Data!AK$4,View!$B$25,$DS19),"") ->  | AG19: =IF(AG$5<>"",OFFSET(Data!AL$4,View!$B$25,$DS19),"") ->  | AH19: =IF(AH$5<>"",OFFSET(Data!AM$4,View!$B$25,$DS19),"") ->  | AI19: =IF(AI$5<>"",OFFSET(Data!AN$4,View!$B$25,$DS19),"") ->  | AJ19: =IF(AJ$5<>"",OFFSET(Data!AO$4,View!$B$25,$DS19),"") ->  | AK19: =IF(AK$5<>"",OFFSET(Data!AP$4,View!$B$25,$DS19),"") ->  | AL19: =IF(AL$5<>"",OFFSET(Data!AQ$4,View!$B$25,$DS19),"") ->  | AM19: =IF(AM$5<>"",OFFSET(Data!AR$4,View!$B$25,$DS19),"") ->  | AN19: =IF(AN$5<>"",OFFSET(Data!AS$4,View!$B$25,$DS19),"") ->  | AO19: =IF(AO$5<>"",OFFSET(Data!AT$4,View!$B$25,$DS19),"") ->  | AP19: =IF(AP$5<>"",OFFSET(Data!AU$4,View!$B$25,$DS19),"") ->  | AQ19: =IF(AQ$5<>"",OFFSET(Data!AV$4,View!$B$25,$DS19),"") ->  | AR19: =IF(AR$5<>"",OFFSET(Data!AW$4,View!$B$25,$DS19),"") ->  | AS19: =IF(AS$5<>"",OFFSET(Data!AX$4,View!$B$25,$DS19),"") ->  | AT19: =IF(AT$5<>"",OFFSET(Data!AY$4,View!$B$25,$DS19),"") ->  | AU19: =IF(AU$5<>"",OFFSET(Data!AZ$4,View!$B$25,$DS19),"") ->  | AV19: =IF(AV$5<>"",OFFSET(Data!BA$4,View!$B$25,$DS19),"") ->  | AW19: =IF(AW$5<>"",OFFSET(Data!BB$4,View!$B$25,$DS19),"") ->  | AX19: =IF(AX$5<>"",OFFSET(Data!BC$4,View!$B$25,$DS19),"") ->  | AY19: =IF(AY$5<>"",OFFSET(Data!BD$4,View!$B$25,$DS19),"") ->  | AZ19: =IF(AZ$5<>"",OFFSET(Data!BE$4,View!$B$25,$DS19),"") ->  | BA19: =IF(BA$5<>"",OFFSET(Data!BF$4,View!$B$25,$DS19),"") ->  | BB19: =IF(BB$5<>"",OFFSET(Data!BG$4,View!$B$25,$DS19),"") ->  | BC19: =IF(BC$5<>"",OFFSET(Data!BH$4,View!$B$25,$DS19),"") ->  | BD19: =IF(BD$5<>"",OFFSET(Data!BI$4,View!$B$25,$DS19),"") ->  | BE19: =IF(BE$5<>"",OFFSET(Data!BJ$4,View!$B$25,$DS19),"") ->  | BF19: =IF(BF$5<>"",OFFSET(Data!BK$4,View!$B$25,$DS19),"") ->  | BG19: =IF(BG$5<>"",OFFSET(Data!BL$4,View!$B$25,$DS19),"") ->  | BH19: =IF(BH$5<>"",OFFSET(Data!BM$4,View!$B$25,$DS19),"") ->  | BI19: =IF(BI$5<>"",OFFSET(Data!BN$4,View!$B$25,$DS19),"") ->  | BJ19: =IF(BJ$5<>"",OFFSET(Data!BO$4,View!$B$25,$DS19),"") ->  | BK19: =IF(BK$5<>"",OFFSET(Data!BP$4,View!$B$25,$DS19),"") ->  | BL19: =IF(BL$5<>"",OFFSET(Data!BQ$4,View!$B$25,$DS19),"") ->  | BM19: =IF(BM$5<>"",OFFSET(Data!BR$4,View!$B$25,$DS19),"") ->  | BN19: =IF(BN$5<>"",OFFSET(Data!BS$4,View!$B$25,$DS19),"") ->  | BO19: =IF(BO$5<>"",OFFSET(Data!BT$4,View!$B$25,$DS19),"") ->  | BP19: =IF(BP$5<>"",OFFSET(Data!BU$4,View!$B$25,$DS19),"") ->  | BQ19: =IF(BQ$5<>"",OFFSET(Data!BV$4,View!$B$25,$DS19),"") ->  | BR19: =IF(BR$5<>"",OFFSET(Data!BW$4,View!$B$25,$DS19),"") ->  | BS19: =IF(BS$5<>"",OFFSET(Data!BX$4,View!$B$25,$DS19),"") ->  | BT19: =IF(BT$5<>"",OFFSET(Data!BY$4,View!$B$25,$DS19),"") ->  | BU19: =IF(BU$5<>"",OFFSET(Data!BZ$4,View!$B$25,$DS19),"") ->  | BV19: =IF(BV$5<>"",OFFSET(Data!CA$4,View!$B$25,$DS19),"") ->  | BW19: =IF(BW$5<>"",OFFSET(Data!CB$4,View!$B$25,$DS19),"") ->  | BX19: =IF(BX$5<>"",OFFSET(Data!CC$4,View!$B$25,$DS19),"") ->  | BY19: =IF(BY$5<>"",OFFSET(Data!CD$4,View!$B$25,$DS19),"") ->  | BZ19: =IF(BZ$5<>"",OFFSET(Data!CE$4,View!$B$25,$DS19),"") ->  | CA19: =IF(CA$5<>"",OFFSET(Data!CF$4,View!$B$25,$DS19),"") ->  | CB19: =IF(CB$5<>"",OFFSET(Data!CG$4,View!$B$25,$DS19),"") ->  | CC19: =IF(CC$5<>"",OFFSET(Data!CH$4,View!$B$25,$DS19),"") ->  | CD19: =IF(CD$5<>"",OFFSET(Data!CI$4,View!$B$25,$DS19),"") ->  | CE19: =IF(CE$5<>"",OFFSET(Data!CJ$4,View!$B$25,$DS19),"") ->  | CF19: =IF(CF$5<>"",OFFSET(Data!CK$4,View!$B$25,$DS19),"") ->  | CG19: =IF(CG$5<>"",OFFSET(Data!CL$4,View!$B$25,$DS19),"") ->  | CH19: =IF(CH$5<>"",OFFSET(Data!CM$4,View!$B$25,$DS19),"") ->  | CI19: =IF(CI$5<>"",OFFSET(Data!CN$4,View!$B$25,$DS19),"") ->  | CJ19: =IF(CJ$5<>"",OFFSET(Data!CO$4,View!$B$25,$DS19),"") ->  | CK19: =IF(CK$5<>"",OFFSET(Data!CP$4,View!$B$25,$DS19),"") ->  | CL19: =IF(CL$5<>"",OFFSET(Data!CQ$4,View!$B$25,$DS19),"") ->  | CM19: =IF(CM$5<>"",OFFSET(Data!CR$4,View!$B$25,$DS19),"") ->  | CN19: =IF(CN$5<>"",OFFSET(Data!CS$4,View!$B$25,$DS19),"") ->  | CO19: =IF(CO$5<>"",OFFSET(Data!CT$4,View!$B$25,$DS19),"") ->  | CP19: =IF(CP$5<>"",OFFSET(Data!CU$4,View!$B$25,$DS19),"") ->  | CQ19: =IF(CQ$5<>"",OFFSET(Data!CV$4,View!$B$25,$DS19),"") ->  | CR19: =IF(CR$5<>"",OFFSET(Data!CW$4,View!$B$25,$DS19),"") ->  | CS19: =IF(CS$5<>"",OFFSET(Data!CX$4,View!$B$25,$DS19),"") ->  | CT19: =IF(CT$5<>"",OFFSET(Data!CY$4,View!$B$25,$DS19),"") ->  | CU19: =IF(CU$5<>"",OFFSET(Data!CZ$4,View!$B$25,$DS19),"") ->  | CV19: =IF(CV$5<>"",OFFSET(Data!DA$4,View!$B$25,$DS19),"") ->  | CW19: =IF(CW$5<>"",OFFSET(Data!DB$4,View!$B$25,$DS19),"") ->  | CX19: =IF(CX$5<>"",OFFSET(Data!DC$4,View!$B$25,$DS19),"") ->  | CY19: =IF(CY$5<>"",OFFSET(Data!DD$4,View!$B$25,$DS19),"") ->  | CZ19: =IF(CZ$5<>"",OFFSET(Data!DE$4,View!$B$25,$DS19),"") ->  | DA19: =IF(DA$5<>"",OFFSET(Data!DF$4,View!$B$25,$DS19),"") ->  | DB19: =IF(DB$5<>"",OFFSET(Data!DG$4,View!$B$25,$DS19),"") ->  | DC19: =IF(DC$5<>"",OFFSET(Data!DH$4,View!$B$25,$DS19),"") ->  | DD19: =IF(DD$5<>"",OFFSET(Data!DI$4,View!$B$25,$DS19),"") ->  | DE19: =IF(DE$5<>"",OFFSET(Data!DJ$4,View!$B$25,$DS19),"") ->  | DF19: =IF(DF$5<>"",OFFSET(Data!DK$4,View!$B$25,$DS19),"") ->  | DG19: =IF(DG$5<>"",OFFSET(Data!DL$4,View!$B$25,$DS19),"") ->  | DH19: =IF(DH$5<>"",OFFSET(Data!DM$4,View!$B$25,$DS19),"") ->  | DI19: =IF(DI$5<>"",OFFSET(Data!DN$4,View!$B$25,$DS19),"") ->  | DJ19: =IF(DJ$5<>"",OFFSET(Data!DO$4,View!$B$25,$DS19),"") ->  | DK19: =IF(DK$5<>"",OFFSET(Data!DP$4,View!$B$25,$DS19),"") ->  | DL19: =IF(DL$5<>"",OFFSET(Data!DQ$4,View!$B$25,$DS19),"") ->  | DM19: =IF(DM$5<>"",OFFSET(Data!DR$4,View!$B$25,$DS19),"") ->  | DN19: =IF(DN$5<>"",OFFSET(Data!DS$4,View!$B$25,$DS19),"") ->  | DO19: =IF(DO$5<>"",OFFSET(Data!DT$4,View!$B$25,$DS19),"") ->  | DP19: =IF(DP$5<>"",OFFSET(Data!DU$4,View!$B$25,$DS19),"") ->  | DQ19: =IF(DQ$5<>"",OFFSET(Data!DV$4,View!$B$25,$DS19),"") ->  | DR19: =IF(DR$5<>"",OFFSET(Data!DW$4,View!$B$25,$DS19),"") ->  | DS19: =($C$41+1)*3 -> 3
A20: LCimax | B20: =IF(B$5<>"",OFFSET(Data!G$4,View!$B$25,$DS20),"") -> 0 | C20: =IF(C$5<>"",OFFSET(Data!H$4,View!$B$25,$DS20),"") -> 0 | D20: =IF(D$5<>"",OFFSET(Data!I$4,View!$B$25,$DS20),"") -> 0 | E20: =IF(E$5<>"",OFFSET(Data!J$4,View!$B$25,$DS20),"") -> 0 | F20: =IF(F$5<>"",OFFSET(Data!K$4,View!$B$25,$DS20),"") -> 0 | G20: =IF(G$5<>"",OFFSET(Data!L$4,View!$B$25,$DS20),"") -> 0 | H20: =IF(H$5<>"",OFFSET(Data!M$4,View!$B$25,$DS20),"") -> 0 | I20: =IF(I$5<>"",OFFSET(Data!N$4,View!$B$25,$DS20),"") -> 0 | J20: =IF(J$5<>"",OFFSET(Data!O$4,View!$B$25,$DS20),"") -> 0 | K20: =IF(K$5<>"",OFFSET(Data!P$4,View!$B$25,$DS20),"") -> 0 | L20: =IF(L$5<>"",OFFSET(Data!Q$4,View!$B$25,$DS20),"") -> 0 | M20: =IF(M$5<>"",OFFSET(Data!R$4,View!$B$25,$DS20),"") ->  | N20: =IF(N$5<>"",OFFSET(Data!S$4,View!$B$25,$DS20),"") ->  | O20: =IF(O$5<>"",OFFSET(Data!T$4,View!$B$25,$DS20),"") ->  | P20: =IF(P$5<>"",OFFSET(Data!U$4,View!$B$25,$DS20),"") ->  | Q20: =IF(Q$5<>"",OFFSET(Data!V$4,View!$B$25,$DS20),"") ->  | R20: =IF(R$5<>"",OFFSET(Data!W$4,View!$B$25,$DS20),"") ->  | S20: =IF(S$5<>"",OFFSET(Data!X$4,View!$B$25,$DS20),"") ->  | T20: =IF(T$5<>"",OFFSET(Data!Y$4,View!$B$25,$DS20),"") ->  | U20: =IF(U$5<>"",OFFSET(Data!Z$4,View!$B$25,$DS20),"") ->  | V20: =IF(V$5<>"",OFFSET(Data!AA$4,View!$B$25,$DS20),"") ->  | W20: =IF(W$5<>"",OFFSET(Data!AB$4,View!$B$25,$DS20),"") ->  | X20: =IF(X$5<>"",OFFSET(Data!AC$4,View!$B$25,$DS20),"") ->  | Y20: =IF(Y$5<>"",OFFSET(Data!AD$4,View!$B$25,$DS20),"") ->  | Z20: =IF(Z$5<>"",OFFSET(Data!AE$4,View!$B$25,$DS20),"") ->  | AA20: =IF(AA$5<>"",OFFSET(Data!AF$4,View!$B$25,$DS20),"") ->  | AB20: =IF(AB$5<>"",OFFSET(Data!AG$4,View!$B$25,$DS20),"") ->  | AC20: =IF(AC$5<>"",OFFSET(Data!AH$4,View!$B$25,$DS20),"") ->  | AD20: =IF(AD$5<>"",OFFSET(Data!AI$4,View!$B$25,$DS20),"") ->  | AE20: =IF(AE$5<>"",OFFSET(Data!AJ$4,View!$B$25,$DS20),"") ->  | AF20: =IF(AF$5<>"",OFFSET(Data!AK$4,View!$B$25,$DS20),"") ->  | AG20: =IF(AG$5<>"",OFFSET(Data!AL$4,View!$B$25,$DS20),"") ->  | AH20: =IF(AH$5<>"",OFFSET(Data!AM$4,View!$B$25,$DS20),"") ->  | AI20: =IF(AI$5<>"",OFFSET(Data!AN$4,View!$B$25,$DS20),"") ->  | AJ20: =IF(AJ$5<>"",OFFSET(Data!AO$4,View!$B$25,$DS20),"") ->  | AK20: =IF(AK$5<>"",OFFSET(Data!AP$4,View!$B$25,$DS20),"") ->  | AL20: =IF(AL$5<>"",OFFSET(Data!AQ$4,View!$B$25,$DS20),"") ->  | AM20: =IF(AM$5<>"",OFFSET(Data!AR$4,View!$B$25,$DS20),"") ->  | AN20: =IF(AN$5<>"",OFFSET(Data!AS$4,View!$B$25,$DS20),"") ->  | AO20: =IF(AO$5<>"",OFFSET(Data!AT$4,View!$B$25,$DS20),"") ->  | AP20: =IF(AP$5<>"",OFFSET(Data!AU$4,View!$B$25,$DS20),"") ->  | AQ20: =IF(AQ$5<>"",OFFSET(Data!AV$4,View!$B$25,$DS20),"") ->  | AR20: =IF(AR$5<>"",OFFSET(Data!AW$4,View!$B$25,$DS20),"") ->  | AS20: =IF(AS$5<>"",OFFSET(Data!AX$4,View!$B$25,$DS20),"") ->  | AT20: =IF(AT$5<>"",OFFSET(Data!AY$4,View!$B$25,$DS20),"") ->  | AU20: =IF(AU$5<>"",OFFSET(Data!AZ$4,View!$B$25,$DS20),"") ->  | AV20: =IF(AV$5<>"",OFFSET(Data!BA$4,View!$B$25,$DS20),"") ->  | AW20: =IF(AW$5<>"",OFFSET(Data!BB$4,View!$B$25,$DS20),"") ->  | AX20: =IF(AX$5<>"",OFFSET(Data!BC$4,View!$B$25,$DS20),"") ->  | AY20: =IF(AY$5<>"",OFFSET(Data!BD$4,View!$B$25,$DS20),"") ->  | AZ20: =IF(AZ$5<>"",OFFSET(Data!BE$4,View!$B$25,$DS20),"") ->  | BA20: =IF(BA$5<>"",OFFSET(Data!BF$4,View!$B$25,$DS20),"") ->  | BB20: =IF(BB$5<>"",OFFSET(Data!BG$4,View!$B$25,$DS20),"") ->  | BC20: =IF(BC$5<>"",OFFSET(Data!BH$4,View!$B$25,$DS20),"") ->  | BD20: =IF(BD$5<>"",OFFSET(Data!BI$4,View!$B$25,$DS20),"") ->  | BE20: =IF(BE$5<>"",OFFSET(Data!BJ$4,View!$B$25,$DS20),"") ->  | BF20: =IF(BF$5<>"",OFFSET(Data!BK$4,View!$B$25,$DS20),"") ->  | BG20: =IF(BG$5<>"",OFFSET(Data!BL$4,View!$B$25,$DS20),"") ->  | BH20: =IF(BH$5<>"",OFFSET(Data!BM$4,View!$B$25,$DS20),"") ->  | BI20: =IF(BI$5<>"",OFFSET(Data!BN$4,View!$B$25,$DS20),"") ->  | BJ20: =IF(BJ$5<>"",OFFSET(Data!BO$4,View!$B$25,$DS20),"") ->  | BK20: =IF(BK$5<>"",OFFSET(Data!BP$4,View!$B$25,$DS20),"") ->  | BL20: =IF(BL$5<>"",OFFSET(Data!BQ$4,View!$B$25,$DS20),"") ->  | BM20: =IF(BM$5<>"",OFFSET(Data!BR$4,View!$B$25,$DS20),"") ->  | BN20: =IF(BN$5<>"",OFFSET(Data!BS$4,View!$B$25,$DS20),"") ->  | BO20: =IF(BO$5<>"",OFFSET(Data!BT$4,View!$B$25,$DS20),"") ->  | BP20: =IF(BP$5<>"",OFFSET(Data!BU$4,View!$B$25,$DS20),"") ->  | BQ20: =IF(BQ$5<>"",OFFSET(Data!BV$4,View!$B$25,$DS20),"") ->  | BR20: =IF(BR$5<>"",OFFSET(Data!BW$4,View!$B$25,$DS20),"") ->  | BS20: =IF(BS$5<>"",OFFSET(Data!BX$4,View!$B$25,$DS20),"") ->  | BT20: =IF(BT$5<>"",OFFSET(Data!BY$4,View!$B$25,$DS20),"") ->  | BU20: =IF(BU$5<>"",OFFSET(Data!BZ$4,View!$B$25,$DS20),"") ->  | BV20: =IF(BV$5<>"",OFFSET(Data!CA$4,View!$B$25,$DS20),"") ->  | BW20: =IF(BW$5<>"",OFFSET(Data!CB$4,View!$B$25,$DS20),"") ->  | BX20: =IF(BX$5<>"",OFFSET(Data!CC$4,View!$B$25,$DS20),"") ->  | BY20: =IF(BY$5<>"",OFFSET(Data!CD$4,View!$B$25,$DS20),"") ->  | BZ20: =IF(BZ$5<>"",OFFSET(Data!CE$4,View!$B$25,$DS20),"") ->  | CA20: =IF(CA$5<>"",OFFSET(Data!CF$4,View!$B$25,$DS20),"") ->  | CB20: =IF(CB$5<>"",OFFSET(Data!CG$4,View!$B$25,$DS20),"") ->  | CC20: =IF(CC$5<>"",OFFSET(Data!CH$4,View!$B$25,$DS20),"") ->  | CD20: =IF(CD$5<>"",OFFSET(Data!CI$4,View!$B$25,$DS20),"") ->  | CE20: =IF(CE$5<>"",OFFSET(Data!CJ$4,View!$B$25,$DS20),"") ->  | CF20: =IF(CF$5<>"",OFFSET(Data!CK$4,View!$B$25,$DS20),"") ->  | CG20: =IF(CG$5<>"",OFFSET(Data!CL$4,View!$B$25,$DS20),"") ->  | CH20: =IF(CH$5<>"",OFFSET(Data!CM$4,View!$B$25,$DS20),"") ->  | CI20: =IF(CI$5<>"",OFFSET(Data!CN$4,View!$B$25,$DS20),"") ->  | CJ20: =IF(CJ$5<>"",OFFSET(Data!CO$4,View!$B$25,$DS20),"") ->  | CK20: =IF(CK$5<>"",OFFSET(Data!CP$4,View!$B$25,$DS20),"") ->  | CL20: =IF(CL$5<>"",OFFSET(Data!CQ$4,View!$B$25,$DS20),"") ->  | CM20: =IF(CM$5<>"",OFFSET(Data!CR$4,View!$B$25,$DS20),"") ->  | CN20: =IF(CN$5<>"",OFFSET(Data!CS$4,View!$B$25,$DS20),"") ->  | CO20: =IF(CO$5<>"",OFFSET(Data!CT$4,View!$B$25,$DS20),"") ->  | CP20: =IF(CP$5<>"",OFFSET(Data!CU$4,View!$B$25,$DS20),"") ->  | CQ20: =IF(CQ$5<>"",OFFSET(Data!CV$4,View!$B$25,$DS20),"") ->  | CR20: =IF(CR$5<>"",OFFSET(Data!CW$4,View!$B$25,$DS20),"") ->  | CS20: =IF(CS$5<>"",OFFSET(Data!CX$4,View!$B$25,$DS20),"") ->  | CT20: =IF(CT$5<>"",OFFSET(Data!CY$4,View!$B$25,$DS20),"") ->  | CU20: =IF(CU$5<>"",OFFSET(Data!CZ$4,View!$B$25,$DS20),"") ->  | CV20: =IF(CV$5<>"",OFFSET(Data!DA$4,View!$B$25,$DS20),"") ->  | CW20: =IF(CW$5<>"",OFFSET(Data!DB$4,View!$B$25,$DS20),"") ->  | CX20: =IF(CX$5<>"",OFFSET(Data!DC$4,View!$B$25,$DS20),"") ->  | CY20: =IF(CY$5<>"",OFFSET(Data!DD$4,View!$B$25,$DS20),"") ->  | CZ20: =IF(CZ$5<>"",OFFSET(Data!DE$4,View!$B$25,$DS20),"") ->  | DA20: =IF(DA$5<>"",OFFSET(Data!DF$4,View!$B$25,$DS20),"") ->  | DB20: =IF(DB$5<>"",OFFSET(Data!DG$4,View!$B$25,$DS20),"") ->  | DC20: =IF(DC$5<>"",OFFSET(Data!DH$4,View!$B$25,$DS20),"") ->  | DD20: =IF(DD$5<>"",OFFSET(Data!DI$4,View!$B$25,$DS20),"") ->  | DE20: =IF(DE$5<>"",OFFSET(Data!DJ$4,View!$B$25,$DS20),"") ->  | DF20: =IF(DF$5<>"",OFFSET(Data!DK$4,View!$B$25,$DS20),"") ->  | DG20: =IF(DG$5<>"",OFFSET(Data!DL$4,View!$B$25,$DS20),"") ->  | DH20: =IF(DH$5<>"",OFFSET(Data!DM$4,View!$B$25,$DS20),"") ->  | DI20: =IF(DI$5<>"",OFFSET(Data!DN$4,View!$B$25,$DS20),"") ->  | DJ20: =IF(DJ$5<>"",OFFSET(Data!DO$4,View!$B$25,$DS20),"") ->  | DK20: =IF(DK$5<>"",OFFSET(Data!DP$4,View!$B$25,$DS20),"") ->  | DL20: =IF(DL$5<>"",OFFSET(Data!DQ$4,View!$B$25,$DS20),"") ->  | DM20: =IF(DM$5<>"",OFFSET(Data!DR$4,View!$B$25,$DS20),"") ->  | DN20: =IF(DN$5<>"",OFFSET(Data!DS$4,View!$B$25,$DS20),"") ->  | DO20: =IF(DO$5<>"",OFFSET(Data!DT$4,View!$B$25,$DS20),"") ->  | DP20: =IF(DP$5<>"",OFFSET(Data!DU$4,View!$B$25,$DS20),"") ->  | DQ20: =IF(DQ$5<>"",OFFSET(Data!DV$4,View!$B$25,$DS20),"") ->  | DR20: =IF(DR$5<>"",OFFSET(Data!DW$4,View!$B$25,$DS20),"") ->  | DS20: =($C$41+1)*7 -> 7
A24: Filename | B24: =OFFSET(Data!A4,View!$B$25,0)&"" -> 
A25: Index | B25: 1
A26: Note | B26: =OFFSET(Notes!B4,View!$B$25,0)&"" -> 
B41: 1 | C41: =OFFSET(Data!F4,View!$B$25,0) -> 0 | D41: =OFFSET(Data!E4,View!$B$25,0) -> 0 | E41: =IF(D41>0,CEILING(LOG(D41*2/3)/LOG(2),1),0) -> 0
B42: =B5 -> overall | C42: 31.5 | D42: 63 | E42: 125 | F42: 250 | G42: 500 | H42: 1000 | I42: =I5 -> 2000 | J42: =J5 -> 4000 | K42: 8000 | L42: 16000 | AP42: =AP5 ->  | BV42: =BV5 ->  | DB42: =DB5 -> 
A43: =OFFSET(A5,$B$41,0) -> LZeq | B43: 0 | C43: 0 | D43: 0 | E43: 0 | F43: 0 | G43: 0 | H43: 0 | I43: 0 | J43: 0 | K43: 0 | L43: 0 | AG43: =OFFSET(AG5,$B$41,0) ->  | BM43: =OFFSET(BM5,$B$41,0) ->  | CS43: =OFFSET(CS5,$B$41,0) -> 
C45: 31.5 | D45: 63 | E45: 125 | F45: 250 | G45: 500 | H45: 1000 | I45: 2000 | J45: 4000 | K45: 8000 | L45: 16000
C46: 25 | D46: 31.5 | E46: 40 | F46: 50 | G46: 63 | H46: 80 | I46: 100 | J46: 125 | K46: 160 | L46: 200 | M46: 250 | N46: 315 | O46: 400 | P46: 500 | Q46: 625 | R46: 800 | S46: 1000 | T46: 1250 | U46: 1600 | V46: 2000 | W46: 2500 | X46: 3150 | Y46: 4000 | Z46: 5000 | AA46: 6250 | AB46: 8000 | AC46: 10000 | AD46: 12500 | AE46: 16000 | AF46: 20000
C47: 23.7 | D47: 26.6 | E47: 29.9 | F47: 33.5 | G47: 37.6 | H47: 42.2 | I47: 47.3 | J47: 53 | K47: 60 | L47: 67 | M47: 75 | N47: 84 | O47: 94 | P47: 106 | Q47: 119 | R47: 133 | S47: 150 | T47: 168 | U47: 188 | V47: 211 | W47: =C47*10 -> 237 | X47: 266 | Y47: 299 | Z47: 335 | AA47: 376 | AB47: 422 | AC47: 473 | AD47: 530 | AE47: 600 | AF47: 670 | AG47: 750 | AH47: 840 | AI47: 940 | AJ47: 1060 | AK47: 1190 | AL47: 1330 | AM47: 1500 | AN47: 1680 | AO47: 1880 | AP47: 2110 | AQ47: 2370 | AR47: 2660 | AS47: 2990 | AT47: 3350 | AU47: 3760 | AV47: 4220 | AW47: =AC47*10 -> 4730 | AX47: =AD47*10 -> 5300 | AY47: =AE47*10 -> 6000 | AZ47: =AF47*10 -> 6700 | BA47: =AG47*10 -> 7500 | BB47: =AH47*10 -> 8400 | BC47: =AI47*10 -> 9400 | BD47: =AJ47*10 -> 10600 | BE47: =AK47*10 -> 11900 | BF47: =AL47*10 -> 13300 | BG47: =AM47*10 -> 15000 | BH47: =AN47*10 -> 16800 | BI47: =AO47*10 -> 18800 | BJ47: =AP47*10 -> 21100
C48: 23 | D48: 24.4 | E48: 25.9 | F48: 27.4 | G48: 29 | H48: 30.7 | I48: 32.5 | J48: 34.5 | K48: 36.5 | L48: 38.7 | M48: 41 | N48: 43.4 | O48: 46 | P48: 48.7 | Q48: 52 | R48: 55 | S48: 58 | T48: 61 | U48: 65 | V48: 69 | W48: 73 | X48: 77 | Y48: 82 | Z48: 87 | AA48: 92 | AB48: 97 | AC48: 103 | AD48: 109 | AE48: 115 | AF48: 122 | AG48: 130 | AH48: 137 | AI48: 145 | AJ48: 154 | AK48: 163 | AL48: 173 | AM48: 183 | AN48: 194 | AO48: 205 | AP48: 218 | AQ48: 230 | AR48: 244 | AS48: 259 | AT48: 274 | AU48: 290 | AV48: 307 | AW48: 325 | AX48: 345 | AY48: 365 | AZ48: 387 | BA48: 410 | BB48: 434 | BC48: 460 | BD48: 487 | BE48: 520 | BF48: 550 | BG48: 580 | BH48: 610 | BI48: 650 | BJ48: 690 | BK48: 730 | BL48: 770 | BM48: 820 | BN48: 870 | BO48: 920 | BP48: 970 | BQ48: 1030 | BR48: 1090 | BS48: 1150 | BT48: 1220 | BU48: 1300 | BV48: 1370 | BW48: 1450 | BX48: 1540 | BY48: 1630 | BZ48: 1730 | CA48: 1830 | CB48: 1940 | CC48: 2050 | CD48: 2180 | CE48: 2300 | CF48: 2440 | CG48: 2590 | CH48: 2740 | CI48: 2900 | CJ48: 3070 | CK48: 3250 | CL48: 3450 | CM48: 3650 | CN48: 3870 | CO48: 4100 | CP48: 4340 | CQ48: 4600 | CR48: 4870 | CS48: 5200 | CT48: 5500 | CU48: 5800 | CV48: 6100 | CW48: 6500 | CX48: 6900 | CY48: 7300 | CZ48: 7700 | DA48: 8200 | DB48: 8700 | DC48: 9200 | DD48: 9700 | DE48: 10300 | DF48: 10900 | DG48: 11500 | DH48: 12200 | DI48: 13000 | DJ48: 13700 | DK48: 14500 | DL48: 15400 | DM48: 16300 | DN48: 17300 | DO48: 18300 | DP48: 19400 | DQ48: 20500 | DR48: 21800

Sheet Data
B1: date | C1: time | D1: duration | E1: bandtype | F1: bandcount | G1: LAeq | H1: LAeq_31.5 | I1: LAeq_63 | J1: LAeq_125 | K1: LAeq_250 | L1: LAeq_500 | M1: LAeq_1000 | N1: LAeq_2000 | O1: LAeq_4000 | P1: LAeq_8000 | Q1: LAeq_16000 | R1: LAfmax | S1: LAfmax_31.5 | T1: LAfmax_63 | U1: LAfmax_125 | V1: LAfmax_250 | W1: LAfmax_500 | X1: LAfmax_1000 | Y1: LAfmax_2000 | Z1: LAfmax_4000 | AA1: LAfmax_8000 | AB1: LAfmax_16000 | AC1: LAsmax | AD1: LAsmax_31.5 | AE1: LAsmax_63 | AF1: LAsmax_125 | AG1: LAsmax_250 | AH1: LAsmax_500 | AI1: LAsmax_1000 | AJ1: LAsmax_2000 | AK1: LAsmax_4000 | AL1: LAsmax_8000 | AM1: LAsmax_16000 | AN1: LAimax | AO1: LAimax_31.5 | AP1: LAimax_63 | AQ1: LAimax_125 | AR1: LAimax_250 | AS1: LAimax_500 | AT1: LAimax_1000 | AU1: LAimax_2000 | AV1: LAimax_4000 | AW1: LAimax_8000 | AX1: LAimax_16000 | AY1: LCeq | AZ1: LCeq_31.5 | BA1: LCeq_63 | BB1: LCeq_125 | BC1: LCeq_250 | BD1: LCeq_500 | BE1: LCeq_1000 | BF1: LCeq_2000 | BG1: LCeq_4000 | BH1: LCeq_8000 | BI1: LCeq_16000 | BJ1: LCfmax | BK1: LCfmax_31.5 | BL1: LCfmax_63 | BM1: LCfmax_125 | BN1: LCfmax_250 | BO1: LCfmax_500 | BP1: LCfmax_1000 | BQ1: LCfmax_2000 | BR1: LCfmax_4000 | BS1: LCfmax_8000 | BT1: LCfmax_16000 | BU1: LCsmax | BV1: LCsmax_31.5 | BW1: LCsmax_63 | BX1: LCsmax_125 | BY1: LCsmax_250 | BZ1: LCsmax_500 | CA1: LCsmax_1000 | CB1: LCsmax_2000 | CC1: LCsmax_4000 | CD1: LCsmax_8000 | CE1: LCsmax_16000 | CF1: LCimax | CG1: LCimax_31.5 | CH1: LCimax_63 | CI1: LCimax_125 | CJ1: LCimax_250 | CK1: LCimax_500 | CL1: LCimax_1000 | CM1: LCimax_2000 | CN1: LCimax_4000 | CO1: LCimax_8000 | CP1: LCimax_16000 | CQ1: LZeq | CR1: LZeq_31.5 | CS1: LZeq_63 | CT1: LZeq_125 | CU1: LZeq_250 | CV1: LZeq_500 | CW1: LZeq_1000 | CX1: LZeq_2000 | CY1: LZeq_4000 | CZ1: LZeq_8000 | DA1: LZeq_16000 | DB1: LZfmax | DC1: LZfmax_31.5 | DD1: LZfmax_63 | DE1: LZfmax_125 | DF1: LZfmax_250 | DG1: LZfmax_500 | DH1: LZfmax_1000 | DI1: LZfmax_2000 | DJ1: LZfmax_4000 | DK1: LZfmax_8000 | DL1: LZfmax_16000 | DM1: LZsmax | DN1: LZsmax_31.5 | DO1: LZsmax_63 | DP1: LZsmax_125 | DQ1: LZsmax_250 | DR1: LZsmax_500 | DS1: LZsmax_1000 | DT1: LZsmax_2000 | DU1: LZsmax_4000 | DV1: LZsmax_8000 | DW1: LZsmax_16000 | DX1: LZimax | DY1: LZimax_31.5 | DZ1: LZimax_63 | EA1: LZimax_125 | EB1: LZimax_250 | EC1: LZimax_500 | ED1: LZimax_1000 | EE1: LZimax_2000 | EF1: LZimax_4000 | EG1: LZimax_8000 | EH1: LZimax_16000
B2: date | C2: time | D2: duration | E2: bandtype | F2: bandcount | G2: LAeq | H2: LAeq_25 | I2: LAeq_31.5 | J2: LAeq_40 | K2: LAeq_50 | L2: LAeq_63 | M2: LAeq_80 | N2: LAeq_100 | O2: LAeq_125 | P2: LAeq_160 | Q2: LAeq_200 | R2: LAeq_250 | S2: LAeq_315 | T2: LAeq_400 | U2: LAeq_500 | V2: LAeq_625 | W2: LAeq_800 | X2: LAeq_1000 | Y2: LAeq_1250 | Z2: LAeq_1600 | AA2: LAeq_2000 | AB2: LAeq_2500 | AC2: LAeq_3150 | AD2: LAeq_4000 | AE2: LAeq_5000 | AF2: LAeq_6250 | AG2: LAeq_8000 | AH2: LAeq_10000 | AI2: LAeq_12500 | AJ2: LAeq_16000 | AK2: LAeq_20000 | AL2: LAfmax | AM2: LAfmax_25 | AN2: LAfmax_31.5 | AO2: LAfmax_40 | AP2: LAfmax_50 | AQ2: LAfmax_63 | AR2: LAfmax_80 | AS2: LAfmax_100 | AT2: LAfmax_125 | AU2: LAfmax_160 | AV2: LAfmax_200 | AW2: LAfmax_250 | AX2: LAfmax_315 | AY2: LAfmax_400 | AZ2: LAfmax_500 | BA2: LAfmax_625 | BB2: LAfmax_800 | BC2: LAfmax_1000 | BD2: LAfmax_1250 | BE2: LAfmax_1600 | BF2: LAfmax_2000 | BG2: LAfmax_2500 | BH2: LAfmax_3150 | BI2: LAfmax_4000 | BJ2: LAfmax_5000 | BK2: LAfmax_6250 | BL2: LAfmax_8000 | BM2: LAfmax_10000 | BN2: LAfmax_12500 | BO2: LAfmax_16000 | BP2: LAfmax_20000 | BQ2: LAsmax | BR2: LAsmax_25 | BS2: LAsmax_31.5 | BT2: LAsmax_40 | BU2: LAsmax_50 | BV2: LAsmax_63 | BW2: LAsmax_80 | BX2: LAsmax_100 | BY2: LAsmax_125 | BZ2: LAsmax_160 | CA2: LAsmax_200 | CB2: LAsmax_250 | CC2: LAsmax_315 | CD2: LAsmax_400 | CE2: LAsmax_500 | CF2: LAsmax_625 | CG2: LAsmax_800 | CH2: LAsmax_1000 | CI2: LAsmax_1250 | CJ2: LAsmax_1600 | CK2: LAsmax_2000 | CL2: LAsmax_2500 | CM2: LAsmax_3150 | CN2: LAsmax_4000 | CO2: LAsmax_5000 | CP2: LAsmax_6250 | CQ2: LAsmax_8000 | CR2: LAsmax_10000 | CS2: LAsmax_12500 | CT2: LAsmax_16000 | CU2: LAsmax_20000 | CV2: LAimax | CW2: LAimax_25 | CX2: LAimax_31.5 | CY2: LAimax_40 | CZ2: LAimax_50 | DA2: LAimax_63 | DB2: LAimax_80 | DC2: LAimax_100 | DD2: LAimax_125 | DE2: LAimax_160 | DF2: LAimax_200 | DG2: LAimax_250 | DH2: LAimax_315 | DI2: LAimax_400 | DJ2: LAimax_500 | DK2: LAimax_625 | DL2: LAimax_800 | DM2: LAimax_1000 | DN2: LAimax_1250 | DO2: LAimax_1600 | DP2: LAimax_2000 | DQ2: LAimax_2500 | DR2: LAimax_3150 | DS2: LAimax_4000 | DT2: LAimax_5000 | DU2: LAimax_6250 | DV2: LAimax_8000 | DW2: LAimax_10000 | DX2: LAimax_12500 | DY2: LAimax_16000 | DZ2: LAimax_20000 | EA2: LCeq | EB2: LCeq_25 | EC2: LCeq_31.5 | ED2: LCeq_40 | EE2: LCeq_50 | EF2: LCeq_63 | EG2: LCeq_80 | EH2: LCeq_100 | EI2: LCeq_125 | EJ2: LCeq_160 | EK2: LCeq_200 | EL2: LCeq_250 | EM2: LCeq_315 | EN2: LCeq_400 | EO2: LCeq_500 | EP2: LCeq_625 | EQ2: LCeq_800 | ER2: LCeq_1000 | ES2: LCeq_1250 | ET2: LCeq_1600 | EU2: LCeq_2000 | EV2: LCeq_2500 | EW2: LCeq_3150 | EX2: LCeq_4000 | EY2: LCeq_5000 | EZ2: LCeq_6250 | FA2: LCeq_8000 | FB2: LCeq_10000 | FC2: LCeq_12500 | FD2: LCeq_16000 | FE2: LCeq_20000 | FF2: LCfmax | FG2: LCfmax_25 | FH2: LCfmax_31.5 | FI2: LCfmax_40 | FJ2: LCfmax_50 | FK2: LCfmax_63 | FL2: LCfmax_80 | FM2: LCfmax_100 | FN2: LCfmax_125 | FO2: LCfmax_160 | FP2: LCfmax_200 | FQ2: LCfmax_250 | FR2: LCfmax_315 | FS2: LCfmax_400 | FT2: LCfmax_500 | FU2: LCfmax_625 | FV2: LCfmax_800 | FW2: LCfmax_1000 | FX2: LCfmax_1250 | FY2: LCfmax_1600 | FZ2: LCfmax_2000 | GA2: LCfmax_2500 | GB2: LCfmax_3150 | GC2: LCfmax_4000 | GD2: LCfmax_5000 | GE2: LCfmax_6250 | GF2: LCfmax_8000 | GG2: LCfmax_10000 | GH2: LCfmax_12500 | GI2: LCfmax_16000 | GJ2: LCfmax_20000 | GK2: LCsmax | GL2: LCsmax_25 | GM2: LCsmax_31.5 | GN2: LCsmax_40 | GO2: LCsmax_50 | GP2: LCsmax_63 | GQ2: LCsmax_80 | GR2: LCsmax_100 | GS2: LCsmax_125 | GT2: LCsmax_160 | GU2: LCsmax_200 | GV2: LCsmax_250 | GW2: LCsmax_315 | GX2: LCsmax_400 | GY2: LCsmax_500 | GZ2: LCsmax_625 | HA2: LCsmax_800 | HB2: LCsmax_1000 | HC2: LCsmax_1250 | HD2: LCsmax_1600 | HE2: LCsmax_2000 | HF2: LCsmax_2500 | HG2: LCsmax_3150 | HH2: LCsmax_4000 | HI2: LCsmax_5000 | HJ2: LCsmax_6250 | HK2: LCsmax_8000 | HL2: LCsmax_10000 | HM2: LCsmax_12500 | HN2: LCsmax_16000 | HO2: LCsmax_20000 | HP2: LCimax | HQ2: LCimax_25 | HR2: LCimax_31.5 | HS2: LCimax_40 | HT2: LCimax_50 | HU2: LCimax_63 | HV2: LCimax_80 | HW2: LCimax_100 | HX2: LCimax_125 | HY2: LCimax_160 | HZ2: LCimax_200 | IA2: LCimax_250 | IB2: LCimax_315 | IC2: LCimax_400 | ID2: LCimax_500 | IE2: LCimax_625 | IF2: LCimax_800 | IG2: LCimax_1000 | IH2: LCimax_1250 | II2: LCimax_1600 | IJ2: LCimax_2000 | IK2: LCimax_2500 | IL2: LCimax_3150 | IM2: LCimax_4000 | IN2: LCimax_5000 | IO2: LCimax_6250 | IP2: LCimax_8000 | IQ2: LCimax_10000 | IR2: LCimax_12500 | IS2: LCimax_16000 | IT2: LCimax_20000 | IU2: LZeq | IV2: LZeq_25 | IW2: LZeq_31.5 | IX2: LZeq_40 | IY2: LZeq_50 | IZ2: LZeq_63 | JA2: LZeq_80 | JB2: LZeq_100 | JC2: LZeq_125 | JD2: LZeq_160 | JE2: LZeq_200 | JF2: LZeq_250 | JG2: LZeq_315 | JH2: LZeq_400 | JI2: LZeq_500 | JJ2: LZeq_625 | JK2: LZeq_800 | JL2: LZeq_1000 | JM2: LZeq_1250 | JN2: LZeq_1600 | JO2: LZeq_2000 | JP2: LZeq_2500 | JQ2: LZeq_3150 | JR2: LZeq_4000 | JS2: LZeq_5000 | JT2: LZeq_6250 | JU2: LZeq_8000 | JV2: LZeq_10000 | JW2: LZeq_12500 | JX2: LZeq_16000 | JY2: LZeq_20000 | JZ2: LZfmax | KA2: LZfmax_25 | KB2: LZfmax_31.5 | KC2: LZfmax_40 | KD2: LZfmax_50 | KE2: LZfmax_63 | KF2: LZfmax_80 | KG2: LZfmax_100 | KH2: LZfmax_125 | KI2: LZfmax_160 | KJ2: LZfmax_200 | KK2: LZfmax_250 | KL2: LZfmax_315 | KM2: LZfmax_400 | KN2: LZfmax_500 | KO2: LZfmax_625 | KP2: LZfmax_800 | KQ2: LZfmax_1000 | KR2: LZfmax_1250 | KS2: LZfmax_1600 | KT2: LZfmax_2000 | KU2: LZfmax_2500 | KV2: LZfmax_3150 | KW2: LZfmax_4000 | KX2: LZfmax_5000 | KY2: LZfmax_6250 | KZ2: LZfmax_8000 | LA2: LZfmax_10000 | LB2: LZfmax_12500 | LC2: LZfmax_16000 | LD2: LZfmax_20000 | LE2: LZsmax | LF2: LZsmax_25 | LG2: LZsmax_31.5 | LH2: LZsmax_40 | LI2: LZsmax_50 | LJ2: LZsmax_63 | LK2: LZsmax_80 | LL2: LZsmax_100 | LM2: LZsmax_125 | LN2: LZsmax_160 | LO2: LZsmax_200 | LP2: LZsmax_250 | LQ2: LZsmax_315 | LR2: LZsmax_400 | LS2: LZsmax_500 | LT2: LZsmax_625 | LU2: LZsmax_800 | LV2: LZsmax_1000 | LW2: LZsmax_1250 | LX2: LZsmax_1600 | LY2: LZsmax_2000 | LZ2: LZsmax_2500 | MA2: LZsmax_3150 | MB2: LZsmax_4000 | MC2: LZsmax_5000 | MD2: LZsmax_6250 | ME2: LZsmax_8000 | MF2: LZsmax_10000 | MG2: LZsmax_12500 | MH2: LZsmax_16000 | MI2: LZsmax_20000 | MJ2: LZimax | MK2: LZimax_25 | ML2: LZimax_31.5 | MM2: LZimax_40 | MN2: LZimax_50 | MO2: LZimax_63 | MP2: LZimax_80 | MQ2: LZimax_100 | MR2: LZimax_125 | MS2: LZimax_160 | MT2: LZimax_200 | MU2: LZimax_250 | MV2: LZimax_315 | MW2: LZimax_400 | MX2: LZimax_500 | MY2: LZimax_625 | MZ2: LZimax_800 | NA2: LZimax_1000 | NB2: LZimax_1250 | NC2: LZimax_1600 | ND2: LZimax_2000 | NE2: LZimax_2500 | NF2: LZimax_3150 | NG2: LZimax_4000 | NH2: LZimax_5000 | NI2: LZimax_6250 | NJ2: LZimax_8000 | NK2: LZimax_10000 | NL2: LZimax_12500 | NM2: LZimax_16000 | NN2: LZimax_20000
B3: date | C3: time | D3: duration | E3: bandtype | F3: bandcount | G3: LAeq | H3: LAeq_23.7 | I3: LAeq_26.6 | J3: LAeq_29.9 | K3: LAeq_33.5 | L3: LAeq_37.6 | M3: LAeq_42.2 | N3: LAeq_47.3 | O3: LAeq_53 | P3: LAeq_60 | Q3: LAeq_67 | R3: LAeq_75 | S3: LAeq_84 | T3: LAeq_94 | U3: LAeq_106 | V3: LAeq_119 | W3: LAeq_133 | X3: LAeq_150 | Y3: LAeq_168 | Z3: LAeq_188 | AA3: LAeq_211 | AB3: LAeq_237 | AC3: LAeq_266 | AD3: LAeq_299 | AE3: LAeq_335 | AF3: LAeq_376 | AG3: LAeq_422 | AH3: LAeq_473 | AI3: LAeq_530 | AJ3: LAeq_600 | AK3: LAeq_670 | AL3: LAeq_750 | AM3: LAeq_840 | AN3: LAeq_940 | AO3: LAeq_1060 | AP3: LAeq_1190 | AQ3: LAeq_1330 | AR3: LAeq_1500 | AS3: LAeq_1680 | AT3: LAeq_1880 | AU3: LAeq_2110 | AV3: LAeq_2370 | AW3: LAeq_2660 | AX3: LAeq_2990 | AY3: LAeq_3350 | AZ3: LAeq_3760 | BA3: LAeq_4220 | BB3: LAeq_4730 | BC3: LAeq_5300 | BD3: LAeq_6000 | BE3: LAeq_6700 | BF3: LAeq_7500 | BG3: LAeq_8400 | BH3: LAeq_9400 | BI3: LAeq_10600 | BJ3: LAeq_11900 | BK3: LAeq_13300 | BL3: LAeq_15000 | BM3: LAeq_16800 | BN3: LAeq_18800 | BO3: LAeq_21100 | BP3: LAfmax | BQ3: LAfmax_23.7 | BR3: LAfmax_26.6 | BS3: LAfmax_29.9 | BT3: LAfmax_33.5 | BU3: LAfmax_37.6 | BV3: LAfmax_42.2 | BW3: LAfmax_47.3 | BX3: LAfmax_53 | BY3: LAfmax_60 | BZ3: LAfmax_67 | CA3: LAfmax_75 | CB3: LAfmax_84 | CC3: LAfmax_94 | CD3: LAfmax_106 | CE3: LAfmax_119 | CF3: LAfmax_133 | CG3: LAfmax_150 | CH3: LAfmax_168 | CI3: LAfmax_188 | CJ3: LAfmax_211 | CK3: LAfmax_237 | CL3: LAfmax_266 | CM3: LAfmax_299 | CN3: LAfmax_335 | CO3: LAfmax_376 | CP3: LAfmax_422 | CQ3: LAfmax_473 | CR3: LAfmax_530 | CS3: LAfmax_600 | CT3: LAfmax_670 | CU3: LAfmax_750 | CV3: LAfmax_840 | CW3: LAfmax_940 | CX3: LAfmax_1060 | CY3: LAfmax_1190 | CZ3: LAfmax_1330 | DA3: LAfmax_1500 | DB3: LAfmax_1680 | DC3: LAfmax_1880 | DD3: LAfmax_2110 | DE3: LAfmax_2370 | DF3: LAfmax_2660 | DG3: LAfmax_2990 | DH3: LAfmax_3350 | DI3: LAfmax_3760 | DJ3: LAfmax_4220 | DK3: LAfmax_4730 | DL3: LAfmax_5300 | DM3: LAfmax_6000 | DN3: LAfmax_6700 | DO3: LAfmax_7500 | DP3: LAfmax_8400 | DQ3: LAfmax_9400 | DR3: LAfmax_10600 | DS3: LAfmax_11900 | DT3: LAfmax_13300 | DU3: LAfmax_15000 | DV3: LAfmax_16800 | DW3: LAfmax_18800 | DX3: LAfmax_21100 | DY3: LAsmax | DZ3: LAsmax_23.7 | EA3: LAsmax_26.6 | EB3: LAsmax_29.9 | EC3: LAsmax_33.5 | ED3: LAsmax_37.6 | EE3: LAsmax_42.2 | EF3: LAsmax_47.3 | EG3: LAsmax_53 | EH3: LAsmax_60 | EI3: LAsmax_67 | EJ3: LAsmax_75 | EK3: LAsmax_84 | EL3: LAsmax_94 | EM3: LAsmax_106 | EN3: LAsmax_119 | EO3: LAsmax_133 | EP3: LAsmax_150 | EQ3: LAsmax_168 | ER3: LAsmax_188 | ES3: LAsmax_211 | ET3: LAsmax_237 | EU3: LAsmax_266 | EV3: LAsmax_299 | EW3: LAsmax_335 | EX3: LAsmax_376 | EY3: LAsmax_422 | EZ3: LAsmax_473 | FA3: LAsmax_530 | FB3: LAsmax_600 | FC3: LAsmax_670 | FD3: LAsmax_750 | FE3: LAsmax_840 | FF3: LAsmax_940 | FG3: LAsmax_1060 | FH3: LAsmax_1190 | FI3: LAsmax_1330 | FJ3: LAsmax_1500 | FK3: LAsmax_1680 | FL3: LAsmax_1880 | FM3: LAsmax_2110 | FN3: LAsmax_2370 | FO3: LAsmax_2660 | FP3: LAsmax_2990 | FQ3: LAsmax_3350 | FR3: LAsmax_3760 | FS3: LAsmax_4220 | FT3: LAsmax_4730 | FU3: LAsmax_5300 | FV3: LAsmax_6000 | FW3: LAsmax_6700 | FX3: LAsmax_7500 | FY3: LAsmax_8400 | FZ3: LAsmax_9400 | GA3: LAsmax_10600 | GB3: LAsmax_11900 | GC3: LAsmax_13300 | GD3: LAsmax_15000 | GE3: LAsmax_16800 | GF3: LAsmax_18800 | GG3: LAsmax_21100 | GH3: LAimax | GI3: LAimax_23.7 | GJ3: LAimax_26.6 | GK3: LAimax_29.9 | GL3: LAimax_33.5 | GM3: LAimax_37.6 | GN3: LAimax_42.2 | GO3: LAimax_47.3 | GP3: LAimax_53 | GQ3: LAimax_60 | GR3: LAimax_67 | GS3: LAimax_75 | GT3: LAimax_84 | GU3: LAimax_94 | GV3: LAimax_106 | GW3: LAimax_119 | GX3: LAimax_133 | GY3: LAimax_150 | GZ3: LAimax_168 | HA3: LAimax_188 | HB3: LAimax_211 | HC3: LAimax_237 | HD3: LAimax_266 | HE3: LAimax_299 | HF3: LAimax_335 | HG3: LAimax_376 | HH3: LAimax_422 | HI3: LAimax_473 | HJ3: LAimax_530 | HK3: LAimax_600 | HL3: LAimax_670 | HM3: LAimax_750 | HN3: LAimax_840 | HO3: LAimax_940 | HP3: LAimax_1060 | HQ3: LAimax_1190 | HR3: LAimax_1330 | HS3: LAimax_1500 | HT3: LAimax_1680 | HU3: LAimax_1880 | HV3: LAimax_2110 | HW3: LAimax_2370 | HX3: LAimax_2660 | HY3: LAimax_2990 | HZ3: LAimax_3350 | IA3: LAimax_3760 | IB3: LAimax_4220 | IC3: LAimax_4730 | ID3: LAimax_5300 | IE3: LAimax_6000 | IF3: LAimax_6700 | IG3: LAimax_7500 | IH3: LAimax_8400 | II3: LAimax_9400 | IJ3: LAimax_10600 | IK3: LAimax_11900 | IL3: LAimax_13300 | IM3: LAimax_15000 | IN3: LAimax_16800 | IO3: LAimax_18800 | IP3: LAimax_21100 | IQ3: LCeq | IR3: LCeq_23.7 | IS3: LCeq_26.6 | IT3: LCeq_29.9 | IU3: LCeq_33.5 | IV3: LCeq_37.6 | IW3: LCeq_42.2 | IX3: LCeq_47.3 | IY3: LCeq_53 | IZ3: LCeq_60 | JA3: LCeq_67 | JB3: LCeq_75 | JC3: LCeq_84 | JD3: LCeq_94 | JE3: LCeq_106 | JF3: LCeq_119 | JG3: LCeq_133 | JH3: LCeq_150 | JI3: LCeq_168 | JJ3: LCeq_188 | JK3: LCeq_211 | JL3: LCeq_237 | JM3: LCeq_266 | JN3: LCeq_299 | JO3: LCeq_335 | JP3: LCeq_376 | JQ3: LCeq_422 | JR3: LCeq_473 | JS3: LCeq_530 | JT3: LCeq_600 | JU3: LCeq_670 | JV3: LCeq_750 | JW3: LCeq_840 | JX3: LCeq_940 | JY3: LCeq_1060 | JZ3: LCeq_1190 | KA3: LCeq_1330 | KB3: LCeq_1500 | KC3: LCeq_1680 | KD3: LCeq_1880 | KE3: LCeq_2110 | KF3: LCeq_2370 | KG3: LCeq_2660 | KH3: LCeq_2990 | KI3: LCeq_3350 | KJ3: LCeq_3760 | KK3: LCeq_4220 | KL3: LCeq_4730 | KM3: LCeq_5300 | KN3: LCeq_6000 | KO3: LCeq_6700 | KP3: LCeq_7500 | KQ3: LCeq_8400 | KR3: LCeq_9400 | KS3: LCeq_10600 | KT3: LCeq_11900 | KU3: LCeq_13300 | KV3: LCeq_15000 | KW3: LCeq_16800 | KX3: LCeq_18800 | KY3: LCeq_21100 | KZ3: LCfmax | LA3: LCfmax_23.7 | LB3: LCfmax_26.6 | LC3: LCfmax_29.9 | LD3: LCfmax_33.5 | LE3: LCfmax_37.6 | LF3: LCfmax_42.2 | LG3: LCfmax_47.3 | LH3: LCfmax_53 | LI3: LCfmax_60 | LJ3: LCfmax_67 | LK3: LCfmax_75 | LL3: LCfmax_84 | LM3: LCfmax_94 | LN3: LCfmax_106 | LO3: LCfmax_119 | LP3: LCfmax_133 | LQ3: LCfmax_150 | LR3: LCfmax_168 | LS3: LCfmax_188 | LT3: LCfmax_211 | LU3: LCfmax_237 | LV3: LCfmax_266 | LW3: LCfmax_299 | LX3: LCfmax_335 | LY3: LCfmax_376 | LZ3: LCfmax_422 | MA3: LCfmax_473 | MB3: LCfmax_530 | MC3: LCfmax_600 | MD3: LCfmax_670 | ME3: LCfmax_750 | MF3: LCfmax_840 | MG3: LCfmax_940 | MH3: LCfmax_1060 | MI3: LCfmax_1190 | MJ3: LCfmax_1330 | MK3: LCfmax_1500 | ML3: LCfmax_1680 | MM3: LCfmax_1880 | MN3: LCfmax_2110 | MO3: LCfmax_2370 | MP3: LCfmax_2660 | MQ3: LCfmax_2990 | MR3: LCfmax_3350 | MS3: LCfmax_3760 | MT3: LCfmax_4220 | MU3: LCfmax_4730 | MV3: LCfmax_5300 | MW3: LCfmax_6000 | MX3: LCfmax_6700 | MY3: LCfmax_7500 | MZ3: LCfmax_8400 | NA3: LCfmax_9400 | NB3: LCfmax_10600 | NC3: LCfmax_11900 | ND3: LCfmax_13300 | NE3: LCfmax_15000 | NF3: LCfmax_16800 | NG3: LCfmax_18800 | NH3: LCfmax_21100 | NI3: LCsmax | NJ3: LCsmax_23.7 | NK3: LCsmax_26.6 | NL3: LCsmax_29.9 | NM3: LCsmax_33.5 | NN3: LCsmax_37.6 | NO3: LCsmax_42.2 | NP3: LCsmax_47.3 | NQ3: LCsmax_53 | NR3: LCsmax_60 | NS3: LCsmax_67 | NT3: LCsmax_75 | NU3: LCsmax_84 | NV3: LCsmax_94 | NW3: LCsmax_106 | NX3: LCsmax_119 | NY3: LCsmax_133 | NZ3: LCsmax_150 | OA3: LCsmax_168 | OB3: LCsmax_188 | OC3: LCsmax_211 | OD3: LCsmax_237 | OE3: LCsmax_266 | OF3: LCsmax_299 | OG3: LCsmax_335 | OH3: LCsmax_376 | OI3: LCsmax_422 | OJ3: LCsmax_473 | OK3: LCsmax_530 | OL3: LCsmax_600 | OM3: LCsmax_670 | ON3: LCsmax_750 | OO3: LCsmax_840 | OP3: LCsmax_940 | OQ3: LCsmax_1060 | OR3: LCsmax_1190 | OS3: LCsmax_1330 | OT3: LCsmax_1500 | OU3: LCsmax_1680 | OV3: LCsmax_1880 | OW3: LCsmax_2110 | OX3: LCsmax_2370 | OY3: LCsmax_2660 | OZ3: LCsmax_2990 | PA3: LCsmax_3350 | PB3: LCsmax_3760 | PC3: LCsmax_4220 | PD3: LCsmax_4730 | PE3: LCsmax_5300 | PF3: LCsmax_6000 | PG3: LCsmax_6700 | PH3: LCsmax_7500 | PI3: LCsmax_8400 | PJ3: LCsmax_9400 | PK3: LCsmax_10600 | PL3: LCsmax_11900 | PM3: LCsmax_13300 | PN3: LCsmax_15000 | PO3: LCsmax_16800 | PP3: LCsmax_18800 | PQ3: LCsmax_21100 | PR3: LCimax | PS3: LCimax_23.7 | PT3: LCimax_26.6 | PU3: LCimax_29.9 | PV3: LCimax_33.5 | PW3: LCimax_37.6 | PX3: LCimax_42.2 | PY3: LCimax_47.3 | PZ3: LCimax_53 | QA3: LCimax_60 | QB3: LCimax_67 | QC3: LCimax_75 | QD3: LCimax_84 | QE3: LCimax_94 | QF3: LCimax_106 | QG3: LCimax_119 | QH3: LCimax_133 | QI3: LCimax_150 | QJ3: LCimax_168 | QK3: LCimax_188 | QL3: LCimax_211 | QM3: LCimax_237 | QN3: LCimax_266 | QO3: LCimax_299 | QP3: LCimax_335 | QQ3: LCimax_376 | QR3: LCimax_422 | QS3: LCimax_473 | QT3: LCimax_530 | QU3: LCimax_600 | QV3: LCimax_670 | QW3: LCimax_750 | QX3: LCimax_840 | QY3: LCimax_940 | QZ3: LCimax_1060 | RA3: LCimax_1190 | RB3: LCimax_1330 | RC3: LCimax_1500 | RD3: LCimax_1680 | RE3: LCimax_1880 | RF3: LCimax_2110 | RG3: LCimax_2370 | RH3: LCimax_2660 | RI3: LCimax_2990 | RJ3: LCimax_3350 | RK3: LCimax_3760 | RL3: LCimax_4220 | RM3: LCimax_4730 | RN3: LCimax_5300 | RO3: LCimax_6000 | RP3: LCimax_6700 | RQ3: LCimax_7500 | RR3: LCimax_8400 | RS3: LCimax_9400 | RT3: LCimax_10600 | RU3: LCimax_11900 | RV3: LCimax_13300 | RW3: LCimax_15000 | RX3: LCimax_16800 | RY3: LCimax_18800 | RZ3: LCimax_21100 | SA3: LZeq | SB3: LZeq_23.7 | SC3: LZeq_26.6 | SD3: LZeq_29.9 | SE3: LZeq_33.5 | SF3: LZeq_37.6 | SG3: LZeq_42.2 | SH3: LZeq_47.3 | SI3: LZeq_53 | SJ3: LZeq_60 | SK3: LZeq_67 | SL3: LZeq_75 | SM3: LZeq_84 | SN3: LZeq_94 | SO3: LZeq_106 | SP3: LZeq_119 | SQ3: LZeq_133 | SR3: LZeq_150 | SS3: LZeq_168 | ST3: LZeq_188 | SU3: LZeq_211 | SV3: LZeq_237 | SW3: LZeq_266 | SX3: LZeq_299 | SY3: LZeq_335 | SZ3: LZeq_376 | TA3: LZeq_422 | TB3: LZeq_473 | TC3: LZeq_530 | TD3: LZeq_600 | TE3: LZeq_670 | TF3: LZeq_750 | TG3: LZeq_840 | TH3: LZeq_940 | TI3: LZeq_1060 | TJ3: LZeq_1190 | TK3: LZeq_1330 | TL3: LZeq_1500 | TM3: LZeq_1680 | TN3: LZeq_1880 | TO3: LZeq_2110 | TP3: LZeq_2370 | TQ3: LZeq_2660 | TR3: LZeq_2990 | TS3: LZeq_3350 | TT3: LZeq_3760 | TU3: LZeq_4220 | TV3: LZeq_4730 | TW3: LZeq_5300 | TX3: LZeq_6000 | TY3: LZeq_6700 | TZ3: LZeq_7500 | UA3: LZeq_8400 | UB3: LZeq_9400 | UC3: LZeq_10600 | UD3: LZeq_11900 | UE3: LZeq_13300 | UF3: LZeq_15000 | UG3: LZeq_16800 | UH3: LZeq_18800 | UI3: LZeq_21100 | UJ3: LZfmax | UK3: LZfmax_23.7 | UL3: LZfmax_26.6 | UM3: LZfmax_29.9 | UN3: LZfmax_33.5 | UO3: LZfmax_37.6 | UP3: LZfmax_42.2 | UQ3: LZfmax_47.3 | UR3: LZfmax_53 | US3: LZfmax_60 | UT3: LZfmax_67 | UU3: LZfmax_75 | UV3: LZfmax_84 | UW3: LZfmax_94 | UX3: LZfmax_106 | UY3: LZfmax_119 | UZ3: LZfmax_133 | VA3: LZfmax_150 | VB3: LZfmax_168 | VC3: LZfmax_188 | VD3: LZfmax_211 | VE3: LZfmax_237 | VF3: LZfmax_266 | VG3: LZfmax_299 | VH3: LZfmax_335 | VI3: LZfmax_376 | VJ3: LZfmax_422 | VK3: LZfmax_473 | VL3: LZfmax_530 | VM3: LZfmax_600 | VN3: LZfmax_670 | VO3: LZfmax_750 | VP3: LZfmax_840 | VQ3: LZfmax_940 | VR3: LZfmax_1060 | VS3: LZfmax_1190 | VT3: LZfmax_1330 | VU3: LZfmax_1500 | VV3: LZfmax_1680 | VW3: LZfmax_1880 | VX3: LZfmax_2110 | VY3: LZfmax_2370 | VZ3: LZfmax_2660 | WA3: LZfmax_2990 | WB3: LZfmax_3350 | WC3: LZfmax_3760 | WD3: LZfmax_4220 | WE3: LZfmax_4730 | WF3: LZfmax_5300 | WG3: LZfmax_6000 | WH3: LZfmax_6700 | WI3: LZfmax_7500 | WJ3: LZfmax_8400 | WK3: LZfmax_9400 | WL3: LZfmax_10600 | WM3: LZfmax_11900 | WN3: LZfmax_13300 | WO3: LZfmax_15000 | WP3: LZfmax_16800 | WQ3: LZfmax_18800 | WR3: LZfmax_21100 | WS3: LZsmax | WT3: LZsmax_23.7 | WU3: LZsmax_26.6 | WV3: LZsmax_29.9 | WW3: LZsmax_33.5 | WX3: LZsmax_37.6 | WY3: LZsmax_42.2 | WZ3: LZsmax_47.3 | XA3: LZsmax_53 | XB3: LZsmax_60 | XC3: LZsmax_67 | XD3: LZsmax_75 | XE3: LZsmax_84 | XF3: LZsmax_94 | XG3: LZsmax_106 | XH3: LZsmax_119 | XI3: LZsmax_133 | XJ3: LZsmax_150 | XK3: LZsmax_168 | XL3: LZsmax_188 | XM3: LZsmax_211 | XN3: LZsmax_237 | XO3: LZsmax_266 | XP3: LZsmax_299 | XQ3: LZsmax_335 | XR3: LZsmax_376 | XS3: LZsmax_422 | XT3: LZsmax_473 | XU3: LZsmax_530 | XV3: LZsmax_600 | XW3: LZsmax_670 | XX3: LZsmax_750 | XY3: LZsmax_840 | XZ3: LZsmax_940 | YA3: LZsmax_1060 | YB3: LZsmax_1190 | YC3: LZsmax_1330 | YD3: LZsmax_1500 | YE3: LZsmax_1680 | YF3: LZsmax_1880 | YG3: LZsmax_2110 | YH3: LZsmax_2370 | YI3: LZsmax_2660 | YJ3: LZsmax_2990 | YK3: LZsmax_3350 | YL3: LZsmax_3760 | YM3: LZsmax_4220 | YN3: LZsmax_4730 | YO3: LZsmax_5300 | YP3: LZsmax_6000 | YQ3: LZsmax_6700 | YR3: LZsmax_7500 | YS3: LZsmax_8400 | YT3: LZsmax_9400 | YU3: LZsmax_10600 | YV3: LZsmax_11900 | YW3: LZsmax_13300 | YX3: LZsmax_15000 | YY3: LZsmax_16800 | YZ3: LZsmax_18800 | ZA3: LZsmax_21100 | ZB3: LZimax | ZC3: LZimax_23.7 | ZD3: LZimax_26.6 | ZE3: LZimax_29.9 | ZF3: LZimax_33.5 | ZG3: LZimax_37.6 | ZH3: LZimax_42.2 | ZI3: LZimax_47.3 | ZJ3: LZimax_53 | ZK3: LZimax_60 | ZL3: LZimax_67 | ZM3: LZimax_75 | ZN3: LZimax_84 | ZO3: LZimax_94 | ZP3: LZimax_106 | ZQ3: LZimax_119 | ZR3: LZimax_133 | ZS3: LZimax_150 | ZT3: LZimax_168 | ZU3: LZimax_188 | ZV3: LZimax_211 | ZW3: LZimax_237 | ZX3: LZimax_266 | ZY3: LZimax_299 | ZZ3: LZimax_335 | AAA3: LZimax_376 | AAB3: LZimax_422 | AAC3: LZimax_473 | AAD3: LZimax_530 | AAE3: LZimax_600 | AAF3: LZimax_670 | AAG3: LZimax_750 | AAH3: LZimax_840 | AAI3: LZimax_940 | AAJ3: LZimax_1060 | AAK3: LZimax_1190 | AAL3: LZimax_1330 | AAM3: LZimax_1500 | AAN3: LZimax_1680 | AAO3: LZimax_1880 | AAP3: LZimax_2110 | AAQ3: LZimax_2370 | AAR3: LZimax_2660 | AAS3: LZimax_2990 | AAT3: LZimax_3350 | AAU3: LZimax_3760 | AAV3: LZimax_4220 | AAW3: LZimax_4730 | AAX3: LZimax_5300 | AAY3: LZimax_6000 | AAZ3: LZimax_6700 | ABA3: LZimax_7500 | ABB3: LZimax_8400 | ABC3: LZimax_9400 | ABD3: LZimax_10600 | ABE3: LZimax_11900 | ABF3: LZimax_13300 | ABG3: LZimax_15000 | ABH3: LZimax_16800 | ABI3: LZimax_18800 | ABJ3: LZimax_21100
B4: date | C4: time | D4: duration | E4: bandtype | F4: bandcount | G4: LAeq | H4: LAeq_23 | I4: LAeq_24.4 | J4: LAeq_25.9 | K4: LAeq_27.4 | L4: LAeq_29 | M4: LAeq_30.7 | N4: LAeq_32.5 | O4: LAeq_34.5 | P4: LAeq_36.5 | Q4: LAeq_38.7 | R4: LAeq_41 | S4: LAeq_43.4 | T4: LAeq_46 | U4: LAeq_48.7 | V4: LAeq_52 | W4: LAeq_55 | X4: LAeq_58 | Y4: LAeq_61 | Z4: LAeq_65 | AA4: LAeq_69 | AB4: LAeq_73 | AC4: LAeq_77 | AD4: LAeq_82 | AE4: LAeq_87 | AF4: LAeq_92 | AG4: LAeq_97 | AH4: LAeq_103 | AI4: LAeq_109 | AJ4: LAeq_115 | AK4: LAeq_122 | AL4: LAeq_130 | AM4: LAeq_137 | AN4: LAeq_145 | AO4: LAeq_154 | AP4: LAeq_163 | AQ4: LAeq_173 | AR4: LAeq_183 | AS4: LAeq_194 | AT4: LAeq_205 | AU4: LAeq_218 | AV4: LAeq_230 | AW4: LAeq_244 | AX4: LAeq_259 | AY4: LAeq_274 | AZ4: LAeq_290 | BA4: LAeq_307 | BB4: LAeq_325 | BC4: LAeq_345 | BD4: LAeq_365 | BE4: LAeq_387 | BF4: LAeq_410 | BG4: LAeq_434 | BH4: LAeq_460 | BI4: LAeq_487 | BJ4: LAeq_520 | BK4: LAeq_550 | BL4: LAeq_580 | BM4: LAeq_610 | BN4: LAeq_650 | BO4: LAeq_690 | BP4: LAeq_730 | BQ4: LAeq_770 | BR4: LAeq_820 | BS4: LAeq_870 | BT4: LAeq_920 | BU4: LAeq_970 | BV4: LAeq_1030 | BW4: LAeq_1090 | BX4: LAeq_1150 | BY4: LAeq_1220 | BZ4: LAeq_1300 | CA4: LAeq_1370 | CB4: LAeq_1450 | CC4: LAeq_1540 | CD4: LAeq_1630 | CE4: LAeq_1730 | CF4: LAeq_1830 | CG4: LAeq_1940 | CH4: LAeq_2050 | CI4: LAeq_2180 | CJ4: LAeq_2300 | CK4: LAeq_2440 | CL4: LAeq_2590 | CM4: LAeq_2740 | CN4: LAeq_2900 | CO4: LAeq_3070 | CP4: LAeq_3250 | CQ4: LAeq_3450 | CR4: LAeq_3650 | CS4: LAeq_3870 | CT4: LAeq_4100 | CU4: LAeq_4340 | CV4: LAeq_4600 | CW4: LAeq_4870 | CX4: LAeq_5200 | CY4: LAeq_5500 | CZ4: LAeq_5800 | DA4: LAeq_6100 | DB4: LAeq_6500 | DC4: LAeq_6900 | DD4: LAeq_7300 | DE4: LAeq_7700 | DF4: LAeq_8200 | DG4: LAeq_8700 | DH4: LAeq_9200 | DI4: LAeq_9700 | DJ4: LAeq_10300 | DK4: LAeq_10900 | DL4: LAeq_11500 | DM4: LAeq_12200 | DN4: LAeq_13000 | DO4: LAeq_13700 | DP4: LAeq_14500 | DQ4: LAeq_15400 | DR4: LAeq_16300 | DS4: LAeq_17300 | DT4: LAeq_18300 | DU4: LAeq_19400 | DV4: LAeq_20500 | DW4: LAeq_21800 | DX4: LAfmax | DY4: LAfmax_23 | DZ4: LAfmax_24.4 | EA4: LAfmax_25.9 | EB4: LAfmax_27.4 | EC4: LAfmax_29 | ED4: LAfmax_30.7 | EE4: LAfmax_32.5 | EF4: LAfmax_34.5 | EG4: LAfmax_36.5 | EH4: LAfmax_38.7 | EI4: LAfmax_41 | EJ4: LAfmax_43.4 | EK4: LAfmax_46 | EL4: LAfmax_48.7 | EM4: LAfmax_52 | EN4: LAfmax_55 | EO4: LAfmax_58 | EP4: LAfmax_61 | EQ4: LAfmax_65 | ER4: LAfmax_69 | ES4: LAfmax_73 | ET4: LAfmax_77 | EU4: LAfmax_82 | EV4: LAfmax_87 | EW4: LAfmax_92 | EX4: LAfmax_97 | EY4: LAfmax_103 | EZ4: LAfmax_109 | FA4: LAfmax_115 | FB4: LAfmax_122 | FC4: LAfmax_130 | FD4: LAfmax_137 | FE4: LAfmax_145 | FF4: LAfmax_154 | FG4: LAfmax_163 | FH4: LAfmax_173 | FI4: LAfmax_183 | FJ4: LAfmax_194 | FK4: LAfmax_205 | FL4: LAfmax_218 | FM4: LAfmax_230 | FN4: LAfmax_244 | FO4: LAfmax_259 | FP4: LAfmax_274 | FQ4: LAfmax_290 | FR4: LAfmax_307 | FS4: LAfmax_325 | FT4: LAfmax_345 | FU4: LAfmax_365 | FV4: LAfmax_387 | FW4: LAfmax_410 | FX4: LAfmax_434 | FY4: LAfmax_460 | FZ4: LAfmax_487 | GA4: LAfmax_520 | GB4: LAfmax_550 | GC4: LAfmax_580 | GD4: LAfmax_610 | GE4: LAfmax_650 | GF4: LAfmax_690 | GG4: LAfmax_730 | GH4: LAfmax_770 | GI4: LAfmax_820 | GJ4: LAfmax_870 | GK4: LAfmax_920 | GL4: LAfmax_970 | GM4: LAfmax_1030 | GN4: LAfmax_1090 | GO4: LAfmax_1150 | GP4: LAfmax_1220 | GQ4: LAfmax_1300 | GR4: LAfmax_1370 | GS4: LAfmax_1450 | GT4: LAfmax_1540 | GU4: LAfmax_1630 | GV4: LAfmax_1730 | GW4: LAfmax_1830 | GX4: LAfmax_1940 | GY4: LAfmax_2050 | GZ4: LAfmax_2180 | HA4: LAfmax_2300 | HB4: LAfmax_2440 | HC4: LAfmax_2590 | HD4: LAfmax_2740 | HE4: LAfmax_2900 | HF4: LAfmax_3070 | HG4: LAfmax_3250 | HH4: LAfmax_3450 | HI4: LAfmax_3650 | HJ4: LAfmax_3870 | HK4: LAfmax_4100 | HL4: LAfmax_4340 | HM4: LAfmax_4600 | HN4: LAfmax_4870 | HO4: LAfmax_5200 | HP4: LAfmax_5500 | HQ4: LAfmax_5800 | HR4: LAfmax_6100 | HS4: LAfmax_6500 | HT4: LAfmax_6900 | HU4: LAfmax_7300 | HV4: LAfmax_7700 | HW4: LAfmax_8200 | HX4: LAfmax_8700 | HY4: LAfmax_9200 | HZ4: LAfmax_9700 | IA4: LAfmax_10300 | IB4: LAfmax_10900 | IC4: LAfmax_11500 | ID4: LAfmax_12200 | IE4: LAfmax_13000 | IF4: LAfmax_13700 | IG4: LAfmax_14500 | IH4: LAfmax_15400 | II4: LAfmax_16300 | IJ4: LAfmax_17300 | IK4: LAfmax_18300 | IL4: LAfmax_19400 | IM4: LAfmax_20500 | IN4: LAfmax_21800 | IO4: LAsmax | IP4: LAsmax_23 | IQ4: LAsmax_24.4 | IR4: LAsmax_25.9 | IS4: LAsmax_27.4 | IT4: LAsmax_29 | IU4: LAsmax_30.7 | IV4: LAsmax_32.5 | IW4: LAsmax_34.5 | IX4: LAsmax_36.5 | IY4: LAsmax_38.7 | IZ4: LAsmax_41 | JA4: LAsmax_43.4 | JB4: LAsmax_46 | JC4: LAsmax_48.7 | JD4: LAsmax_52 | JE4: LAsmax_55 | JF4: LAsmax_58 | JG4: LAsmax_61 | JH4: LAsmax_65 | JI4: LAsmax_69 | JJ4: LAsmax_73 | JK4: LAsmax_77 | JL4: LAsmax_82 | JM4: LAsmax_87 | JN4: LAsmax_92 | JO4: LAsmax_97 | JP4: LAsmax_103 | JQ4: LAsmax_109 | JR4: LAsmax_115 | JS4: LAsmax_122 | JT4: LAsmax_130 | JU4: LAsmax_137 | JV4: LAsmax_145 | JW4: LAsmax_154 | JX4: LAsmax_163 | JY4: LAsmax_173 | JZ4: LAsmax_183 | KA4: LAsmax_194 | KB4: LAsmax_205 | KC4: LAsmax_218 | KD4: LAsmax_230 | KE4: LAsmax_244 | KF4: LAsmax_259 | KG4: LAsmax_274 | KH4: LAsmax_290 | KI4: LAsmax_307 | KJ4: LAsmax_325 | KK4: LAsmax_345 | KL4: LAsmax_365 | KM4: LAsmax_387 | KN4: LAsmax_410 | KO4: LAsmax_434 | KP4: LAsmax_460 | KQ4: LAsmax_487 | KR4: LAsmax_520 | KS4: LAsmax_550 | KT4: LAsmax_580 | KU4: LAsmax_610 | KV4: LAsmax_650 | KW4: LAsmax_690 | KX4: LAsmax_730 | KY4: LAsmax_770 | KZ4: LAsmax_820 | LA4: LAsmax_870 | LB4: LAsmax_920 | LC4: LAsmax_970 | LD4: LAsmax_1030 | LE4: LAsmax_1090 | LF4: LAsmax_1150 | LG4: LAsmax_1220 | LH4: LAsmax_1300 | LI4: LAsmax_1370 | LJ4: LAsmax_1450 | LK4: LAsmax_1540 | LL4: LAsmax_1630 | LM4: LAsmax_1730 | LN4: LAsmax_1830 | LO4: LAsmax_1940 | LP4: LAsmax_2050 | LQ4: LAsmax_2180 | LR4: LAsmax_2300 | LS4: LAsmax_2440 | LT4: LAsmax_2590 | LU4: LAsmax_2740 | LV4: LAsmax_2900 | LW4: LAsmax_3070 | LX4: LAsmax_3250 | LY4: LAsmax_3450 | LZ4: LAsmax_3650 | MA4: LAsmax_3870 | MB4: LAsmax_4100 | MC4: LAsmax_4340 | MD4: LAsmax_4600 | ME4: LAsmax_4870 | MF4: LAsmax_5200 | MG4: LAsmax_5500 | MH4: LAsmax_5800 | MI4: LAsmax_6100 | MJ4: LAsmax_6500 | MK4: LAsmax_6900 | ML4: LAsmax_7300 | MM4: LAsmax_7700 | MN4: LAsmax_8200 | MO4: LAsmax_8700 | MP4: LAsmax_9200 | MQ4: LAsmax_9700 | MR4: LAsmax_10300 | MS4: LAsmax_10900 | MT4: LAsmax_11500 | MU4: LAsmax_12200 | MV4: LAsmax_13000 | MW4: LAsmax_13700 | MX4: LAsmax_14500 | MY4: LAsmax_15400 | MZ4: LAsmax_16300 | NA4: LAsmax_17300 | NB4: LAsmax_18300 | NC4: LAsmax_19400 | ND4: LAsmax_20500 | NE4: LAsmax_21800 | NF4: LAimax | NG4: LAimax_23 | NH4: LAimax_24.4 | NI4: LAimax_25.9 | NJ4: LAimax_27.4 | NK4: LAimax_29 | NL4: LAimax_30.7 | NM4: LAimax_32.5 | NN4: LAimax_34.5 | NO4: LAimax_36.5 | NP4: LAimax_38.7 | NQ4: LAimax_41 | NR4: LAimax_43.4 | NS4: LAimax_46 | NT4: LAimax_48.7 | NU4: LAimax_52 | NV4: LAimax_55 | NW4: LAimax_58 | NX4: LAimax_61 | NY4: LAimax_65 | NZ4: LAimax_69 | OA4: LAimax_73 | OB4: LAimax_77 | OC4: LAimax_82 | OD4: LAimax_87 | OE4: LAimax_92 | OF4: LAimax_97 | OG4: LAimax_103 | OH4: LAimax_109 | OI4: LAimax_115 | OJ4: LAimax_122 | OK4: LAimax_130 | OL4: LAimax_137 | OM4: LAimax_145 | ON4: LAimax_154 | OO4: LAimax_163 | OP4: LAimax_173 | OQ4: LAimax_183 | OR4: LAimax_194 | OS4: LAimax_205 | OT4: LAimax_218 | OU4: LAimax_230 | OV4: LAimax_244 | OW4: LAimax_259 | OX4: LAimax_274 | OY4: LAimax_290 | OZ4: LAimax_307 | PA4: LAimax_325 | PB4: LAimax_345 | PC4: LAimax_365 | PD4: LAimax_387 | PE4: LAimax_410 | PF4: LAimax_434 | PG4: LAimax_460 | PH4: LAimax_487 | PI4: LAimax_520 | PJ4: LAimax_550 | PK4: LAimax_580 | PL4: LAimax_610 | PM4: LAimax_650 | PN4: LAimax_690 | PO4: LAimax_730 | PP4: LAimax_770 | PQ4: LAimax_820 | PR4: LAimax_870 | PS4: LAimax_920 | PT4: LAimax_970 | PU4: LAimax_1030 | PV4: LAimax_1090 | PW4: LAimax_1150 | PX4: LAimax_1220 | PY4: LAimax_1300 | PZ4: LAimax_1370 | QA4: LAimax_1450 | QB4: LAimax_1540 | QC4: LAimax_1630 | QD4: LAimax_1730 | QE4: LAimax_1830 | QF4: LAimax_1940 | QG4: LAimax_2050 | QH4: LAimax_2180 | QI4: LAimax_2300 | QJ4: LAimax_2440 | QK4: LAimax_2590 | QL4: LAimax_2740 | QM4: LAimax_2900 | QN4: LAimax_3070 | QO4: LAimax_3250 | QP4: LAimax_3450 | QQ4: LAimax_3650 | QR4: LAimax_3870 | QS4: LAimax_4100 | QT4: LAimax_4340 | QU4: LAimax_4600 | QV4: LAimax_4870 | QW4: LAimax_5200 | QX4: LAimax_5500 | QY4: LAimax_5800 | QZ4: LAimax_6100 | RA4: LAimax_6500 | RB4: LAimax_6900 | RC4: LAimax_7300 | RD4: LAimax_7700 | RE4: LAimax_8200 | RF4: LAimax_8700 | RG4: LAimax_9200 | RH4: LAimax_9700 | RI4: LAimax_10300 | RJ4: LAimax_10900 | RK4: LAimax_11500 | RL4: LAimax_12200 | RM4: LAimax_13000 | RN4: LAimax_13700 | RO4: LAimax_14500 | RP4: LAimax_15400 | RQ4: LAimax_16300 | RR4: LAimax_17300 | RS4: LAimax_18300 | RT4: LAimax_19400 | RU4: LAimax_20500 | RV4: LAimax_21800 | RW4: LCeq | RX4: LCeq_23 | RY4: LCeq_24.4 | RZ4: LCeq_25.9 | SA4: LCeq_27.4 | SB4: LCeq_29 | SC4: LCeq_30.7 | SD4: LCeq_32.5 | SE4: LCeq_34.5 | SF4: LCeq_36.5 | SG4: LCeq_38.7 | SH4: LCeq_41 | SI4: LCeq_43.4 | SJ4: LCeq_46 | SK4: LCeq_48.7 | SL4: LCeq_52 | SM4: LCeq_55 | SN4: LCeq_58 | SO4: LCeq_61 | SP4: LCeq_65 | SQ4: LCeq_69 | SR4: LCeq_73 | SS4: LCeq_77 | ST4: LCeq_82 | SU4: LCeq_87 | SV4: LCeq_92 | SW4: LCeq_97 | SX4: LCeq_103 | SY4: LCeq_109 | SZ4: LCeq_115 | TA4: LCeq_122 | TB4: LCeq_130 | TC4: LCeq_137 | TD4: LCeq_145 | TE4: LCeq_154 | TF4: LCeq_163 | TG4: LCeq_173 | TH4: LCeq_183 | TI4: LCeq_194 | TJ4: LCeq_205 | TK4: LCeq_218 | TL4: LCeq_230 | TM4: LCeq_244 | TN4: LCeq_259 | TO4: LCeq_274 | TP4: LCeq_290 | TQ4: LCeq_307 | TR4: LCeq_325 | TS4: LCeq_345 | TT4: LCeq_365 | TU4: LCeq_387 | TV4: LCeq_410 | TW4: LCeq_434 | TX4: LCeq_460 | TY4: LCeq_487 | TZ4: LCeq_520 | UA4: LCeq_550 | UB4: LCeq_580 | UC4: LCeq_610 | UD4: LCeq_650 | UE4: LCeq_690 | UF4: LCeq_730 | UG4: LCeq_770 | UH4: LCeq_820 | UI4: LCeq_870 | UJ4: LCeq_920 | UK4: LCeq_970 | UL4: LCeq_1030 | UM4: LCeq_1090 | UN4: LCeq_1150 | UO4: LCeq_1220 | UP4: LCeq_1300 | UQ4: LCeq_1370 | UR4: LCeq_1450 | US4: LCeq_1540 | UT4: LCeq_1630 | UU4: LCeq_1730 | UV4: LCeq_1830 | UW4: LCeq_1940 | UX4: LCeq_2050 | UY4: LCeq_2180 | UZ4: LCeq_2300 | VA4: LCeq_2440 | VB4: LCeq_2590 | VC4: LCeq_2740 | VD4: LCeq_2900 | VE4: LCeq_3070 | VF4: LCeq_3250 | VG4: LCeq_3450 | VH4: LCeq_3650 | VI4: LCeq_3870 | VJ4: LCeq_4100 | VK4: LCeq_4340 | VL4: LCeq_4600 | VM4: LCeq_4870 | VN4: LCeq_5200 | VO4: LCeq_5500 | VP4: LCeq_5800 | VQ4: LCeq_6100 | VR4: LCeq_6500 | VS4: LCeq_6900 | VT4: LCeq_7300 | VU4: LCeq_7700 | VV4: LCeq_8200 | VW4: LCeq_8700 | VX4: LCeq_9200 | VY4: LCeq_9700 | VZ4: LCeq_10300 | WA4: LCeq_10900 | WB4: LCeq_11500 | WC4: LCeq_12200 | WD4: LCeq_13000 | WE4: LCeq_13700 | WF4: LCeq_14500 | WG4: LCeq_15400 | WH4: LCeq_16300 | WI4: LCeq_17300 | WJ4: LCeq_18300 | WK4: LCeq_19400 | WL4: LCeq_20500 | WM4: LCeq_21800 | WN4: LCfmax | WO4: LCfmax_23 | WP4: LCfmax_24.4 | WQ4: LCfmax_25.9 | WR4: LCfmax_27.4 | WS4: LCfmax_29 | WT4: LCfmax_30.7 | WU4: LCfmax_32.5 | WV4: LCfmax_34.5 | WW4: LCfmax_36.5 | WX4: LCfmax_38.7 | WY4: LCfmax_41 | WZ4: LCfmax_43.4 | XA4: LCfmax_46 | XB4: LCfmax_48.7 | XC4: LCfmax_52 | XD4: LCfmax_55 | XE4: LCfmax_58 | XF4: LCfmax_61 | XG4: LCfmax_65 | XH4: LCfmax_69 | XI4: LCfmax_73 | XJ4: LCfmax_77 | XK4: LCfmax_82 | XL4: LCfmax_87 | XM4: LCfmax_92 | XN4: LCfmax_97 | XO4: LCfmax_103 | XP4: LCfmax_109 | XQ4: LCfmax_115 | XR4: LCfmax_122 | XS4: LCfmax_130 | XT4: LCfmax_137 | XU4: LCfmax_145 | XV4: LCfmax_154 | XW4: LCfmax_163 | XX4: LCfmax_173 | XY4: LCfmax_183 | XZ4: LCfmax_194 | YA4: LCfmax_205 | YB4: LCfmax_218 | YC4: LCfmax_230 | YD4: LCfmax_244 | YE4: LCfmax_259 | YF4: LCfmax_274 | YG4: LCfmax_290 | YH4: LCfmax_307 | YI4: LCfmax_325 | YJ4: LCfmax_345 | YK4: LCfmax_365 | YL4: LCfmax_387 | YM4: LCfmax_410 | YN4: LCfmax_434 | YO4: LCfmax_460 | YP4: LCfmax_487 | YQ4: LCfmax_520 | YR4: LCfmax_550 | YS4: LCfmax_580 | YT4: LCfmax_610 | YU4: LCfmax_650 | YV4: LCfmax_690 | YW4: LCfmax_730 | YX4: LCfmax_770 | YY4: LCfmax_820 | YZ4: LCfmax_870 | ZA4: LCfmax_920 | ZB4: LCfmax_970 | ZC4: LCfmax_1030 | ZD4: LCfmax_1090 | ZE4: LCfmax_1150 | ZF4: LCfmax_1220 | ZG4: LCfmax_1300 | ZH4: LCfmax_1370 | ZI4: LCfmax_1450 | ZJ4: LCfmax_1540 | ZK4: LCfmax_1630 | ZL4: LCfmax_1730 | ZM4: LCfmax_1830 | ZN4: LCfmax_1940 | ZO4: LCfmax_2050 | ZP4: LCfmax_2180 | ZQ4: LCfmax_2300 | ZR4: LCfmax_2440 | ZS4: LCfmax_2590 | ZT4: LCfmax_2740 | ZU4: LCfmax_2900 | ZV4: LCfmax_3070 | ZW4: LCfmax_3250 | ZX4: LCfmax_3450 | ZY4: LCfmax_3650 | ZZ4: LCfmax_3870 | AAA4: LCfmax_4100 | AAB4: LCfmax_4340 | AAC4: LCfmax_4600 | AAD4: LCfmax_4870 | AAE4: LCfmax_5200 | AAF4: LCfmax_5500 | AAG4: LCfmax_5800 | AAH4: LCfmax_6100 | AAI4: LCfmax_6500 | AAJ4: LCfmax_6900 | AAK4: LCfmax_7300 | AAL4: LCfmax_7700 | AAM4: LCfmax_8200 | AAN4: LCfmax_8700 | AAO4: LCfmax_9200 | AAP4: LCfmax_9700 | AAQ4: LCfmax_10300 | AAR4: LCfmax_10900 | AAS4: LCfmax_11500 | AAT4: LCfmax_12200 | AAU4: LCfmax_13000 | AAV4: LCfmax_13700 | AAW4: LCfmax_14500 | AAX4: LCfmax_15400 | AAY4: LCfmax_16300 | AAZ4: LCfmax_17300 | ABA4: LCfmax_18300 | ABB4: LCfmax_19400 | ABC4: LCfmax_20500 | ABD4: LCfmax_21800 | ABE4: LCsmax | ABF4: LCsmax_23 | ABG4: LCsmax_24.4 | ABH4: LCsmax_25.9 | ABI4: LCsmax_27.4 | ABJ4: LCsmax_29 | ABK4: LCsmax_30.7 | ABL4: LCsmax_32.5 | ABM4: LCsmax_34.5 | ABN4: LCsmax_36.5 | ABO4: LCsmax_38.7 | ABP4: LCsmax_41 | ABQ4: LCsmax_43.4 | ABR4: LCsmax_46 | ABS4: LCsmax_48.7 | ABT4: LCsmax_52 | ABU4: LCsmax_55 | ABV4: LCsmax_58 | ABW4: LCsmax_61 | ABX4: LCsmax_65 | ABY4: LCsmax_69 | ABZ4: LCsmax_73 | ACA4: LCsmax_77 | ACB4: LCsmax_82 | ACC4: LCsmax_87 | ACD4: LCsmax_92 | ACE4: LCsmax_97 | ACF4: LCsmax_103 | ACG4: LCsmax_109 | ACH4: LCsmax_115 | ACI4: LCsmax_122 | ACJ4: LCsmax_130 | ACK4: LCsmax_137 | ACL4: LCsmax_145 | ACM4: LCsmax_154 | ACN4: LCsmax_163 | ACO4: LCsmax_173 | ACP4: LCsmax_183 | ACQ4: LCsmax_194 | ACR4: LCsmax_205 | ACS4: LCsmax_218 | ACT4: LCsmax_230 | ACU4: LCsmax_244 | ACV4: LCsmax_259 | ACW4: LCsmax_274 | ACX4: LCsmax_290 | ACY4: LCsmax_307 | ACZ4: LCsmax_325 | ADA4: LCsmax_345 | ADB4: LCsmax_365 | ADC4: LCsmax_387 | ADD4: LCsmax_410 | ADE4: LCsmax_434 | ADF4: LCsmax_460 | ADG4: LCsmax_487 | ADH4: LCsmax_520 | ADI4: LCsmax_550 | ADJ4: LCsmax_580 | ADK4: LCsmax_610 | ADL4: LCsmax_650 | ADM4: LCsmax_690 | ADN4: LCsmax_730 | ADO4: LCsmax_770 | ADP4: LCsmax_820 | ADQ4: LCsmax_870 | ADR4: LCsmax_920 | ADS4: LCsmax_970 | ADT4: LCsmax_1030 | ADU4: LCsmax_1090 | ADV4: LCsmax_1150 | ADW4: LCsmax_1220 | ADX4: LCsmax_1300 | ADY4: LCsmax_1370 | ADZ4: LCsmax_1450 | AEA4: LCsmax_1540 | AEB4: LCsmax_1630 | AEC4: LCsmax_1730 | AED4: LCsmax_1830 | AEE4: LCsmax_1940 | AEF4: LCsmax_2050 | AEG4: LCsmax_2180 | AEH4: LCsmax_2300 | AEI4: LCsmax_2440 | AEJ4: LCsmax_2590 | AEK4: LCsmax_2740 | AEL4: LCsmax_2900 | AEM4: LCsmax_3070 | AEN4: LCsmax_3250 | AEO4: LCsmax_3450 | AEP4: LCsmax_3650 | AEQ4: LCsmax_3870 | AER4: LCsmax_4100 | AES4: LCsmax_4340 | AET4: LCsmax_4600 | AEU4: LCsmax_4870 | AEV4: LCsmax_5200 | AEW4: LCsmax_5500 | AEX4: LCsmax_5800 | AEY4: LCsmax_6100 | AEZ4: LCsmax_6500 | AFA4: LCsmax_6900 | AFB4: LCsmax_7300 | AFC4: LCsmax_7700 | AFD4: LCsmax_8200 | AFE4: LCsmax_8700 | AFF4: LCsmax_9200 | AFG4: LCsmax_9700 | AFH4: LCsmax_10300 | AFI4: LCsmax_10900 | AFJ4: LCsmax_11500 | AFK4: LCsmax_12200 | AFL4: LCsmax_13000 | AFM4: LCsmax_13700 | AFN4: LCsmax_14500 | AFO4: LCsmax_15400 | AFP4: LCsmax_16300 | AFQ4: LCsmax_17300 | AFR4: LCsmax_18300 | AFS4: LCsmax_19400 | AFT4: LCsmax_20500 | AFU4: LCsmax_21800 | AFV4: LCimax | AFW4: LCimax_23 | AFX4: LCimax_24.4 | AFY4: LCimax_25.9 | AFZ4: LCimax_27.4 | AGA4: LCimax_29 | AGB4: LCimax_30.7 | AGC4: LCimax_32.5 | AGD4: LCimax_34.5 | AGE4: LCimax_36.5 | AGF4: LCimax_38.7 | AGG4: LCimax_41 | AGH4: LCimax_43.4 | AGI4: LCimax_46 | AGJ4: LCimax_48.7 | AGK4: LCimax_52 | AGL4: LCimax_55 | AGM4: LCimax_58 | AGN4: LCimax_61 | AGO4: LCimax_65 | AGP4: LCimax_69 | AGQ4: LCimax_73 | AGR4: LCimax_77 | AGS4: LCimax_82 | AGT4: LCimax_87 | AGU4: LCimax_92 | AGV4: LCimax_97 | AGW4: LCimax_103 | AGX4: LCimax_109 | AGY4: LCimax_115 | AGZ4: LCimax_122 | AHA4: LCimax_130 | AHB4: LCimax_137 | AHC4: LCimax_145 | AHD4: LCimax_154 | AHE4: LCimax_163 | AHF4: LCimax_173 | AHG4: LCimax_183 | AHH4: LCimax_194 | AHI4: LCimax_205 | AHJ4: LCimax_218 | AHK4: LCimax_230 | AHL4: LCimax_244 | AHM4: LCimax_259 | AHN4: LCimax_274 | AHO4: LCimax_290 | AHP4: LCimax_307 | AHQ4: LCimax_325 | AHR4: LCimax_345 | AHS4: LCimax_365 | AHT4: LCimax_387 | AHU4: LCimax_410 | AHV4: LCimax_434 | AHW4: LCimax_460 | AHX4: LCimax_487 | AHY4: LCimax_520 | AHZ4: LCimax_550 | AIA4: LCimax_580 | AIB4: LCimax_610 | AIC4: LCimax_650 | AID4: LCimax_690 | AIE4: LCimax_730 | AIF4: LCimax_770 | AIG4: LCimax_820 | AIH4: LCimax_870 | AII4: LCimax_920 | AIJ4: LCimax_970 | AIK4: LCimax_1030 | AIL4: LCimax_1090 | AIM4: LCimax_1150 | AIN4: LCimax_1220 | AIO4: LCimax_1300 | AIP4: LCimax_1370 | AIQ4: LCimax_1450 | AIR4: LCimax_1540 | AIS4: LCimax_1630 | AIT4: LCimax_1730 | AIU4: LCimax_1830 | AIV4: LCimax_1940 | AIW4: LCimax_2050 | AIX4: LCimax_2180 | AIY4: LCimax_2300 | AIZ4: LCimax_2440 | AJA4: LCimax_2590 | AJB4: LCimax_2740 | AJC4: LCimax_2900 | AJD4: LCimax_3070 | AJE4: LCimax_3250 | AJF4: LCimax_3450 | AJG4: LCimax_3650 | AJH4: LCimax_3870 | AJI4: LCimax_4100 | AJJ4: LCimax_4340 | AJK4: LCimax_4600 | AJL4: LCimax_4870 | AJM4: LCimax_5200 | AJN4: LCimax_5500 | AJO4: LCimax_5800 | AJP4: LCimax_6100 | AJQ4: LCimax_6500 | AJR4: LCimax_6900 | AJS4: LCimax_7300 | AJT4: LCimax_7700 | AJU4: LCimax_8200 | AJV4: LCimax_8700 | AJW4: LCimax_9200 | AJX4: LCimax_9700 | AJY4: LCimax_10300 | AJZ4: LCimax_10900 | AKA4: LCimax_11500 | AKB4: LCimax_12200 | AKC4: LCimax_13000 | AKD4: LCimax_13700 | AKE4: LCimax_14500 | AKF4: LCimax_15400 | AKG4: LCimax_16300 | AKH4: LCimax_17300 | AKI4: LCimax_18300 | AKJ4: LCimax_19400 | AKK4: LCimax_20500 | AKL4: LCimax_21800 | AKM4: LZeq | AKN4: LZeq_23 | AKO4: LZeq_24.4 | AKP4: LZeq_25.9 | AKQ4: LZeq_27.4 | AKR4: LZeq_29 | AKS4: LZeq_30.7 | AKT4: LZeq_32.5 | AKU4: LZeq_34.5 | AKV4: LZeq_36.5 | AKW4: LZeq_38.7 | AKX4: LZeq_41 | AKY4: LZeq_43.4 | AKZ4: LZeq_46 | ALA4: LZeq_48.7 | ALB4: LZeq_52 | ALC4: LZeq_55 | ALD4: LZeq_58 | ALE4: LZeq_61 | ALF4: LZeq_65 | ALG4: LZeq_69 | ALH4: LZeq_73 | ALI4: LZeq_77 | ALJ4: LZeq_82 | ALK4: LZeq_87 | ALL4: LZeq_92 | ALM4: LZeq_97 | ALN4: LZeq_103 | ALO4: LZeq_109 | ALP4: LZeq_115 | ALQ4: LZeq_122 | ALR4: LZeq_130 | ALS4: LZeq_137 | ALT4: LZeq_145 | ALU4: LZeq_154 | ALV4: LZeq_163 | ALW4: LZeq_173 | ALX4: LZeq_183 | ALY4: LZeq_194 | ALZ4: LZeq_205 | AMA4: LZeq_218 | AMB4: LZeq_230 | AMC4: LZeq_244 | AMD4: LZeq_259 | AME4: LZeq_274 | AMF4: LZeq_290 | AMG4: LZeq_307 | AMH4: LZeq_325 | AMI4: LZeq_345 | AMJ4: LZeq_365 | AMK4: LZeq_387 | AML4: LZeq_410 | AMM4: LZeq_434 | AMN4: LZeq_460 | AMO4: LZeq_487 | AMP4: LZeq_520 | AMQ4: LZeq_550 | AMR4: LZeq_580 | AMS4: LZeq_610 | AMT4: LZeq_650 | AMU4: LZeq_690 | AMV4: LZeq_730 | AMW4: LZeq_770 | AMX4: LZeq_820 | AMY4: LZeq_870 | AMZ4: LZeq_920 | ANA4: LZeq_970 | ANB4: LZeq_1030 | ANC4: LZeq_1090 | AND4: LZeq_1150 | ANE4: LZeq_1220 | ANF4: LZeq_1300 | ANG4: LZeq_1370 | ANH4: LZeq_1450 | ANI4: LZeq_1540 | ANJ4: LZeq_1630 | ANK4: LZeq_1730 | ANL4: LZeq_1830 | ANM4: LZeq_1940 | ANN4: LZeq_2050 | ANO4: LZeq_2180 | ANP4: LZeq_2300 | ANQ4: LZeq_2440 | ANR4: LZeq_2590 | ANS4: LZeq_2740 | ANT4: LZeq_2900 | ANU4: LZeq_3070 | ANV4: LZeq_3250 | ANW4: LZeq_3450 | ANX4: LZeq_3650 | ANY4: LZeq_3870 | ANZ4: LZeq_4100 | AOA4: LZeq_4340 | AOB4: LZeq_4600 | AOC4: LZeq_4870 | AOD4: LZeq_5200 | AOE4: LZeq_5500 | AOF4: LZeq_5800 | AOG4: LZeq_6100 | AOH4: LZeq_6500 | AOI4: LZeq_6900 | AOJ4: LZeq_7300 | AOK4: LZeq_7700 | AOL4: LZeq_8200 | AOM4: LZeq_8700 | AON4: LZeq_9200 | AOO4: LZeq_9700 | AOP4: LZeq_10300 | AOQ4: LZeq_10900 | AOR4: LZeq_11500 | AOS4: LZeq_12200 | AOT4: LZeq_13000 | AOU4: LZeq_13700 | AOV4: LZeq_14500 | AOW4: LZeq_15400 | AOX4: LZeq_16300 | AOY4: LZeq_17300 | AOZ4: LZeq_18300 | APA4: LZeq_19400 | APB4: LZeq_20500 | APC4: LZeq_21800 | APD4: LZfmax | APE4: LZfmax_23 | APF4: LZfmax_24.4 | APG4: LZfmax_25.9 | APH4: LZfmax_27.4 | API4: LZfmax_29 | APJ4: LZfmax_30.7 | APK4: LZfmax_32.5 | APL4: LZfmax_34.5 | APM4: LZfmax_36.5 | APN4: LZfmax_38.7 | APO4: LZfmax_41 | APP4: LZfmax_43.4 | APQ4: LZfmax_46 | APR4: LZfmax_48.7 | APS4: LZfmax_52 | APT4: LZfmax_55 | APU4: LZfmax_58 | APV4: LZfmax_61 | APW4: LZfmax_65 | APX4: LZfmax_69 | APY4: LZfmax_73 | APZ4: LZfmax_77 | AQA4: LZfmax_82 | AQB4: LZfmax_87 | AQC4: LZfmax_92 | AQD4: LZfmax_97 | AQE4: LZfmax_103 | AQF4: LZfmax_109 | AQG4: LZfmax_115 | AQH4: LZfmax_122 | AQI4: LZfmax_130 | AQJ4: LZfmax_137 | AQK4: LZfmax_145 | AQL4: LZfmax_154 | AQM4: LZfmax_163 | AQN4: LZfmax_173 | AQO4: LZfmax_183 | AQP4: LZfmax_194 | AQQ4: LZfmax_205 | AQR4: LZfmax_218 | AQS4: LZfmax_230 | AQT4: LZfmax_244 | AQU4: LZfmax_259 | AQV4: LZfmax_274 | AQW4: LZfmax_290 | AQX4: LZfmax_307 | AQY4: LZfmax_325 | AQZ4: LZfmax_345 | ARA4: LZfmax_365 | ARB4: LZfmax_387 | ARC4: LZfmax_410 | ARD4: LZfmax_434 | ARE4: LZfmax_460 | ARF4: LZfmax_487 | ARG4: LZfmax_520 | ARH4: LZfmax_550 | ARI4: LZfmax_580 | ARJ4: LZfmax_610 | ARK4: LZfmax_650 | ARL4: LZfmax_690 | ARM4: LZfmax_730 | ARN4: LZfmax_770 | ARO4: LZfmax_820 | ARP4: LZfmax_870 | ARQ4: LZfmax_920 | ARR4: LZfmax_970 | ARS4: LZfmax_1030 | ART4: LZfmax_1090 | ARU4: LZfmax_1150 | ARV4: LZfmax_1220 | ARW4: LZfmax_1300 | ARX4: LZfmax_1370 | ARY4: LZfmax_1450 | ARZ4: LZfmax_1540 | ASA4: LZfmax_1630 | ASB4: LZfmax_1730 | ASC4: LZfmax_1830 | ASD4: LZfmax_1940 | ASE4: LZfmax_2050 | ASF4: LZfmax_2180 | ASG4: LZfmax_2300 | ASH4: LZfmax_2440 | ASI4: LZfmax_2590 | ASJ4: LZfmax_2740 | ASK4: LZfmax_2900 | ASL4: LZfmax_3070 | ASM4: LZfmax_3250 | ASN4: LZfmax_3450 | ASO4: LZfmax_3650 | ASP4: LZfmax_3870 | ASQ4: LZfmax_4100 | ASR4: LZfmax_4340 | ASS4: LZfmax_4600 | AST4: LZfmax_4870 | ASU4: LZfmax_5200 | ASV4: LZfmax_5500 | ASW4: LZfmax_5800 | ASX4: LZfmax_6100 | ASY4: LZfmax_6500 | ASZ4: LZfmax_6900 | ATA4: LZfmax_7300 | ATB4: LZfmax_7700 | ATC4: LZfmax_8200 | ATD4: LZfmax_8700 | ATE4: LZfmax_9200 | ATF4: LZfmax_9700 | ATG4: LZfmax_10300 | ATH4: LZfmax_10900 | ATI4: LZfmax_11500 | ATJ4: LZfmax_12200 | ATK4: LZfmax_13000 | ATL4: LZfmax_13700 | ATM4: LZfmax_14500 | ATN4: LZfmax_15400 | ATO4: LZfmax_16300 | ATP4: LZfmax_17300 | ATQ4: LZfmax_18300 | ATR4: LZfmax_19400 | ATS4: LZfmax_20500 | ATT4: LZfmax_21800 | ATU4: LZsmax | ATV4: LZsmax_23 | ATW4: LZsmax_24.4 | ATX4: LZsmax_25.9 | ATY4: LZsmax_27.4 | ATZ4: LZsmax_29 | AUA4: LZsmax_30.7 | AUB4: LZsmax_32.5 | AUC4: LZsmax_34.5 | AUD4: LZsmax_36.5 | AUE4: LZsmax_38.7 | AUF4: LZsmax_41 | AUG4: LZsmax_43.4 | AUH4: LZsmax_46 | AUI4: LZsmax_48.7 | AUJ4: LZsmax_52 | AUK4: LZsmax_55 | AUL4: LZsmax_58 | AUM4: LZsmax_61 | AUN4: LZsmax_65 | AUO4: LZsmax_69 | AUP4: LZsmax_73 | AUQ4: LZsmax_77 | AUR4: LZsmax_82 | AUS4: LZsmax_87 | AUT4: LZsmax_92 | AUU4: LZsmax_97 | AUV4: LZsmax_103 | AUW4: LZsmax_109 | AUX4: LZsmax_115 | AUY4: LZsmax_122 | AUZ4: LZsmax_130 | AVA4: LZsmax_137 | AVB4: LZsmax_145 | AVC4: LZsmax_154 | AVD4: LZsmax_163 | AVE4: LZsmax_173 | AVF4: LZsmax_183 | AVG4: LZsmax_194 | AVH4: LZsmax_205 | AVI4: LZsmax_218 | AVJ4: LZsmax_230 | AVK4: LZsmax_244 | AVL4: LZsmax_259 | AVM4: LZsmax_274 | AVN4: LZsmax_290 | AVO4: LZsmax_307 | AVP4: LZsmax_325 | AVQ4: LZsmax_345 | AVR4: LZsmax_365 | AVS4: LZsmax_387 | AVT4: LZsmax_410 | AVU4: LZsmax_434 | AVV4: LZsmax_460 | AVW4: LZsmax_487 | AVX4: LZsmax_520 | AVY4: LZsmax_550 | AVZ4: LZsmax_580 | AWA4: LZsmax_610 | AWB4: LZsmax_650 | AWC4: LZsmax_690 | AWD4: LZsmax_730 | AWE4: LZsmax_770 | AWF4: LZsmax_820 | AWG4: LZsmax_870 | AWH4: LZsmax_920 | AWI4: LZsmax_970 | AWJ4: LZsmax_1030 | AWK4: LZsmax_1090 | AWL4: LZsmax_1150 | AWM4: LZsmax_1220 | AWN4: LZsmax_1300 | AWO4: LZsmax_1370 | AWP4: LZsmax_1450 | AWQ4: LZsmax_1540 | AWR4: LZsmax_1630 | AWS4: LZsmax_1730 | AWT4: LZsmax_1830 | AWU4: LZsmax_1940 | AWV4: LZsmax_2050 | AWW4: LZsmax_2180 | AWX4: LZsmax_2300 | AWY4: LZsmax_2440 | AWZ4: LZsmax_2590 | AXA4: LZsmax_2740 | AXB4: LZsmax_2900 | AXC4: LZsmax_3070 | AXD4: LZsmax_3250 | AXE4: LZsmax_3450 | AXF4: LZsmax_3650 | AXG4: LZsmax_3870 | AXH4: LZsmax_4100 | AXI4: LZsmax_4340 | AXJ4: LZsmax_4600 | AXK4: LZsmax_4870 | AXL4: LZsmax_5200 | AXM4: LZsmax_5500 | AXN4: LZsmax_5800 | AXO4: LZsmax_6100 | AXP4: LZsmax_6500 | AXQ4: LZsmax_6900 | AXR4: LZsmax_7300 | AXS4: LZsmax_7700 | AXT4: LZsmax_8200 | AXU4: LZsmax_8700 | AXV4: LZsmax_9200 | AXW4: LZsmax_9700 | AXX4: LZsmax_10300 | AXY4: LZsmax_10900 | AXZ4: LZsmax_11500 | AYA4: LZsmax_12200 | AYB4: LZsmax_13000 | AYC4: LZsmax_13700 | AYD4: LZsmax_14500 | AYE4: LZsmax_15400 | AYF4: LZsmax_16300 | AYG4: LZsmax_17300 | AYH4: LZsmax_18300 | AYI4: LZsmax_19400 | AYJ4: LZsmax_20500 | AYK4: LZsmax_21800 | AYL4: LZimax | AYM4: LZimax_23 | AYN4: LZimax_24.4 | AYO4: LZimax_25.9 | AYP4: LZimax_27.4 | AYQ4: LZimax_29 | AYR4: LZimax_30.7 | AYS4: LZimax_32.5 | AYT4: LZimax_34.5 | AYU4: LZimax_36.5 | AYV4: LZimax_38.7 | AYW4: LZimax_41 | AYX4: LZimax_43.4 | AYY4: LZimax_46 | AYZ4: LZimax_48.7 | AZA4: LZimax_52 | AZB4: LZimax_55 | AZC4: LZimax_58 | AZD4: LZimax_61 | AZE4: LZimax_65 | AZF4: LZimax_69 | AZG4: LZimax_73 | AZH4: LZimax_77 | AZI4: LZimax_82 | AZJ4: LZimax_87 | AZK4: LZimax_92 | AZL4: LZimax_97 | AZM4: LZimax_103 | AZN4: LZimax_109 | AZO4: LZimax_115 | AZP4: LZimax_122 | AZQ4: LZimax_130 | AZR4: LZimax_137 | AZS4: LZimax_145 | AZT4: LZimax_154 | AZU4: LZimax_163 | AZV4: LZimax_173 | AZW4: LZimax_183 | AZX4: LZimax_194 | AZY4: LZimax_205 | AZZ4: LZimax_218 | BAA4: LZimax_230 | BAB4: LZimax_244 | BAC4: LZimax_259 | BAD4: LZimax_274 | BAE4: LZimax_290 | BAF4: LZimax_307 | BAG4: LZimax_325 | BAH4: LZimax_345 | BAI4: LZimax_365 | BAJ4: LZimax_387 | BAK4: LZimax_410 | BAL4: LZimax_434 | BAM4: LZimax_460 | BAN4: LZimax_487 | BAO4: LZimax_520 | BAP4: LZimax_550 | BAQ4: LZimax_580 | BAR4: LZimax_610 | BAS4: LZimax_650 | BAT4: LZimax_690 | BAU4: LZimax_730 | BAV4: LZimax_770 | BAW4: LZimax_820 | BAX4: LZimax_870 | BAY4: LZimax_920 | BAZ4: LZimax_970 | BBA4: LZimax_1030 | BBB4: LZimax_1090 | BBC4: LZimax_1150 | BBD4: LZimax_1220 | BBE4: LZimax_1300 | BBF4: LZimax_1370 | BBG4: LZimax_1450 | BBH4: LZimax_1540 | BBI4: LZimax_1630 | BBJ4: LZimax_1730 | BBK4: LZimax_1830 | BBL4: LZimax_1940 | BBM4: LZimax_2050 | BBN4: LZimax_2180 | BBO4: LZimax_2300 | BBP4: LZimax_2440 | BBQ4: LZimax_2590 | BBR4: LZimax_2740 | BBS4: LZimax_2900 | BBT4: LZimax_3070 | BBU4: LZimax_3250 | BBV4: LZimax_3450 | BBW4: LZimax_3650 | BBX4: LZimax_3870 | BBY4: LZimax_4100 | BBZ4: LZimax_4340 | BCA4: LZimax_4600 | BCB4: LZimax_4870 | BCC4: LZimax_5200 | BCD4: LZimax_5500 | BCE4: LZimax_5800 | BCF4: LZimax_6100 | BCG4: LZimax_6500 | BCH4: LZimax_6900 | BCI4: LZimax_7300 | BCJ4: LZimax_7700 | BCK4: LZimax_8200 | BCL4: LZimax_8700 | BCM4: LZimax_9200 | BCN4: LZimax_9700 | BCO4: LZimax_10300 | BCP4: LZimax_10900 | BCQ4: LZimax_11500 | BCR4: LZimax_12200 | BCS4: LZimax_13000 | BCT4: LZimax_13700 | BCU4: LZimax_14500 | BCV4: LZimax_15400 | BCW4: LZimax_16300 | BCX4: LZimax_17300 | BCY4: LZimax_18300 | BCZ4: LZimax_19400 | BDA4: LZimax_20500 | BDB4: LZimax_21800

Sheet Notes
